BODY,BODY NAME,Service Label,SERVICE CODE,ORGANISATIONAL UNIT,ORGANISATIONAL UNIT CODE,EXPENDITURE CATEGORY,EXPENDITURE CODE,DATE (POSTING DATE),TRANSACTION NUMBER,AMOUNT,SUPPLIER NAME,SUPPLIER ID
WARRINGTON BOROUGH COUNCIL,http://statistics.data.gov.uk/id/local-authority/00EU,Environment & Regeneration,ER0,Postal & Courier Services,52130,Postages,450000,26-Mar-13,1900114623,676,Royal Mail,101445
WARRINGTON BOROUGH COUNCIL,http://statistics.data.gov.uk/id/local-authority/00EU,Holding Accounts,HOL,VAT Control,91010,Insurance Claims,443400,15-Mar-13,1900113806,549,Weightmans Office AC,101452
WARRINGTON BOROUGH COUNCIL,http://statistics.data.gov.uk/id/local-authority/00EU,Corporate Financing,COR,Corporate Planning Items,61020,Consult.& Prof. Serv,440000,18-Mar-13,1900113928,"3,288.00",Weightmans Office AC,101452
WARRINGTON BOROUGH COUNCIL,http://statistics.data.gov.uk/id/local-authority/00EU,Corporate Financing,COR,Corporate Planning Items,61020,Consult.& Prof. Serv,440000,18-Mar-13,1900113929,"1,900.00",Weightmans Office AC,101452
WARRINGTON BOROUGH COUNCIL,http://statistics.data.gov.uk/id/local-authority/00EU,Neighbourhood & Community Services,NCS,Care Purchase - Learning Disability,54450,CP - Cont Care - External,441350,05-Mar-13,1900112709,"5,718.00",Redacted Personal Data,101463
WARRINGTON BOROUGH COUNCIL,http://statistics.data.gov.uk/id/local-authority/00EU,Neighbourhood & Community Services,NCS,Care Purchase - Learning Disability,54450,Direct Payments,552000,05-Mar-13,1900112711,"4,802.00",Redacted Personal Data,101472
WARRINGTON BOROUGH COUNCIL,http://statistics.data.gov.uk/id/local-authority/00EU,Neighbourhood & Community Services,NCS,Care Purchase - OP & OT West,54470,CP-Nursing Care-External,441200,05-Mar-13,1900112548,"3,960.00",St Marys Care Centre,101503
WARRINGTON BOROUGH COUNCIL,http://statistics.data.gov.uk/id/local-authority/00EU,Neighbourhood & Community Services,NCS,Care Purchase Budget,54490,CP ExternalOther Exp,440800,06-Mar-13,1900112600,"35,000.00",St Marys Care Centre,101503
WARRINGTON BOROUGH COUNCIL,http://statistics.data.gov.uk/id/local-authority/00EU,Neighbourhood & Community Services,NCS,Care Purchase Budget,54490,CP ExternalOther Exp,440800,21-Mar-13,1900114226,"8,305.00",St Marys Care Centre,101503
WARRINGTON BOROUGH COUNCIL,http://statistics.data.gov.uk/id/local-authority/00EU,Neighbourhood & Community Services,NCS,Care Purchase - ABI,54260,CP-Nursing Care-External,441200,27-Mar-13,1900114721,"5,000.00",St Marys Care Centre,101503
WARRINGTON BOROUGH COUNCIL,http://statistics.data.gov.uk/id/local-authority/00EU,Neighbourhood & Community Services,NCS,Care Purchase - Learning Disability,54450,Direct Payments,552000,05-Mar-13,1900112713,849,Redacted Personal Data,101515
WARRINGTON BOROUGH COUNCIL,http://statistics.data.gov.uk/id/local-authority/00EU,Neighbourhood & Community Services,NCS,Care Purchase - Learning Disability,54450,Direct Payments,552000,05-Mar-13,1900112714,"1,513.00",Redacted Personal Data,101516
WARRINGTON BOROUGH COUNCIL,http://statistics.data.gov.uk/id/local-authority/00EU,Neighbourhood & Community Services,NCS,Care Purchase - PD,54440,Direct Payments,552000,05-Mar-13,1900112715,"1,188.00",Redacted Personal Data,101528
WARRINGTON BOROUGH COUNCIL,http://statistics.data.gov.uk/id/local-authority/00EU,Neighbourhood & Community Services,NCS,Care Purchase - PD,54440,Direct Payments,552000,05-Mar-13,1900112717,859,Redacted Personal Data,101541
WARRINGTON BOROUGH COUNCIL,http://statistics.data.gov.uk/id/local-authority/00EU,Neighbourhood & Community Services,NCS,Care Purchase - ABI,54260,Direct Payments,552000,05-Mar-13,1900112718,849,Redacted Personal Data,101542
WARRINGTON BOROUGH COUNCIL,http://statistics.data.gov.uk/id/local-authority/00EU,Neighbourhood & Community Services,NCS,Care Purchase - Learning Disability,54450,Direct Payments,552000,05-Mar-13,1900112719,764,Redacted Personal Data,101547
WARRINGTON BOROUGH COUNCIL,http://statistics.data.gov.uk/id/local-authority/00EU,Neighbourhood & Community Services,NCS,Care Purchase - Learning Disability,54450,CP - Cont Care - External,441350,05-Mar-13,1900112720,"1,542.00",Redacted Personal Data,101551
WARRINGTON BOROUGH COUNCIL,http://statistics.data.gov.uk/id/local-authority/00EU,Neighbourhood & Community Services,NCS,Care Purchase - Learning Disability,54450,Direct Payments,552000,05-Mar-13,1900112720,"1,542.00",Redacted Personal Data,101551
WARRINGTON BOROUGH COUNCIL,http://statistics.data.gov.uk/id/local-authority/00EU,Neighbourhood & Community Services,NCS,Care Purchase - PD,54440,Direct Payments,552000,05-Mar-13,1900112722,679,Redacted Personal Data,101558
WARRINGTON BOROUGH COUNCIL,http://statistics.data.gov.uk/id/local-authority/00EU,Neighbourhood & Community Services,NCS,Care Purchase - Learning Disability,54450,Direct Payments,552000,05-Mar-13,1900112723,"2,462.00",Redacted Personal Data,101568
WARRINGTON BOROUGH COUNCIL,http://statistics.data.gov.uk/id/local-authority/00EU,Neighbourhood & Community Services,NCS,Care Purchase - Learning Disability,54450,Direct Payments,552000,05-Mar-13,1900112724,"1,698.00",Redacted Personal Data,101584
WARRINGTON BOROUGH COUNCIL,http://statistics.data.gov.uk/id/local-authority/00EU,Neighbourhood & Community Services,NCS,Care Purchase - OP & OT West,54470,Direct Payments,552000,05-Mar-13,1900112725,856,Redacted Personal Data,101592
WARRINGTON BOROUGH COUNCIL,http://statistics.data.gov.uk/id/local-authority/00EU,Children & Young People,CHL,Child Disability,32212,Direct Payments,552000,05-Mar-13,1900112726,622,Redacted Personal Data,101595
WARRINGTON BOROUGH COUNCIL,http://statistics.data.gov.uk/id/local-authority/00EU,Neighbourhood & Community Services,NCS,Care Purchase - Learning Disability,54450,Direct Payments,552000,05-Mar-13,1900112727,"1,237.00",Redacted Personal Data,101614
WARRINGTON BOROUGH COUNCIL,http://statistics.data.gov.uk/id/local-authority/00EU,Neighbourhood & Community Services,NCS,Care Purchase - Learning Disability,54450,Direct Payments,552000,05-Mar-13,1900112728,"1,237.00",Redacted Personal Data,101619
WARRINGTON BOROUGH COUNCIL,http://statistics.data.gov.uk/id/local-authority/00EU,Neighbourhood & Community Services,NCS,Care Purchase - Learning Disability,54450,Direct Payments,552000,05-Mar-13,1900112729,"1,019.00",Redacted Personal Data,101625
WARRINGTON BOROUGH COUNCIL,http://statistics.data.gov.uk/id/local-authority/00EU,Children & Young People,CHL,Child Disability,32212,CP - Cont Care - External,441350,05-Mar-13,1900112731,580,Redacted Personal Data,101630
WARRINGTON BOROUGH COUNCIL,http://statistics.data.gov.uk/id/local-authority/00EU,Children & Young People,CHL,Child Disability,32212,Direct Payments,552000,05-Mar-13,1900112731,580,Redacted Personal Data,101630
WARRINGTON BOROUGH COUNCIL,http://statistics.data.gov.uk/id/local-authority/00EU,Neighbourhood & Community Services,NCS,Care Purchase - Learning Disability,54450,CP-LongStayExternal,441150,25-Mar-13,1900114401,"12,348.00",Griffin Care Ltd,101672
WARRINGTON BOROUGH COUNCIL,http://statistics.data.gov.uk/id/local-authority/00EU,Neighbourhood & Community Services,NCS,Care Purchase - Learning Disability,54450,CP-LongStayExternal,441150,25-Mar-13,1900114403,"12,348.00",Griffin Care Ltd,101672
WARRINGTON BOROUGH COUNCIL,http://statistics.data.gov.uk/id/local-authority/00EU,Neighbourhood & Community Services,NCS,Care Purchase - PD,54440,Direct Payments,552000,05-Mar-13,1900112734,560,Redacted Personal Data,101677
WARRINGTON BOROUGH COUNCIL,http://statistics.data.gov.uk/id/local-authority/00EU,Neighbourhood & Community Services,NCS,Supporting People Grant Payments,53260,Sheltd/Xtra Care Hsing and Comm Alarms,535050,25-Mar-13,1900114371,"15,889.00",Frontis Homes,101685
WARRINGTON BOROUGH COUNCIL,http://statistics.data.gov.uk/id/local-authority/00EU,Neighbourhood & Community Services,NCS,Care Purchase - Learning Disability,54450,Direct Payments,552000,05-Mar-13,1900112735,880,Redacted Personal Data,101686
WARRINGTON BOROUGH COUNCIL,http://statistics.data.gov.uk/id/local-authority/00EU,Neighbourhood & Community Services,NCS,Care Purchase - Learning Disability,54450,Direct Payments,552000,05-Mar-13,1900112736,"3,533.00",Redacted Personal Data,101701
WARRINGTON BOROUGH COUNCIL,http://statistics.data.gov.uk/id/local-authority/00EU,Neighbourhood & Community Services,NCS,Care Purchase - Learning Disability,54450,Direct Payments,552000,05-Mar-13,1900112737,"3,533.00",Redacted Personal Data,101704
WARRINGTON BOROUGH COUNCIL,http://statistics.data.gov.uk/id/local-authority/00EU,Assistant Chief Executive,CEX,Coroners Service,11100,Removal Bodies & Exc,440350,08-Mar-13,1900113238,850,Crewe Funeral Services,101724
WARRINGTON BOROUGH COUNCIL,http://statistics.data.gov.uk/id/local-authority/00EU,Assistant Chief Executive,CEX,Coroners Service,11100,Post Mortem Fees-Rep,440250,06-Mar-13,1900113105,"1,624.00",Dr Natalie Meara,101727
WARRINGTON BOROUGH COUNCIL,http://statistics.data.gov.uk/id/local-authority/00EU,Neighbourhood & Community Services,NCS,Care Purchase - Learning Disability,54450,Direct Payments,552000,05-Mar-13,1900112739,"1,347.00",Redacted Personal Data,101730
WARRINGTON BOROUGH COUNCIL,http://statistics.data.gov.uk/id/local-authority/00EU,Environment & Regeneration,ER0,Estates & Valuation,43520,Agency Supply - GF,180000,04-Mar-13,1900112240,"1,034.00",Judd Farris Property Recruitment,101741
WARRINGTON BOROUGH COUNCIL,http://statistics.data.gov.uk/id/local-authority/00EU,Environment & Regeneration,ER0,Estates & Valuation,43520,Agency Supply - GF,180000,04-Mar-13,1900112242,582,Judd Farris Property Recruitment,101741
WARRINGTON BOROUGH COUNCIL,http://statistics.data.gov.uk/id/local-authority/00EU,Environment & Regeneration,ER0,Estates & Valuation,43520,Agency Supply - GF,180000,08-Mar-13,1900113280,"1,028.00",Judd Farris Property Recruitment,101741
WARRINGTON BOROUGH COUNCIL,http://statistics.data.gov.uk/id/local-authority/00EU,Environment & Regeneration,ER0,Estates & Valuation,43520,Agency Supply - GF,180000,08-Mar-13,1900113282,505,Judd Farris Property Recruitment,101741
WARRINGTON BOROUGH COUNCIL,http://statistics.data.gov.uk/id/local-authority/00EU,Environment & Regeneration,ER0,Estates & Valuation,43520,Agency Supply - GF,180000,08-Mar-13,1900113284,"1,053.00",Judd Farris Property Recruitment,101741
WARRINGTON BOROUGH COUNCIL,http://statistics.data.gov.uk/id/local-authority/00EU,Environment & Regeneration,ER0,Estates & Valuation,43520,Agency Supply - GF,180000,22-Mar-13,1900114276,"1,028.00",Judd Farris Property Recruitment,101741
WARRINGTON BOROUGH COUNCIL,http://statistics.data.gov.uk/id/local-authority/00EU,Environment & Regeneration,ER0,Estates & Valuation,43520,Agency Supply - GF,180000,22-Mar-13,1900114277,"1,028.00",Judd Farris Property Recruitment,101741
WARRINGTON BOROUGH COUNCIL,http://statistics.data.gov.uk/id/local-authority/00EU,Environment & Regeneration,ER0,Estates & Valuation,43520,Agency Supply - GF,180000,22-Mar-13,1900114281,540,Judd Farris Property Recruitment,101741
WARRINGTON BOROUGH COUNCIL,http://statistics.data.gov.uk/id/local-authority/00EU,Neighbourhood & Community Services,NCS,Care Purchase Budget,54490,CP ExternalOther Exp,440800,06-Mar-13,1900112576,"38,000.00",Wcl - Heathside Mews,101742
WARRINGTON BOROUGH COUNCIL,http://statistics.data.gov.uk/id/local-authority/00EU,Environment & Regeneration,ER0,P.F.I.,43630,PFI,480000,05-Mar-13,1900112443,"76,125.00",Arena Options,101746
WARRINGTON BOROUGH COUNCIL,http://statistics.data.gov.uk/id/local-authority/00EU,Environment & Regeneration,ER0,P.F.I.,43630,PFI,480000,25-Mar-13,1900114493,"76,101.00",Arena Options,101746
WARRINGTON BOROUGH COUNCIL,http://statistics.data.gov.uk/id/local-authority/00EU,Environment & Regeneration,ER0,P.F.I.,43630,PFI,480000,25-Mar-13,1900114504,"45,093.00",Arena Options,101746
WARRINGTON BOROUGH COUNCIL,http://statistics.data.gov.uk/id/local-authority/00EU,Neighbourhood & Community Services,NCS,Supporting People Grant Payments,53260,Risk of Homelessness and Floating Suppor,535100,27-Mar-13,1900114750,"8,316.00",Arena Options,101746
WARRINGTON BOROUGH COUNCIL,http://statistics.data.gov.uk/id/local-authority/00EU,Neighbourhood & Community Services,NCS,Supporting People Grant Payments,53260,Risk of Homelessness and Floating Suppor,535100,27-Mar-13,1900114751,"22,862.00",Arena Options,101746
WARRINGTON BOROUGH COUNCIL,http://statistics.data.gov.uk/id/local-authority/00EU,Neighbourhood & Community Services,NCS,Supporting People Grant Payments,53260,Risk of Homelessness and Floating Suppor,535100,27-Mar-13,1900114752,"30,436.00",Arena Options,101746
WARRINGTON BOROUGH COUNCIL,http://statistics.data.gov.uk/id/local-authority/00EU,Neighbourhood & Community Services,NCS,Supporting People Grant Payments,53260,Risk of Homelessness and Floating Suppor,535100,27-Mar-13,1900114753,"32,680.00",Arena Options,101746
WARRINGTON BOROUGH COUNCIL,http://statistics.data.gov.uk/id/local-authority/00EU,Neighbourhood & Community Services,NCS,Supporting People Grant Payments,53260,Risk of Homelessness and Floating Suppor,535100,27-Mar-13,1900114754,"41,830.00",Arena Options,101746
WARRINGTON BOROUGH COUNCIL,http://statistics.data.gov.uk/id/local-authority/00EU,Neighbourhood & Community Services,NCS,Supporting People Grant Payments,53260,Risk of Homelessness and Floating Suppor,535100,27-Mar-13,1900114755,"27,887.00",Arena Options,101746
WARRINGTON BOROUGH COUNCIL,http://statistics.data.gov.uk/id/local-authority/00EU,Neighbourhood & Community Services,NCS,Supporting People Grant Payments,53260,Young People and/or Care Leavers,535150,27-Mar-13,1900114756,"40,318.00",Arena Options,101746
WARRINGTON BOROUGH COUNCIL,http://statistics.data.gov.uk/id/local-authority/00EU,Neighbourhood & Community Services,NCS,Supporting People Grant Payments,53260,Young People and/or Care Leavers,535150,27-Mar-13,1900114757,"40,318.00",Arena Options,101746
WARRINGTON BOROUGH COUNCIL,http://statistics.data.gov.uk/id/local-authority/00EU,Neighbourhood & Community Services,NCS,Supporting People Grant Payments,53260,Young People and/or Care Leavers,535150,27-Mar-13,1900114758,"6,967.00",Arena Options,101746
WARRINGTON BOROUGH COUNCIL,http://statistics.data.gov.uk/id/local-authority/00EU,Neighbourhood & Community Services,NCS,Supporting People Grant Payments,53260,Risk of Homelessness and Floating Suppor,535100,27-Mar-13,1900114765,"22,862.00",Arena Options,101746
WARRINGTON BOROUGH COUNCIL,http://statistics.data.gov.uk/id/local-authority/00EU,Neighbourhood & Community Services,NCS,Supporting People Grant Payments,53260,Risk of Homelessness and Floating Suppor,535100,27-Mar-13,1900114767,"8,316.00",Arena Options,101746
WARRINGTON BOROUGH COUNCIL,http://statistics.data.gov.uk/id/local-authority/00EU,Neighbourhood & Community Services,NCS,Supporting People Grant Payments,53260,Risk of Homelessness and Floating Suppor,535100,27-Mar-13,1900114770,"30,436.00",Arena Options,101746
WARRINGTON BOROUGH COUNCIL,http://statistics.data.gov.uk/id/local-authority/00EU,Neighbourhood & Community Services,NCS,Care Purchase - Learning Disability,54450,Direct Payments,552000,05-Mar-13,1900112740,599,Redacted Personal Data,101748
WARRINGTON BOROUGH COUNCIL,http://statistics.data.gov.uk/id/local-authority/00EU,Environment & Regeneration,ER1,Walton Estate Coffee Shop,41434,Snack Foods,410150,19-Mar-13,1900114038,611,Woodward Foodservice Ltd,101749
WARRINGTON BOROUGH COUNCIL,http://statistics.data.gov.uk/id/local-authority/00EU,Environment & Regeneration,ER1,Walton Estate Coffee Shop,41434,Provisions-Purchase,410000,27-Mar-13,1900114713,502,Woodward Foodservice Ltd,101749
WARRINGTON BOROUGH COUNCIL,http://statistics.data.gov.uk/id/local-authority/00EU,Environment & Regeneration,ER1,Walton Estate Coffee Shop,41434,Provisions-Purchase,410000,27-Mar-13,1900114714,832,Woodward Foodservice Ltd,101749
WARRINGTON BOROUGH COUNCIL,http://statistics.data.gov.uk/id/local-authority/00EU,Neighbourhood & Community Services,NCS,Care Purchase - PD,54440,Direct Payments,552000,05-Mar-13,1900112741,679,Redacted Personal Data,101752
WARRINGTON BOROUGH COUNCIL,http://statistics.data.gov.uk/id/local-authority/00EU,Children & Young People,CHL,Child Disability,32212,Direct Payments,552000,05-Mar-13,1900112742,"1,002.00",Redacted Personal Data,101758
WARRINGTON BOROUGH COUNCIL,http://statistics.data.gov.uk/id/local-authority/00EU,Neighbourhood & Community Services,NCS,Care Purchase - Learning Disability,54450,Direct Payments,552000,05-Mar-13,1900112743,509,Redacted Personal Data,101759
WARRINGTON BOROUGH COUNCIL,http://statistics.data.gov.uk/id/local-authority/00EU,Neighbourhood & Community Services,NCS,Care Purchase - Mental Health Team 2,54240,Direct Payments,552000,05-Mar-13,1900112744,"1,949.00",Redacted Personal Data,101808
WARRINGTON BOROUGH COUNCIL,http://statistics.data.gov.uk/id/local-authority/00EU,Neighbourhood & Community Services,NCS,Care Purchase - PD,54440,CP-Nursing Care-External,441200,13-Mar-13,1900113490,"4,136.00",Abbey Lawns Care Home Ltd,101816
WARRINGTON BOROUGH COUNCIL,http://statistics.data.gov.uk/id/local-authority/00EU,Neighbourhood & Community Services,NCS,Care Purchase - Learning Disability,54450,CP-Domicil.External,440950,14-Mar-13,1900113708,687,Progress Adult Services Ltd,101817
WARRINGTON BOROUGH COUNCIL,http://statistics.data.gov.uk/id/local-authority/00EU,Neighbourhood & Community Services,NCS,Care Purchase - Learning Disability,54450,CP-LongStayExternal,441150,14-Mar-13,1900113708,"11,238.00",Progress Adult Services Ltd,101817
WARRINGTON BOROUGH COUNCIL,http://statistics.data.gov.uk/id/local-authority/00EU,Neighbourhood & Community Services,NCS,Care Purchase - Learning Disability,54450,CP-LongStayExternal,441150,14-Mar-13,1900113718,"11,238.00",Progress Adult Services Ltd,101817
WARRINGTON BOROUGH COUNCIL,http://statistics.data.gov.uk/id/local-authority/00EU,Neighbourhood & Community Services,NCS,Care Purchase - OP & OT South,54480,Direct Payments,552000,05-Mar-13,1900112745,912,Redacted Personal Data,101825
WARRINGTON BOROUGH COUNCIL,http://statistics.data.gov.uk/id/local-authority/00EU,Neighbourhood & Community Services,NCS,Care Purchase - Learning Disability,54450,CP-Domicil.External,440950,14-Mar-13,1900113703,"1,258.00",Inclusive Lifestyles Ltd,101840
WARRINGTON BOROUGH COUNCIL,http://statistics.data.gov.uk/id/local-authority/00EU,Neighbourhood & Community Services,NCS,Care Purchase - Learning Disability,54450,CP-LongStayExternal,441150,14-Mar-13,1900113704,"12,532.00",Inclusive Lifestyles Ltd,101840
WARRINGTON BOROUGH COUNCIL,http://statistics.data.gov.uk/id/local-authority/00EU,Neighbourhood & Community Services,NCS,Care Purchase - Learning Disability,54450,CP-LongStayExternal,441150,14-Mar-13,1900113705,"12,744.00",Inclusive Lifestyles Ltd,101840
WARRINGTON BOROUGH COUNCIL,http://statistics.data.gov.uk/id/local-authority/00EU,Neighbourhood & Community Services,NCS,Care Purchase - Learning Disability,54450,CP-Domicil.External,440950,14-Mar-13,1900113706,"1,482.00",Inclusive Lifestyles Ltd,101840
WARRINGTON BOROUGH COUNCIL,http://statistics.data.gov.uk/id/local-authority/00EU,Neighbourhood & Community Services,NCS,Care Purchase - OP & OT South,54480,CP-LongStayExternal,441150,13-Mar-13,1900113478,"1,507.00",Meridian Healthcare Ltd,101845
WARRINGTON BOROUGH COUNCIL,http://statistics.data.gov.uk/id/local-authority/00EU,Neighbourhood & Community Services,NCS,Care Purchase - OP & OT South,54480,CP-Nursing Care-External,441200,13-Mar-13,1900113486,"1,965.00",Meridian Healthcare Ltd,101845
WARRINGTON BOROUGH COUNCIL,http://statistics.data.gov.uk/id/local-authority/00EU,Children & Young People,CHL,Child Disability,32212,Direct Payments,552000,05-Mar-13,1900112747,"1,278.00",Redacted Personal Data,101849
WARRINGTON BOROUGH COUNCIL,http://statistics.data.gov.uk/id/local-authority/00EU,Neighbourhood & Community Services,NCS,Care Purchase -OP & OT East,54430,CP-LongStayExternal,441150,14-Mar-13,1900113707,"1,516.00",Mayfield House Care Home Ltd,101862
WARRINGTON BOROUGH COUNCIL,http://statistics.data.gov.uk/id/local-authority/00EU,Children & Young People,CHL,Special Schools Transport,33208,Independent School Transport,301550,18-Mar-13,1900113864,"1,575.00",Direct Taxis,101873
WARRINGTON BOROUGH COUNCIL,http://statistics.data.gov.uk/id/local-authority/00EU,Children & Young People,CHL,Special Schools Transport,33208,Warrington BC Schools Transport,300700,18-Mar-13,1900113865,"1,500.00",Direct Taxis,101873
WARRINGTON BOROUGH COUNCIL,http://statistics.data.gov.uk/id/local-authority/00EU,Holding Accounts,HOL,Single Billing Holding Account,91130,Electricity,210000,15-Mar-13,1900113782,"29,366.00",Npower Electricity,101884
WARRINGTON BOROUGH COUNCIL,http://statistics.data.gov.uk/id/local-authority/00EU,Holding Accounts,HOL,Single Billing Holding Account,91130,Electricity,210000,27-Mar-13,1900114637,"1,975.00",Npower Electricity,101884
WARRINGTON BOROUGH COUNCIL,http://statistics.data.gov.uk/id/local-authority/00EU,Holding Accounts,HOL,Single Billing Holding Account,91130,Electricity,210000,27-Mar-13,1900114637,"46,424.00",Npower Electricity,101884
WARRINGTON BOROUGH COUNCIL,http://statistics.data.gov.uk/id/local-authority/00EU,Holding Accounts,HOL,Single Billing Holding Account,91130,Electricity,210000,27-Mar-13,1900114642,"72,843.00",Npower Electricity,101884
WARRINGTON BOROUGH COUNCIL,http://statistics.data.gov.uk/id/local-authority/00EU,Environment & Regeneration,ER0,Street Lighting Client,44241,Lighting Energy Char,531550,27-Mar-13,1900114759,"60,454.00",Npower Electricity,101884
WARRINGTON BOROUGH COUNCIL,http://statistics.data.gov.uk/id/local-authority/00EU,Neighbourhood & Community Services,NCS,Care Purchase - OP & OT Central,54420,CP-Domicil.External,440950,13-Mar-13,1900113449,"1,147.00",Dh Homecare,101961
WARRINGTON BOROUGH COUNCIL,http://statistics.data.gov.uk/id/local-authority/00EU,Neighbourhood & Community Services,NCS,Care Purchase - PD,54440,CP-Domicil.External,440950,13-Mar-13,1900113449,"3,765.00",Dh Homecare,101961
WARRINGTON BOROUGH COUNCIL,http://statistics.data.gov.uk/id/local-authority/00EU,Neighbourhood & Community Services,NCS,Care Purchase - OP & OT South,54480,CP-Domicil.External,440950,13-Mar-13,1900113449,"17,544.00",Dh Homecare,101961
WARRINGTON BOROUGH COUNCIL,http://statistics.data.gov.uk/id/local-authority/00EU,Holding Accounts,HOL,Single Billing Holding Account,91130,Agency Supply - GF,180000,15-Mar-13,1900113797,"1,653.00",Comensura,102009
WARRINGTON BOROUGH COUNCIL,http://statistics.data.gov.uk/id/local-authority/00EU,Holding Accounts,HOL,Single Billing Holding Account,91130,Agency Supply - GF,180000,21-Mar-13,1900114185,597,Comensura,102009
WARRINGTON BOROUGH COUNCIL,http://statistics.data.gov.uk/id/local-authority/00EU,Neighbourhood & Community Services,NCS,Care Purchase - PD,54440,Direct Payments,552000,05-Mar-13,1900112750,652,Redacted Personal Data,102010
WARRINGTON BOROUGH COUNCIL,http://statistics.data.gov.uk/id/local-authority/00EU,Children & Young People,CHL,Rowland Close,31312,Fees (Including Agents Fees),441450,15-Mar-13,1900113826,"1,323.00",Ofsted,102038
WARRINGTON BOROUGH COUNCIL,http://statistics.data.gov.uk/id/local-authority/00EU,Children & Young People,CHL,Longfield Road,31311,Fees (Including Agents Fees),441450,15-Mar-13,1900113829,"1,323.00",Ofsted,102038
WARRINGTON BOROUGH COUNCIL,http://statistics.data.gov.uk/id/local-authority/00EU,Children & Young People,CHL,Fostering Team,31105,Registration Fee,490750,28-Mar-13,1900115021,"2,421.00",Ofsted,102038
WARRINGTON BOROUGH COUNCIL,http://statistics.data.gov.uk/id/local-authority/00EU,Children & Young People,CHL,Adoption Team,31107,Registration Fee,490750,28-Mar-13,1900115023,"1,549.00",Ofsted,102038
WARRINGTON BOROUGH COUNCIL,http://statistics.data.gov.uk/id/local-authority/00EU,Children & Young People,CYP,Childrens Other,81004,DFC-Capital ICT Expenditure (Schools),451100,14-Mar-13,1900113662,"4,179.00",Mcc Limited,102042
WARRINGTON BOROUGH COUNCIL,http://statistics.data.gov.uk/id/local-authority/00EU,Children & Young People,CHL,Child Disability,32212,Direct Payments,552000,05-Mar-13,1900112752,815,Redacted Personal Data,102107
WARRINGTON BOROUGH COUNCIL,http://statistics.data.gov.uk/id/local-authority/00EU,Neighbourhood & Community Services,NCS,Administration,51010,Gen. Personal Needs,490850,13-Mar-13,1900113639,819,Redacted Personal Data,102113
WARRINGTON BOROUGH COUNCIL,http://statistics.data.gov.uk/id/local-authority/00EU,Environment & Regeneration,ENP,Environment & Regeneration,82000,Consult.& Prof. Serv,440000,12-Mar-13,1900113402,"1,610.00",Capita Symonds Ltd,102122
WARRINGTON BOROUGH COUNCIL,http://statistics.data.gov.uk/id/local-authority/00EU,Children & Young People,CHL,Agency Placements,30904,Fostering Accommodation,441050,28-Mar-13,1900114986,"2,400.00",National Fostering Agency England,102141
WARRINGTON BOROUGH COUNCIL,http://statistics.data.gov.uk/id/local-authority/00EU,Neighbourhood & Community Services,NCS,Care Purchase - ABI,54260,CP-LongStayExternal,441150,26-Mar-13,1900114511,"7,075.00",Thames Health Care Ltd,102170
WARRINGTON BOROUGH COUNCIL,http://statistics.data.gov.uk/id/local-authority/00EU,Neighbourhood & Community Services,NCS,Care Purchase - OP & OT Central,54420,Direct Payments,552000,05-Mar-13,1900112754,661,Redacted Personal Data,102183
WARRINGTON BOROUGH COUNCIL,http://statistics.data.gov.uk/id/local-authority/00EU,Neighbourhood & Community Services,NCS,Care Purchase - OP & OT West,54470,CP-Domicil.External,440950,25-Mar-13,1900114369,635,M-Power Activity Services Ltd,102186
WARRINGTON BOROUGH COUNCIL,http://statistics.data.gov.uk/id/local-authority/00EU,Neighbourhood & Community Services,NCS,Care Purchase - Learning Disability,54450,CP-Domicil.External,440950,25-Mar-13,1900114369,"1,177.00",M-Power Activity Services Ltd,102186
WARRINGTON BOROUGH COUNCIL,http://statistics.data.gov.uk/id/local-authority/00EU,Neighbourhood & Community Services,NCS,Supporting People Grant Payments,53260,Sheltd/Xtra Care Hsing and Comm Alarms,535050,25-Mar-13,1900114355,"18,655.00",Arena Housing,102199
WARRINGTON BOROUGH COUNCIL,http://statistics.data.gov.uk/id/local-authority/00EU,Assistant Chief Executive,CEX,Coroners Service,11100,Post Mortem Fees-Rep,440250,06-Mar-13,1900112643,"4,495.00",Dr P Simcock,102209
WARRINGTON BOROUGH COUNCIL,http://statistics.data.gov.uk/id/local-authority/00EU,Assistant Chief Executive,CEX,Coroners Service,11100,Post Mortem Fees-Rep,440250,18-Mar-13,1900113903,"1,481.00",Dr P Simcock,102209
WARRINGTON BOROUGH COUNCIL,http://statistics.data.gov.uk/id/local-authority/00EU,Neighbourhood & Community Services,NCS,Care Purchase - Learning Disability,54450,Direct Payments,552000,05-Mar-13,1900112755,719,Redacted Personal Data,102217
WARRINGTON BOROUGH COUNCIL,http://statistics.data.gov.uk/id/local-authority/00EU,Neighbourhood & Community Services,NCS,Care Purchase - PD,54440,Direct Payments,552000,05-Mar-13,1900112756,821,Redacted Personal Data,102222
WARRINGTON BOROUGH COUNCIL,http://statistics.data.gov.uk/id/local-authority/00EU,Neighbourhood & Community Services,NCS,Care Purchase - PD,54440,CP Adult Placement,443450,28-Mar-13,1900114994,"1,528.00",Redacted Personal Data,102249
WARRINGTON BOROUGH COUNCIL,http://statistics.data.gov.uk/id/local-authority/00EU,Assistant Chief Executive,CEX,Council Tax & Recovery,10320,Court Costs,460100,14-Mar-13,1900113678,"1,410.00",Hmcs North Cheshire Collections,102261
WARRINGTON BOROUGH COUNCIL,http://statistics.data.gov.uk/id/local-authority/00EU,Neighbourhood & Community Services,NCS,Care Purchase - Learning Disability,54450,CP-Domicil.External,440950,05-Mar-13,1900112496,"1,922.00",Care Uk Care Solutions Ltd,102263
WARRINGTON BOROUGH COUNCIL,http://statistics.data.gov.uk/id/local-authority/00EU,Neighbourhood & Community Services,NCS,Care Purchase - Learning Disability,54450,CP-Domicil.External,440950,05-Mar-13,1900112499,"1,289.00",Care Uk Care Solutions Ltd,102263
WARRINGTON BOROUGH COUNCIL,http://statistics.data.gov.uk/id/local-authority/00EU,Neighbourhood & Community Services,NCS,Care Purchase - Learning Disability,54450,CP-Domicil.External,440950,05-Mar-13,1900112500,"6,527.00",Care Uk Care Solutions Ltd,102263
WARRINGTON BOROUGH COUNCIL,http://statistics.data.gov.uk/id/local-authority/00EU,Neighbourhood & Community Services,NCS,Care Purchase - Learning Disability,54450,Supporting People - External,441250,05-Mar-13,1900112504,549,Care Uk Care Solutions Ltd,102263
WARRINGTON BOROUGH COUNCIL,http://statistics.data.gov.uk/id/local-authority/00EU,Neighbourhood & Community Services,NCS,Care Purchase - Learning Disability,54450,Supporting People - External,441250,05-Mar-13,1900112507,598,Care Uk Care Solutions Ltd,102263
WARRINGTON BOROUGH COUNCIL,http://statistics.data.gov.uk/id/local-authority/00EU,Neighbourhood & Community Services,NCS,Care Purchase - Learning Disability,54450,CP-Domicil.External,440950,05-Mar-13,1900112507,"2,715.00",Care Uk Care Solutions Ltd,102263
WARRINGTON BOROUGH COUNCIL,http://statistics.data.gov.uk/id/local-authority/00EU,Neighbourhood & Community Services,NCS,Care Purchase - Learning Disability,54450,CP-Domicil.External,440950,05-Mar-13,1900112508,"1,234.00",Care Uk Care Solutions Ltd,102263
WARRINGTON BOROUGH COUNCIL,http://statistics.data.gov.uk/id/local-authority/00EU,Neighbourhood & Community Services,NCS,Care Purchase - Learning Disability,54450,CP-Domicil.External,440950,05-Mar-13,1900112512,"3,294.00",Care Uk Care Solutions Ltd,102263
WARRINGTON BOROUGH COUNCIL,http://statistics.data.gov.uk/id/local-authority/00EU,Neighbourhood & Community Services,NCS,Care Purchase - Learning Disability,54450,CP-Domicil.External,440950,05-Mar-13,1900112513,549,Care Uk Care Solutions Ltd,102263
WARRINGTON BOROUGH COUNCIL,http://statistics.data.gov.uk/id/local-authority/00EU,Neighbourhood & Community Services,NCS,Care Purchase - Learning Disability,54450,CP-Domicil.External,440950,05-Mar-13,1900112514,"2,580.00",Care Uk Care Solutions Ltd,102263
WARRINGTON BOROUGH COUNCIL,http://statistics.data.gov.uk/id/local-authority/00EU,Neighbourhood & Community Services,NCS,Care Purchase - Learning Disability,54450,CP-Domicil.External,440950,05-Mar-13,1900112515,"2,489.00",Care Uk Care Solutions Ltd,102263
WARRINGTON BOROUGH COUNCIL,http://statistics.data.gov.uk/id/local-authority/00EU,Neighbourhood & Community Services,NCS,Care Purchase - Learning Disability,54450,CP-Domicil.External,440950,05-Mar-13,1900112523,549,Care Uk Care Solutions Ltd,102263
WARRINGTON BOROUGH COUNCIL,http://statistics.data.gov.uk/id/local-authority/00EU,Neighbourhood & Community Services,NCS,Care Purchase - Learning Disability,54450,CP-Domicil.External,440950,05-Mar-13,1900112524,"1,407.00",Care Uk Care Solutions Ltd,102263
WARRINGTON BOROUGH COUNCIL,http://statistics.data.gov.uk/id/local-authority/00EU,Neighbourhood & Community Services,NCS,Care Purchase - Learning Disability,54450,CP-Domicil.External,440950,05-Mar-13,1900112525,"2,416.00",Care Uk Care Solutions Ltd,102263
WARRINGTON BOROUGH COUNCIL,http://statistics.data.gov.uk/id/local-authority/00EU,Environment & Regeneration,ER1,Walton Hall Catering,41433,Provisions-Purchase,410000,27-Mar-13,1900114734,"1,453.00",Autobar Uk Ltd,102290
WARRINGTON BOROUGH COUNCIL,http://statistics.data.gov.uk/id/local-authority/00EU,Assistant Chief Executive,CEX,Coroners Service,11100,Consult.& Prof. Serv,440000,07-Mar-13,1900113145,"1,600.00",Redacted Personal Data,102292
WARRINGTON BOROUGH COUNCIL,http://statistics.data.gov.uk/id/local-authority/00EU,Environment & Regeneration,ER0,New Town House,43119,Trade Refuse Charges,440700,05-Mar-13,1900112528,683,B & M Waste,102293
WARRINGTON BOROUGH COUNCIL,http://statistics.data.gov.uk/id/local-authority/00EU,Environment & Regeneration,ER0,New Town House,43119,Trade Refuse Charges,440700,19-Mar-13,1900113986,607,B & M Waste,102293
WARRINGTON BOROUGH COUNCIL,http://statistics.data.gov.uk/id/local-authority/00EU,Neighbourhood & Community Services,NCS,Care Purchase - OP & OT South,54480,CP-LongStayExternal,441150,05-Mar-13,1900112533,"1,532.00",Longview Care Home Ltd,102331
WARRINGTON BOROUGH COUNCIL,http://statistics.data.gov.uk/id/local-authority/00EU,Neighbourhood & Community Services,NCS,Care Purchase - OP & OT South,54480,CP-LongStayExternal,441150,14-Mar-13,1900113700,"1,532.00",Longview Care Home Ltd,102331
WARRINGTON BOROUGH COUNCIL,http://statistics.data.gov.uk/id/local-authority/00EU,Neighbourhood & Community Services,NCS,Care Purchase - Learning Disability,54450,Direct Payments,552000,05-Mar-13,1900112758,"1,103.00",Redacted Personal Data,102348
WARRINGTON BOROUGH COUNCIL,http://statistics.data.gov.uk/id/local-authority/00EU,Environment & Regeneration,ER0,Estates & Valuation,43520,Agency Supply - GF,180000,04-Mar-13,1900112243,"1,150.00",Nuttallroberts Ltd,102450
WARRINGTON BOROUGH COUNCIL,http://statistics.data.gov.uk/id/local-authority/00EU,Environment & Regeneration,ER0,Estates & Valuation,43520,Agency Supply - GF,180000,08-Mar-13,1900113235,994,Nuttallroberts Ltd,102450
WARRINGTON BOROUGH COUNCIL,http://statistics.data.gov.uk/id/local-authority/00EU,Environment & Regeneration,ER0,Estates & Valuation,43520,Agency Supply - GF,180000,19-Mar-13,1900114006,"1,219.00",Nuttallroberts Ltd,102450
WARRINGTON BOROUGH COUNCIL,http://statistics.data.gov.uk/id/local-authority/00EU,Environment & Regeneration,ER0,Estates & Valuation,43520,Agency Supply - GF,180000,27-Mar-13,1900114806,"1,219.00",Nuttallroberts Ltd,102450
WARRINGTON BOROUGH COUNCIL,http://statistics.data.gov.uk/id/local-authority/00EU,Neighbourhood & Community Services,NCS,Care Purchase - Learning Disability,54450,CP-LongStayExternal,441150,28-Mar-13,1900114972,"3,508.00",Potens Ltd TA Heath Lodge,102481
WARRINGTON BOROUGH COUNCIL,http://statistics.data.gov.uk/id/local-authority/00EU,Neighbourhood & Community Services,NCS,Care Purchase Budget,54490,Computer Software - Maintenance,450850,06-Mar-13,1900112616,"167,000.00",Leyton Healthcare,102517
WARRINGTON BOROUGH COUNCIL,http://statistics.data.gov.uk/id/local-authority/00EU,Neighbourhood & Community Services,NCS,Care Purchase Budget,54490,CP ExternalOther Exp,440800,13-Mar-13,1900113514,"7,465.00",Leyton Healthcare,102517
WARRINGTON BOROUGH COUNCIL,http://statistics.data.gov.uk/id/local-authority/00EU,Neighbourhood & Community Services,NCS,Care Purchase Budget,54490,CP ExternalOther Exp,440800,13-Mar-13,1900113519,"7,465.00",Leyton Healthcare,102517
WARRINGTON BOROUGH COUNCIL,http://statistics.data.gov.uk/id/local-authority/00EU,Neighbourhood & Community Services,NCS,Care Purchase Budget,54490,CP ExternalOther Exp,440800,26-Mar-13,1900114562,"5,595.00",Leyton Healthcare,102517
WARRINGTON BOROUGH COUNCIL,http://statistics.data.gov.uk/id/local-authority/00EU,Neighbourhood & Community Services,NCS,Care Purchase - OP & OT West,54470,CP-LongStayExternal,441150,27-Mar-13,1900114723,"1,904.00",Orchard Care Homes,102524
WARRINGTON BOROUGH COUNCIL,http://statistics.data.gov.uk/id/local-authority/00EU,Neighbourhood & Community Services,NCS,Care Purchase - Learning Disability,54450,Direct Payments,552000,05-Mar-13,1900112759,727,Redacted Personal Data,102547
WARRINGTON BOROUGH COUNCIL,http://statistics.data.gov.uk/id/local-authority/00EU,Environment & Regeneration,ENO,Housing Projects,82008,Disabled Persons Grant 1996,554000,04-Mar-13,1900112254,"1,090.00",Total Plumbing Solutions,102587
WARRINGTON BOROUGH COUNCIL,http://statistics.data.gov.uk/id/local-authority/00EU,Environment & Regeneration,ENO,Housing Projects,82008,Disabled Persons Grant 1996,554000,27-Mar-13,1900114742,"3,928.00",Total Plumbing Solutions,102587
WARRINGTON BOROUGH COUNCIL,http://statistics.data.gov.uk/id/local-authority/00EU,Environment & Regeneration,ENO,Housing Projects,82008,Disabled Persons Grant 1996,554000,27-Mar-13,1900114743,"3,918.00",Total Plumbing Solutions,102587
WARRINGTON BOROUGH COUNCIL,http://statistics.data.gov.uk/id/local-authority/00EU,Environment & Regeneration,ENO,Housing Projects,82008,Disabled Persons Grant 1996,554000,25-Mar-13,1900114498,"2,084.00",R Hough & Co,102596
WARRINGTON BOROUGH COUNCIL,http://statistics.data.gov.uk/id/local-authority/00EU,Neighbourhood & Community Services,NCS,Care Purchase - Learning Disability,54450,Direct Payments,552000,05-Mar-13,1900112763,849,Redacted Personal Data,102667
WARRINGTON BOROUGH COUNCIL,http://statistics.data.gov.uk/id/local-authority/00EU,Neighbourhood & Community Services,NCS,Care Purchase - Learning Disability,54450,Direct Payments,552000,05-Mar-13,1900112764,"1,570.00",Redacted Personal Data,102688
WARRINGTON BOROUGH COUNCIL,http://statistics.data.gov.uk/id/local-authority/00EU,Neighbourhood & Community Services,NCS,Care Purchase - Learning Disability,54450,Direct Payments,552000,05-Mar-13,1900112765,"1,273.00",Redacted Personal Data,102710
WARRINGTON BOROUGH COUNCIL,http://statistics.data.gov.uk/id/local-authority/00EU,Neighbourhood & Community Services,NCS,Care Purchase - Learning Disability,54450,Direct Payments,552000,05-Mar-13,1900112766,849,Redacted Personal Data,102718
WARRINGTON BOROUGH COUNCIL,http://statistics.data.gov.uk/id/local-authority/00EU,Assistant Chief Executive,CEX,HR Advisory,20005,Consult.& Prof. Serv,440000,11-Mar-13,1900113356,"9,496.00",North West Employers,102754
WARRINGTON BOROUGH COUNCIL,http://statistics.data.gov.uk/id/local-authority/00EU,Neighbourhood & Community Services,NCS,Care Purchase - Learning Disability,54450,Direct Payments,552000,05-Mar-13,1900112767,900,Redacted Personal Data,102759
WARRINGTON BOROUGH COUNCIL,http://statistics.data.gov.uk/id/local-authority/00EU,Children & Young People,CYP,Primary,81001,Contract Works,492550,13-Mar-13,1900113647,"22,033.00",Amspec Ltd,102763
WARRINGTON BOROUGH COUNCIL,http://statistics.data.gov.uk/id/local-authority/00EU,Children & Young People,CHL,Foster Allowances,31106,Fostering Allowance,550050,01-Mar-13,1900112181,522,Redacted Personal Data,102790
WARRINGTON BOROUGH COUNCIL,http://statistics.data.gov.uk/id/local-authority/00EU,Neighbourhood & Community Services,NCS,Care Purchase - Learning Disability,54450,CP-LongStayExternal,441150,21-Mar-13,1900114228,"8,464.00",Community Care Matters Limited,102791
WARRINGTON BOROUGH COUNCIL,http://statistics.data.gov.uk/id/local-authority/00EU,Neighbourhood & Community Services,NCS,Care Purchase Budget,54490,CP - Cont Care - External,441350,21-Mar-13,1900114228,"20,100.00",Community Care Matters Limited,102791
WARRINGTON BOROUGH COUNCIL,http://statistics.data.gov.uk/id/local-authority/00EU,Neighbourhood & Community Services,NCS,Care Purchase - Learning Disability,54450,CP-Nursing Care-External,441200,21-Mar-13,1900114229,"8,212.00",Community Care Matters Limited,102791
WARRINGTON BOROUGH COUNCIL,http://statistics.data.gov.uk/id/local-authority/00EU,Neighbourhood & Community Services,NCS,Care Purchase Budget,54490,CP - Cont Care - External,441350,21-Mar-13,1900114229,"19,408.00",Community Care Matters Limited,102791
WARRINGTON BOROUGH COUNCIL,http://statistics.data.gov.uk/id/local-authority/00EU,Neighbourhood & Community Services,NCS,Specialist Day Services,54750,Gen. Personal Needs,490850,12-Mar-13,1900113385,800,Walton Lea Project,102953
WARRINGTON BOROUGH COUNCIL,http://statistics.data.gov.uk/id/local-authority/00EU,Children & Young People,CHL,DSG Early Years PVI Settings,32417,Private & Voluntary 3 Year Olds,470100,01-Mar-13,1900112293,"6,095.00",Kids Planet Day Nursery Lymm,102992
WARRINGTON BOROUGH COUNCIL,http://statistics.data.gov.uk/id/local-authority/00EU,Children & Young People,CHL,DSG Early Years PVI Settings,32417,Private & Voluntary 4 Year Olds,470150,01-Mar-13,1900112370,"3,276.00",Kids Planet Day Nursery Lymm,102992
WARRINGTON BOROUGH COUNCIL,http://statistics.data.gov.uk/id/local-authority/00EU,Neighbourhood & Community Services,NCS,Care Purchase - OP & OT South,54480,Direct Payments,552000,05-Mar-13,1900112769,627,Redacted Personal Data,103028
WARRINGTON BOROUGH COUNCIL,http://statistics.data.gov.uk/id/local-authority/00EU,Neighbourhood & Community Services,NCS,Orford C.H Clothes Bank,51258,Management Fee,525550,14-Mar-13,1900113685,"2,300.00",The Orford Neighbourhood Project,103036
WARRINGTON BOROUGH COUNCIL,http://statistics.data.gov.uk/id/local-authority/00EU,Neighbourhood & Community Services,NCS,Care Purchase - OP & OT South,54480,CP-LongStayExternal,441150,21-Mar-13,1900114230,"3,898.00",Ashley House Residential Home,103045
WARRINGTON BOROUGH COUNCIL,http://statistics.data.gov.uk/id/local-authority/00EU,Children & Young People,CHL,DSG Early Years PVI Settings,32417,Private & Voluntary 3 Year Olds,470100,01-Mar-13,1900112320,"3,785.00",St Monica Catholic Pre School,103081
WARRINGTON BOROUGH COUNCIL,http://statistics.data.gov.uk/id/local-authority/00EU,Children & Young People,CHL,DSG Early Years PVI Settings,32417,Private & Voluntary 4 Year Olds,470150,01-Mar-13,1900112395,"2,453.00",St Monica Catholic Pre School,103081
WARRINGTON BOROUGH COUNCIL,http://statistics.data.gov.uk/id/local-authority/00EU,Children & Young People,CHL,DSG Early Years PVI Settings,32417,Private & Voluntary 3 Year Olds,470100,27-Mar-13,1900114645,"5,856.00",St Monica Catholic Pre School,103081
WARRINGTON BOROUGH COUNCIL,http://statistics.data.gov.uk/id/local-authority/00EU,Children & Young People,CHL,DSG Early Years PVI Settings,32417,Private & Voluntary 4 Year Olds,470150,27-Mar-13,1900114645,"13,505.00",St Monica Catholic Pre School,103081
WARRINGTON BOROUGH COUNCIL,http://statistics.data.gov.uk/id/local-authority/00EU,Neighbourhood & Community Services,NCS,Care Purchase - Learning Disability,54450,CP-Day Care-External,441100,22-Mar-13,1900114320,"2,344.00",Seashell Trust,103082
WARRINGTON BOROUGH COUNCIL,http://statistics.data.gov.uk/id/local-authority/00EU,Environment & Regeneration,ER0,Other Commercial Prop.,43560,Consult.& Prof. Serv,440000,08-Mar-13,1900113291,"1,478.00",Gva Grimley Liverpool,103086
WARRINGTON BOROUGH COUNCIL,http://statistics.data.gov.uk/id/local-authority/00EU,Neighbourhood & Community Services,NCS,Head of Integrated Commissioning,53500,Comforts Fund Expenditure,492150,14-Mar-13,1900113671,664,Macintyre Cafe,103174
WARRINGTON BOROUGH COUNCIL,http://statistics.data.gov.uk/id/local-authority/00EU,Neighbourhood & Community Services,NCS,Care Purchase - OP & OT Telecare,54460,CP-Domicil.External,440950,14-Mar-13,1900113730,"1,309.00",Safehands Network Ltd,103226
WARRINGTON BOROUGH COUNCIL,http://statistics.data.gov.uk/id/local-authority/00EU,Neighbourhood & Community Services,NCS,Care Purchase - PD,54440,CP-Domicil.External,440950,14-Mar-13,1900113730,"1,833.00",Safehands Network Ltd,103226
WARRINGTON BOROUGH COUNCIL,http://statistics.data.gov.uk/id/local-authority/00EU,Neighbourhood & Community Services,NCS,Care Purchase - OP & OT Central,54420,CP-Domicil.External,440950,14-Mar-13,1900113730,"5,429.00",Safehands Network Ltd,103226
WARRINGTON BOROUGH COUNCIL,http://statistics.data.gov.uk/id/local-authority/00EU,Neighbourhood & Community Services,NCS,Care Purchase - OP & OT South,54480,CP-Domicil.External,440950,14-Mar-13,1900113730,"8,724.00",Safehands Network Ltd,103226
WARRINGTON BOROUGH COUNCIL,http://statistics.data.gov.uk/id/local-authority/00EU,Neighbourhood & Community Services,NCS,Care Purchase -OP & OT East,54430,CP-Domicil.External,440950,14-Mar-13,1900113730,"9,939.00",Safehands Network Ltd,103226
WARRINGTON BOROUGH COUNCIL,http://statistics.data.gov.uk/id/local-authority/00EU,Neighbourhood & Community Services,NCS,Care Purchase - OP & OT West,54470,CP-Domicil.External,440950,14-Mar-13,1900113730,"13,848.00",Safehands Network Ltd,103226
WARRINGTON BOROUGH COUNCIL,http://statistics.data.gov.uk/id/local-authority/00EU,Neighbourhood & Community Services,NCS,Intermediate Care,54770,Gen. Personal Needs,490850,21-Mar-13,1900114271,526,Safehands Network Ltd,103226
WARRINGTON BOROUGH COUNCIL,http://statistics.data.gov.uk/id/local-authority/00EU,Neighbourhood & Community Services,NCS,Care Purchase Budget,54490,CP - Cont Care - External,441350,25-Mar-13,1900114415,"2,178.00",Home Instead Senior Care,103236
WARRINGTON BOROUGH COUNCIL,http://statistics.data.gov.uk/id/local-authority/00EU,Environment & Regeneration,ER0,Private Sector Hsg.,43660,Gen. Personal Needs,490850,20-Mar-13,1900114153,"1,200.00",The Energy Audit Company Ltd,103314
WARRINGTON BOROUGH COUNCIL,http://statistics.data.gov.uk/id/local-authority/00EU,Neighbourhood & Community Services,NCS,Care Purchase - PD,54440,Direct Payments,552000,05-Mar-13,1900112777,935,Redacted Personal Data,103320
WARRINGTON BOROUGH COUNCIL,http://statistics.data.gov.uk/id/local-authority/00EU,Environment & Regeneration,ER0,ICT & Business Improvement,23020,ICT Comms - Line Usage,450300,07-Mar-13,1900113158,"1,571.00",Cheshire West And Chester,103357
WARRINGTON BOROUGH COUNCIL,http://statistics.data.gov.uk/id/local-authority/00EU,Corporate Financing,COR,Concessionary Travel,60000,Bus Passes,505000,25-Mar-13,1900114497,"3,570.00",Cheshire West And Chester,103357
WARRINGTON BOROUGH COUNCIL,http://statistics.data.gov.uk/id/local-authority/00EU,Children & Young People,CHL,DSG Inter Authority Recoupment,32009,Recoupment Charges,490700,26-Mar-13,1900114523,"4,426.00",Cheshire West And Chester,103357
WARRINGTON BOROUGH COUNCIL,http://statistics.data.gov.uk/id/local-authority/00EU,Neighbourhood & Community Services,NCS,Care Purchase - PD,54440,Direct Payments,552000,05-Mar-13,1900112778,"1,740.00",Redacted Personal Data,103372
WARRINGTON BOROUGH COUNCIL,http://statistics.data.gov.uk/id/local-authority/00EU,Neighbourhood & Community Services,NCS,Care Purchase - PD,54440,Direct Payments,552000,05-Mar-13,1900112779,"1,732.00",Redacted Personal Data,103404
WARRINGTON BOROUGH COUNCIL,http://statistics.data.gov.uk/id/local-authority/00EU,Assistant Chief Executive,CEX,Legal Services,11200,Consult.& Prof. Serv,440000,15-Mar-13,1900113774,945,Centre For Assessment Ltd,103443
WARRINGTON BOROUGH COUNCIL,http://statistics.data.gov.uk/id/local-authority/00EU,Children & Young People,CHL,DSG Early Years PVI Settings,32417,Private & Voluntary 3 Year Olds,470100,01-Mar-13,1900112308,586,Padgate Wasps,103453
WARRINGTON BOROUGH COUNCIL,http://statistics.data.gov.uk/id/local-authority/00EU,Children & Young People,CHL,DSG Early Years PVI Settings,32417,Private & Voluntary 4 Year Olds,470150,01-Mar-13,1900112383,546,Padgate Wasps,103453
WARRINGTON BOROUGH COUNCIL,http://statistics.data.gov.uk/id/local-authority/00EU,Children & Young People,CHL,DSG Early Years PVI Settings,32417,Private & Voluntary 3 Year Olds,470100,26-Mar-13,1900114848,"3,347.00",Padgate Wasps,103453
WARRINGTON BOROUGH COUNCIL,http://statistics.data.gov.uk/id/local-authority/00EU,Neighbourhood & Community Services,NCS,Neighbourhood Co-o West,51307,Payment of Grants,470050,06-Mar-13,1900112601,570,Dorchester Residents Association,103495
WARRINGTON BOROUGH COUNCIL,http://statistics.data.gov.uk/id/local-authority/00EU,Neighbourhood & Community Services,NCS,Care Purchase - PD,54440,CP ExternalOther Exp,440800,07-Mar-13,1900113221,750,BedSpace,103530
WARRINGTON BOROUGH COUNCIL,http://statistics.data.gov.uk/id/local-authority/00EU,Neighbourhood & Community Services,NCS,Care Purchase - PD,54440,Direct Payments,552000,05-Mar-13,1900112787,"1,109.00",Redacted Personal Data,103587
WARRINGTON BOROUGH COUNCIL,http://statistics.data.gov.uk/id/local-authority/00EU,Neighbourhood & Community Services,NCS,Care Purchase - OP & OT West,54470,CP-Nursing Care-External,441200,13-Mar-13,1900113465,"1,427.00",Four Seasons Ta Cherry Trees,103592
WARRINGTON BOROUGH COUNCIL,http://statistics.data.gov.uk/id/local-authority/00EU,Neighbourhood & Community Services,NCS,Care Purchase - PD,54440,Direct Payments,552000,05-Mar-13,1900112788,"1,046.00",Redacted Personal Data,103593
WARRINGTON BOROUGH COUNCIL,http://statistics.data.gov.uk/id/local-authority/00EU,Children & Young People,CHL,EIG Funding - Childcare Team,31600,Payment of Grants,470050,07-Mar-13,1900113162,518,J K Links Clubs,103600
WARRINGTON BOROUGH COUNCIL,http://statistics.data.gov.uk/id/local-authority/00EU,Neighbourhood & Community Services,NCS,Care Purchase - Learning Disability,54450,Direct Payments,552000,05-Mar-13,1900112789,"1,167.00",Redacted Personal Data,103611
WARRINGTON BOROUGH COUNCIL,http://statistics.data.gov.uk/id/local-authority/00EU,Neighbourhood & Community Services,NCS,Care Purchase - PD,54440,Direct Payments,552000,05-Mar-13,1900112790,"1,594.00",Redacted Personal Data,103613
WARRINGTON BOROUGH COUNCIL,http://statistics.data.gov.uk/id/local-authority/00EU,Neighbourhood & Community Services,NCS,Care Purchase - Learning Disability,54450,Direct Payments,552000,05-Mar-13,1900112791,"1,401.00",Redacted Personal Data,103614
WARRINGTON BOROUGH COUNCIL,http://statistics.data.gov.uk/id/local-authority/00EU,Environment & Regeneration,ENP,Environment & Regeneration,82000,Consult.& Prof. Serv,440000,14-Mar-13,1900113679,600,Sda Consulting Llp,103628
WARRINGTON BOROUGH COUNCIL,http://statistics.data.gov.uk/id/local-authority/00EU,Neighbourhood & Community Services,NCS,Care Purchase - Mental Health Team 1,54230,CP-LongStayExternal,441150,14-Mar-13,1900113717,"3,411.00",Bennett House Ads,103634
WARRINGTON BOROUGH COUNCIL,http://statistics.data.gov.uk/id/local-authority/00EU,Neighbourhood & Community Services,NCS,Care Purchase - Mental Health Team 1,54230,CP-LongStayExternal,441150,14-Mar-13,1900113727,609,Bennett House Ads,103634
WARRINGTON BOROUGH COUNCIL,http://statistics.data.gov.uk/id/local-authority/00EU,Assistant Chief Executive,CEX,Accountancy and Financial Planning,10100,Subscriptions,470000,05-Mar-13,1900112539,"7,090.00",CIPFA Business Limited,103650
WARRINGTON BOROUGH COUNCIL,http://statistics.data.gov.uk/id/local-authority/00EU,Assistant Chief Executive,CEX,Accountancy and Financial Planning,10100,Subscriptions,470000,06-Mar-13,1900112602,"6,900.00",CIPFA Business Limited,103650
WARRINGTON BOROUGH COUNCIL,http://statistics.data.gov.uk/id/local-authority/00EU,Neighbourhood & Community Services,NCS,Care Purchase - Learning Disability,54450,Direct Payments,552000,05-Mar-13,1900112793,964,Redacted Personal Data,103660
WARRINGTON BOROUGH COUNCIL,http://statistics.data.gov.uk/id/local-authority/00EU,Neighbourhood & Community Services,NCS,Care Purchase - PD,54440,Direct Payments,552000,05-Mar-13,1900112794,"1,105.00",Redacted Personal Data,103668
WARRINGTON BOROUGH COUNCIL,http://statistics.data.gov.uk/id/local-authority/00EU,Neighbourhood & Community Services,NCS,Care Purchase - PD,54440,Direct Payments,552000,05-Mar-13,1900112795,896,Redacted Personal Data,103674
WARRINGTON BOROUGH COUNCIL,http://statistics.data.gov.uk/id/local-authority/00EU,Neighbourhood & Community Services,NCS,Care Purchase - Learning Disability,54450,CP-LongStayExternal,441150,13-Mar-13,1900113452,"10,388.00",Bank Hall Farm,103693
WARRINGTON BOROUGH COUNCIL,http://statistics.data.gov.uk/id/local-authority/00EU,Neighbourhood & Community Services,NCS,Care Purchase - Learning Disability,54450,Direct Payments,552000,05-Mar-13,1900112796,"2,060.00",Redacted Personal Data,103696
WARRINGTON BOROUGH COUNCIL,http://statistics.data.gov.uk/id/local-authority/00EU,Neighbourhood & Community Services,NCS,Care Purchase - Learning Disability,54450,Direct Payments,552000,05-Mar-13,1900112797,"1,146.00",Redacted Personal Data,103697
WARRINGTON BOROUGH COUNCIL,http://statistics.data.gov.uk/id/local-authority/00EU,Neighbourhood & Community Services,NCS,Care Purchase - PD,54440,Direct Payments,552000,05-Mar-13,1900112800,"2,313.00",Redacted Personal Data,103730
WARRINGTON BOROUGH COUNCIL,http://statistics.data.gov.uk/id/local-authority/00EU,Assistant Chief Executive,CEX,Coroners Service,11100,Removal Bodies & Exc,440350,07-Mar-13,1900113195,"1,056.00",Houghtons Funeral Directors Ltd,103735
WARRINGTON BOROUGH COUNCIL,http://statistics.data.gov.uk/id/local-authority/00EU,Children & Young People,CHL,Federation of Music Services,32220,Events Costs,490000,11-Mar-13,1900113318,"1,000.00",Northern Chamber Orchestra,103752
WARRINGTON BOROUGH COUNCIL,http://statistics.data.gov.uk/id/local-authority/00EU,Neighbourhood & Community Services,NCS,Care Purchase - Learning Disability,54450,Direct Payments,552000,05-Mar-13,1900112803,"9,177.00",Redacted Personal Data,103771
WARRINGTON BOROUGH COUNCIL,http://statistics.data.gov.uk/id/local-authority/00EU,Neighbourhood & Community Services,NCS,Care Purchase - PD,54440,Direct Payments,552000,05-Mar-13,1900112804,"1,061.00",Redacted Personal Data,103794
WARRINGTON BOROUGH COUNCIL,http://statistics.data.gov.uk/id/local-authority/00EU,Children & Young People,CHL,Child Disability,32212,Direct Payments,552000,05-Mar-13,1900112805,502,Redacted Personal Data,103820
WARRINGTON BOROUGH COUNCIL,http://statistics.data.gov.uk/id/local-authority/00EU,Neighbourhood & Community Services,NCS,Care Purchase - Learning Disability,54450,CP-LongStayExternal,441150,13-Mar-13,1900113484,"3,477.00",Manor Care Centre,103831
WARRINGTON BOROUGH COUNCIL,http://statistics.data.gov.uk/id/local-authority/00EU,Neighbourhood & Community Services,NCS,Care Purchase - Learning Disability,54450,Direct Payments,552000,05-Mar-13,1900112807,672,Redacted Personal Data,103832
WARRINGTON BOROUGH COUNCIL,http://statistics.data.gov.uk/id/local-authority/00EU,Neighbourhood & Community Services,NCS,Care Purchase - PD,54440,Supporting People - External,441250,05-Mar-13,1900112808,520,Redacted Personal Data,103871
WARRINGTON BOROUGH COUNCIL,http://statistics.data.gov.uk/id/local-authority/00EU,Neighbourhood & Community Services,NCS,Care Purchase - OP & OT South,54480,CP-Nursing Care-External,441200,25-Mar-13,1900114380,"2,064.00",St Monica Trust,104021
WARRINGTON BOROUGH COUNCIL,http://statistics.data.gov.uk/id/local-authority/00EU,Neighbourhood & Community Services,NCS,Care Purchase - OP & OT South,54480,CP-Nursing Care-External,441200,25-Mar-13,1900114381,"2,064.00",St Monica Trust,104021
WARRINGTON BOROUGH COUNCIL,http://statistics.data.gov.uk/id/local-authority/00EU,Children & Young People,CHL,Agency Placements,30904,CP ExternalOther Exp,440800,11-Mar-13,1900113366,"4,100.00",Quality Protects Children,104027
WARRINGTON BOROUGH COUNCIL,http://statistics.data.gov.uk/id/local-authority/00EU,Children & Young People,CHL,Agency Placements,30904,CP ExternalOther Exp,440800,22-Mar-13,1900114288,"8,200.00",Quality Protects Children,104027
WARRINGTON BOROUGH COUNCIL,http://statistics.data.gov.uk/id/local-authority/00EU,Environment & Regeneration,ER0,Housing Strategy,43620,Misc (Contingency),551250,27-Mar-13,1900114749,"8,989.00",Low Carbon Lymm,104079
WARRINGTON BOROUGH COUNCIL,http://statistics.data.gov.uk/id/local-authority/00EU,Neighbourhood & Community Services,NCS,Care Purchase - Mental Health Team 1,54230,CP-Domicil.External,440950,22-Mar-13,1900114309,518,Bluebird Care Warrington,104094
WARRINGTON BOROUGH COUNCIL,http://statistics.data.gov.uk/id/local-authority/00EU,Neighbourhood & Community Services,NCS,Care Purchase - Learning Disability,54450,CP-Domicil.External,440950,22-Mar-13,1900114309,568,Bluebird Care Warrington,104094
WARRINGTON BOROUGH COUNCIL,http://statistics.data.gov.uk/id/local-authority/00EU,Neighbourhood & Community Services,NCS,Care Purchase - Mental Health Team 2,54240,CP-Domicil.External,440950,22-Mar-13,1900114309,588,Bluebird Care Warrington,104094
WARRINGTON BOROUGH COUNCIL,http://statistics.data.gov.uk/id/local-authority/00EU,Neighbourhood & Community Services,NCS,Care Purchase - OPMH,54220,CP-Domicil.External,440950,22-Mar-13,1900114309,635,Bluebird Care Warrington,104094
WARRINGTON BOROUGH COUNCIL,http://statistics.data.gov.uk/id/local-authority/00EU,Neighbourhood & Community Services,NCS,Care Purchase Budget,54490,CP - Cont Care - External,441350,22-Mar-13,1900114309,"1,500.00",Bluebird Care Warrington,104094
WARRINGTON BOROUGH COUNCIL,http://statistics.data.gov.uk/id/local-authority/00EU,Environment & Regeneration,ER1,Transport Holding Account,41311,Road Fund Licences,300200,19-Mar-13,1900114024,650,Post Office Counters Ltd,100004
WARRINGTON BOROUGH COUNCIL,http://statistics.data.gov.uk/id/local-authority/00EU,Environment & Regeneration,ER1,Transport Holding Account,41311,Road Fund Licences,300200,19-Mar-13,1900114024,650,Post Office Counters Ltd,100004
WARRINGTON BOROUGH COUNCIL,http://statistics.data.gov.uk/id/local-authority/00EU,Environment & Regeneration,ER0,ICT & Business Improvement,23020,ICT Comms - Line Rental,450200,01-Mar-13,1900112210,547,Vodafone,100023
WARRINGTON BOROUGH COUNCIL,http://statistics.data.gov.uk/id/local-authority/00EU,Environment & Regeneration,ER0,ICT & Business Improvement,23020,ICT Comms - Line Usage,450300,01-Mar-13,1900112210,"2,181.00",Vodafone,100023
WARRINGTON BOROUGH COUNCIL,http://statistics.data.gov.uk/id/local-authority/00EU,Environment & Regeneration,ER0,ICT & Business Improvement,23020,ICT Comms - Line Rental,450200,01-Mar-13,1900112219,547,Vodafone,100023
WARRINGTON BOROUGH COUNCIL,http://statistics.data.gov.uk/id/local-authority/00EU,Environment & Regeneration,ER0,ICT & Business Improvement,23020,ICT Comms - Line Usage,450300,01-Mar-13,1900112219,"2,298.00",Vodafone,100023
WARRINGTON BOROUGH COUNCIL,http://statistics.data.gov.uk/id/local-authority/00EU,Environment & Regeneration,ER0,ICT & Business Improvement,23020,ICT Comms - Line Rental,450200,01-Mar-13,1900112226,547,Vodafone,100023
WARRINGTON BOROUGH COUNCIL,http://statistics.data.gov.uk/id/local-authority/00EU,Environment & Regeneration,ER0,ICT & Business Improvement,23020,ICT Comms - Line Usage,450300,01-Mar-13,1900112226,"2,315.00",Vodafone,100023
WARRINGTON BOROUGH COUNCIL,http://statistics.data.gov.uk/id/local-authority/00EU,Neighbourhood & Community Services,NCS,Care Purchase - PD,54440,Direct Payments,552000,05-Mar-13,1900112656,"2,768.00",Redacted Personal Data,100049
WARRINGTON BOROUGH COUNCIL,http://statistics.data.gov.uk/id/local-authority/00EU,Neighbourhood & Community Services,NCS,Care Purchase - PD,54440,CP Adult Placement,443450,28-Mar-13,1900114993,"2,991.00",Redacted Personal Data,100052
WARRINGTON BOROUGH COUNCIL,http://statistics.data.gov.uk/id/local-authority/00EU,Neighbourhood & Community Services,NCS,Supporting People Grant Payments,53260,Sheltd/Xtra Care Hsing and Comm Alarms,535050,07-Mar-13,1900113166,"2,986.00",Muir Housing Association Ltd,100053
WARRINGTON BOROUGH COUNCIL,http://statistics.data.gov.uk/id/local-authority/00EU,Neighbourhood & Community Services,NCS,Supporting People Grant Payments,53260,Sheltd/Xtra Care Hsing and Comm Alarms,535050,07-Mar-13,1900113193,"2,986.00",Muir Housing Association Ltd,100053
WARRINGTON BOROUGH COUNCIL,http://statistics.data.gov.uk/id/local-authority/00EU,Neighbourhood & Community Services,NCS,Supporting People Grant Payments,53260,Sheltd/Xtra Care Hsing and Comm Alarms,535050,25-Mar-13,1900114377,"3,123.00",Muir Housing Association Ltd,100053
WARRINGTON BOROUGH COUNCIL,http://statistics.data.gov.uk/id/local-authority/00EU,Environment & Regeneration,ENO,Housing Projects,82008,Disabled Persons Grant 1996,554000,25-Mar-13,1900114501,"2,171.00",Muir Housing Association Ltd,100053
WARRINGTON BOROUGH COUNCIL,http://statistics.data.gov.uk/id/local-authority/00EU,Neighbourhood & Community Services,NCS,Care Purchase Budget,54490,CP ExternalOther Exp,440800,05-Mar-13,1900112529,"4,713.00",Heathfield Residental Home,100059
WARRINGTON BOROUGH COUNCIL,http://statistics.data.gov.uk/id/local-authority/00EU,Neighbourhood & Community Services,NCS,Care Purchase Budget,54490,CP ExternalOther Exp,440800,06-Mar-13,1900112575,"14,000.00",Heathfield Residental Home,100059
WARRINGTON BOROUGH COUNCIL,http://statistics.data.gov.uk/id/local-authority/00EU,Neighbourhood & Community Services,NCS,Care Purchase Budget,54490,CP ExternalOther Exp,440800,13-Mar-13,1900113539,"9,419.00",Heathfield Residental Home,100059
WARRINGTON BOROUGH COUNCIL,http://statistics.data.gov.uk/id/local-authority/00EU,Neighbourhood & Community Services,NCS,Care Purchase - PD,54440,Supporting People - External,441250,05-Mar-13,1900112530,691,Housing 21,100060
WARRINGTON BOROUGH COUNCIL,http://statistics.data.gov.uk/id/local-authority/00EU,Neighbourhood & Community Services,NCS,Care Purchase - PD,54440,CP-Domicil.External,440950,05-Mar-13,1900112530,"5,969.00",Housing 21,100060
WARRINGTON BOROUGH COUNCIL,http://statistics.data.gov.uk/id/local-authority/00EU,Neighbourhood & Community Services,NCS,Care Purchase - OP & OT South,54480,CP-Domicil.External,440950,05-Mar-13,1900112530,"6,429.00",Housing 21,100060
WARRINGTON BOROUGH COUNCIL,http://statistics.data.gov.uk/id/local-authority/00EU,Neighbourhood & Community Services,NCS,Care Purchase -OP & OT East,54430,CP-Domicil.External,440950,05-Mar-13,1900112530,"6,666.00",Housing 21,100060
WARRINGTON BOROUGH COUNCIL,http://statistics.data.gov.uk/id/local-authority/00EU,Neighbourhood & Community Services,NCS,Care Purchase - OP & OT Central,54420,CP-Domicil.External,440950,05-Mar-13,1900112530,"7,916.00",Housing 21,100060
WARRINGTON BOROUGH COUNCIL,http://statistics.data.gov.uk/id/local-authority/00EU,Neighbourhood & Community Services,NCS,Care Purchase - OP & OT West,54470,CP-Domicil.External,440950,05-Mar-13,1900112530,"13,659.00",Housing 21,100060
WARRINGTON BOROUGH COUNCIL,http://statistics.data.gov.uk/id/local-authority/00EU,Neighbourhood & Community Services,NCS,Care Purchase - PD,54440,CP-Domicil.External,440950,22-Mar-13,1900114328,691,Housing 21,100060
WARRINGTON BOROUGH COUNCIL,http://statistics.data.gov.uk/id/local-authority/00EU,Neighbourhood & Community Services,NCS,Care Purchase Budget,54490,CP-Domicil.External,440950,22-Mar-13,1900114328,"1,336.00",Housing 21,100060
WARRINGTON BOROUGH COUNCIL,http://statistics.data.gov.uk/id/local-authority/00EU,Neighbourhood & Community Services,NCS,Care Purchase -OP & OT East,54430,CP-Domicil.External,440950,22-Mar-13,1900114328,"1,954.00",Housing 21,100060
WARRINGTON BOROUGH COUNCIL,http://statistics.data.gov.uk/id/local-authority/00EU,Neighbourhood & Community Services,NCS,Care Purchase - PD,54440,CP-Domicil.External,440950,22-Mar-13,1900114328,"2,427.00",Housing 21,100060
WARRINGTON BOROUGH COUNCIL,http://statistics.data.gov.uk/id/local-authority/00EU,Neighbourhood & Community Services,NCS,Care Purchase - OP & OT Central,54420,CP-Domicil.External,440950,22-Mar-13,1900114328,"4,771.00",Housing 21,100060
WARRINGTON BOROUGH COUNCIL,http://statistics.data.gov.uk/id/local-authority/00EU,Neighbourhood & Community Services,NCS,Care Purchase - OP & OT South,54480,CP-Domicil.External,440950,22-Mar-13,1900114328,"5,504.00",Housing 21,100060
WARRINGTON BOROUGH COUNCIL,http://statistics.data.gov.uk/id/local-authority/00EU,Neighbourhood & Community Services,NCS,Care Purchase - OP & OT West,54470,CP-Domicil.External,440950,22-Mar-13,1900114328,"7,303.00",Housing 21,100060
WARRINGTON BOROUGH COUNCIL,http://statistics.data.gov.uk/id/local-authority/00EU,Neighbourhood & Community Services,NCS,Care Purchase - PD,54440,Supporting People - External,441250,22-Mar-13,1900114334,691,Housing 21,100060
WARRINGTON BOROUGH COUNCIL,http://statistics.data.gov.uk/id/local-authority/00EU,Neighbourhood & Community Services,NCS,Care Purchase - PD,54440,CP-Domicil.External,440950,22-Mar-13,1900114334,"2,556.00",Housing 21,100060
WARRINGTON BOROUGH COUNCIL,http://statistics.data.gov.uk/id/local-authority/00EU,Neighbourhood & Community Services,NCS,Care Purchase -OP & OT East,54430,CP-Domicil.External,440950,22-Mar-13,1900114334,"2,590.00",Housing 21,100060
WARRINGTON BOROUGH COUNCIL,http://statistics.data.gov.uk/id/local-authority/00EU,Neighbourhood & Community Services,NCS,Care Purchase - OP & OT Central,54420,CP-Domicil.External,440950,22-Mar-13,1900114334,"4,388.00",Housing 21,100060
WARRINGTON BOROUGH COUNCIL,http://statistics.data.gov.uk/id/local-authority/00EU,Neighbourhood & Community Services,NCS,Care Purchase - OP & OT South,54480,CP-Domicil.External,440950,22-Mar-13,1900114334,"5,892.00",Housing 21,100060
WARRINGTON BOROUGH COUNCIL,http://statistics.data.gov.uk/id/local-authority/00EU,Neighbourhood & Community Services,NCS,Care Purchase - OP & OT West,54470,CP-Domicil.External,440950,22-Mar-13,1900114334,"8,447.00",Housing 21,100060
WARRINGTON BOROUGH COUNCIL,http://statistics.data.gov.uk/id/local-authority/00EU,Neighbourhood & Community Services,NCS,Care Purchase - PD,54440,Supporting People - External,441250,25-Mar-13,1900114357,691,Housing 21,100060
WARRINGTON BOROUGH COUNCIL,http://statistics.data.gov.uk/id/local-authority/00EU,Neighbourhood & Community Services,NCS,Care Purchase - PD,54440,CP-Domicil.External,440950,25-Mar-13,1900114357,"2,542.00",Housing 21,100060
WARRINGTON BOROUGH COUNCIL,http://statistics.data.gov.uk/id/local-authority/00EU,Neighbourhood & Community Services,NCS,Care Purchase -OP & OT East,54430,CP-Domicil.External,440950,25-Mar-13,1900114357,"2,674.00",Housing 21,100060
WARRINGTON BOROUGH COUNCIL,http://statistics.data.gov.uk/id/local-authority/00EU,Neighbourhood & Community Services,NCS,Care Purchase - OP & OT Central,54420,CP-Domicil.External,440950,25-Mar-13,1900114357,"5,368.00",Housing 21,100060
WARRINGTON BOROUGH COUNCIL,http://statistics.data.gov.uk/id/local-authority/00EU,Neighbourhood & Community Services,NCS,Care Purchase - OP & OT South,54480,CP-Domicil.External,440950,25-Mar-13,1900114357,"5,866.00",Housing 21,100060
WARRINGTON BOROUGH COUNCIL,http://statistics.data.gov.uk/id/local-authority/00EU,Neighbourhood & Community Services,NCS,Care Purchase - OP & OT West,54470,CP-Domicil.External,440950,25-Mar-13,1900114357,"8,609.00",Housing 21,100060
WARRINGTON BOROUGH COUNCIL,http://statistics.data.gov.uk/id/local-authority/00EU,Assistant Chief Executive,CEX,Coroners Service,11100,Reimbursement for Deputy Coroner,440400,18-Mar-13,1900113868,"4,113.00",Dr J E Napier,100061
WARRINGTON BOROUGH COUNCIL,http://statistics.data.gov.uk/id/local-authority/00EU,Assistant Chief Executive,CEX,Coroners Service,11100,Reimbursement for Deputy Coroner,440400,26-Mar-13,1900114516,"2,841.00",Dr J E Napier,100061
WARRINGTON BOROUGH COUNCIL,http://statistics.data.gov.uk/id/local-authority/00EU,Assistant Chief Executive,CEX,Coroners Service,11100,Post Mortem Fees-Rep,440250,18-Mar-13,1900113877,"1,408.00",Dr C M Manson,100080
WARRINGTON BOROUGH COUNCIL,http://statistics.data.gov.uk/id/local-authority/00EU,Neighbourhood & Community Services,NCS,Care Purchase - Mental Health Team 2,54240,CP-LongStayExternal,441150,21-Mar-13,1900114212,"2,368.00",Phoenix House,100085
WARRINGTON BOROUGH COUNCIL,http://statistics.data.gov.uk/id/local-authority/00EU,Neighbourhood & Community Services,NCS,Broomfields Leisure Centre,51013,Operating Lease Repayment,650350,08-Mar-13,1900113293,"21,527.00",De Lage Landen Leasing Ltd,100097
WARRINGTON BOROUGH COUNCIL,http://statistics.data.gov.uk/id/local-authority/00EU,Neighbourhood & Community Services,NCS,Birchwood Tennis Centre,51005,Operating Lease Repayment,650350,08-Mar-13,1900113295,"30,435.00",De Lage Landen Leasing Ltd,100097
WARRINGTON BOROUGH COUNCIL,http://statistics.data.gov.uk/id/local-authority/00EU,Neighbourhood & Community Services,NCS,Great Sankey Leisure,51018,Operating Lease Repayment,650350,08-Mar-13,1900113299,"22,933.00",De Lage Landen Leasing Ltd,100097
WARRINGTON BOROUGH COUNCIL,http://statistics.data.gov.uk/id/local-authority/00EU,Neighbourhood & Community Services,NCS,Care Purchase - PD,54440,CP-LongStayExternal,441150,05-Mar-13,1900112551,"10,630.00",Voyage Care,100099
WARRINGTON BOROUGH COUNCIL,http://statistics.data.gov.uk/id/local-authority/00EU,Neighbourhood & Community Services,NCS,Care Purchase - ABI,54260,CP-LongStayExternal,441150,05-Mar-13,1900112552,"6,428.00",Voyage Care,100099
WARRINGTON BOROUGH COUNCIL,http://statistics.data.gov.uk/id/local-authority/00EU,Neighbourhood & Community Services,NCS,Care Purchase - Learning Disability,54450,CP-LongStayExternal,441150,13-Mar-13,1900113474,"8,418.00",Voyage Care,100099
WARRINGTON BOROUGH COUNCIL,http://statistics.data.gov.uk/id/local-authority/00EU,Neighbourhood & Community Services,NCS,Care Purchase - Mental Health Team 3,54250,CP-LongStayExternal,441150,13-Mar-13,1900113483,"7,085.00",Voyage Care,100099
WARRINGTON BOROUGH COUNCIL,http://statistics.data.gov.uk/id/local-authority/00EU,Neighbourhood & Community Services,NCS,Care Purchase - OP & OT Central,54420,CP-LongStayExternal,441150,13-Mar-13,1900113504,"5,800.00",Voyage Care,100099
WARRINGTON BOROUGH COUNCIL,http://statistics.data.gov.uk/id/local-authority/00EU,Neighbourhood & Community Services,NCS,Care Purchase - ABI,54260,CP-LongStayExternal,441150,13-Mar-13,1900113505,"6,428.00",Voyage Care,100099
WARRINGTON BOROUGH COUNCIL,http://statistics.data.gov.uk/id/local-authority/00EU,Neighbourhood & Community Services,NCS,Care Purchase - PD,54440,CP-Nursing Care-External,441200,13-Mar-13,1900113509,"5,360.00",Voyage Care,100099
WARRINGTON BOROUGH COUNCIL,http://statistics.data.gov.uk/id/local-authority/00EU,Children & Young People,CHL,Contact Centre,31006,Gas,210050,21-Mar-13,1900114182,"1,421.00",British Gas,100128
WARRINGTON BOROUGH COUNCIL,http://statistics.data.gov.uk/id/local-authority/00EU,Environment & Regeneration,ER0,Homelessness,43650,Storage Facilities,441900,05-Mar-13,1900112493,"1,175.00",Storage Management Co,100129
WARRINGTON BOROUGH COUNCIL,http://statistics.data.gov.uk/id/local-authority/00EU,Assistant Chief Executive,CEX,Business Support Centre,52120,Data Storage,443050,05-Mar-13,1900112505,733,Storage Management Co,100129
WARRINGTON BOROUGH COUNCIL,http://statistics.data.gov.uk/id/local-authority/00EU,Neighbourhood & Community Services,NCS,Care Purchase - OP & OT Central,54420,CP-Domicil.External,440950,22-Mar-13,1900114309,"5,841.00",Bluebird Care Warrington,104094
WARRINGTON BOROUGH COUNCIL,http://statistics.data.gov.uk/id/local-authority/00EU,Neighbourhood & Community Services,NCS,Care Purchase - OP & OT West,54470,CP-Domicil.External,440950,22-Mar-13,1900114309,"10,877.00",Bluebird Care Warrington,104094
WARRINGTON BOROUGH COUNCIL,http://statistics.data.gov.uk/id/local-authority/00EU,Neighbourhood & Community Services,NCS,Care Purchase -OP & OT East,54430,CP-Domicil.External,440950,22-Mar-13,1900114309,"11,895.00",Bluebird Care Warrington,104094
WARRINGTON BOROUGH COUNCIL,http://statistics.data.gov.uk/id/local-authority/00EU,Neighbourhood & Community Services,NCS,Care Purchase - PD,54440,CP-Domicil.External,440950,22-Mar-13,1900114309,"14,832.00",Bluebird Care Warrington,104094
WARRINGTON BOROUGH COUNCIL,http://statistics.data.gov.uk/id/local-authority/00EU,Neighbourhood & Community Services,NCS,Care Purchase - OP & OT South,54480,CP-Domicil.External,440950,22-Mar-13,1900114309,"15,392.00",Bluebird Care Warrington,104094
WARRINGTON BOROUGH COUNCIL,http://statistics.data.gov.uk/id/local-authority/00EU,Children & Young People,CHL,Legal Fees - Safeguarding,30100,Legal Costs Incurred,440200,01-Mar-13,1900112215,"7,350.00",Redacted Personal Data,104162
WARRINGTON BOROUGH COUNCIL,http://statistics.data.gov.uk/id/local-authority/00EU,Environment & Regeneration,ER1,Walton Estate,41430,Materials,400500,27-Mar-13,1900114674,854,Walton Christmas Tree Centre,104180
WARRINGTON BOROUGH COUNCIL,http://statistics.data.gov.uk/id/local-authority/00EU,Neighbourhood & Community Services,NCS,Care Purchase - PD,54440,Direct Payments,552000,05-Mar-13,1900112817,"1,179.00",Redacted Personal Data,104205
WARRINGTON BOROUGH COUNCIL,http://statistics.data.gov.uk/id/local-authority/00EU,Neighbourhood & Community Services,NCS,DAT Pooled Budget,53860,Drug Action,443600,25-Mar-13,1900114472,748,Hall And Stevens Pharmacy,104278
WARRINGTON BOROUGH COUNCIL,http://statistics.data.gov.uk/id/local-authority/00EU,Neighbourhood & Community Services,NCS,Care Purchase - OP & OT Central,54420,CP-LongStayExternal,441150,13-Mar-13,1900113551,"2,208.00",HC1 Ltd County Homes,104325
WARRINGTON BOROUGH COUNCIL,http://statistics.data.gov.uk/id/local-authority/00EU,Neighbourhood & Community Services,NCS,Care Purchase - OP & OT Central,54420,CP-Nursing Care-External,441200,13-Mar-13,1900113553,"2,208.00",HC1 Ltd County Homes,104325
WARRINGTON BOROUGH COUNCIL,http://statistics.data.gov.uk/id/local-authority/00EU,Neighbourhood & Community Services,NCS,Care Purchase - PD,54440,Direct Payments,552000,05-Mar-13,1900112819,849,Redacted Personal Data,104327
WARRINGTON BOROUGH COUNCIL,http://statistics.data.gov.uk/id/local-authority/00EU,Children & Young People,CHL,CiC Team 2,31101,Looked after children in Warrington,301000,28-Mar-13,1900115068,"8,813.00",Caritas Care Ltd,104418
WARRINGTON BOROUGH COUNCIL,http://statistics.data.gov.uk/id/local-authority/00EU,Environment & Regeneration,ER0,Time Square,43551,Consult.& Prof. Serv,440000,27-Mar-13,1900114783,950,Knight Frank Llp,104426
WARRINGTON BOROUGH COUNCIL,http://statistics.data.gov.uk/id/local-authority/00EU,Environment & Regeneration,ER0,Time Square,43551,Service Charges,220050,27-Mar-13,1900114799,"15,754.00",Knight Frank Llp,104426
WARRINGTON BOROUGH COUNCIL,http://statistics.data.gov.uk/id/local-authority/00EU,Environment & Regeneration,ER1,Walton Hall Catering,41433,Protective Clothing,420050,08-Mar-13,1900113255,813,Alexandra Plc,104462
WARRINGTON BOROUGH COUNCIL,http://statistics.data.gov.uk/id/local-authority/00EU,Assistant Chief Executive,CEX,Coroners Service,11100,Post Mortem Fees-Rep,440250,18-Mar-13,1900113882,"2,850.00",Dr M S Al-Jafari,104464
WARRINGTON BOROUGH COUNCIL,http://statistics.data.gov.uk/id/local-authority/00EU,Assistant Chief Executive,CEX,Coroners Service,11100,Post Mortem Fees-Rep,440250,18-Mar-13,1900113913,678,Dr M S Al-Jafari,104464
WARRINGTON BOROUGH COUNCIL,http://statistics.data.gov.uk/id/local-authority/00EU,Neighbourhood & Community Services,NCS,Care Purchase - Learning Disability,54450,Supporting People - External,441250,13-Mar-13,1900113534,518,Alternative Futures Group,104468
WARRINGTON BOROUGH COUNCIL,http://statistics.data.gov.uk/id/local-authority/00EU,Neighbourhood & Community Services,NCS,Care Purchase - Learning Disability,54450,CP-Domicil.External,440950,13-Mar-13,1900113534,"14,503.00",Alternative Futures Group,104468
WARRINGTON BOROUGH COUNCIL,http://statistics.data.gov.uk/id/local-authority/00EU,Neighbourhood & Community Services,NCS,Care Purchase - Learning Disability,54450,CP-Domicil.External,440950,25-Mar-13,1900114395,"3,163.00",Alternative Futures Group,104468
WARRINGTON BOROUGH COUNCIL,http://statistics.data.gov.uk/id/local-authority/00EU,Neighbourhood & Community Services,NCS,Care Purchase - Learning Disability,54450,Supporting People - External,441250,27-Mar-13,1900114627,"1,450.00",Alternative Futures Group,104468
WARRINGTON BOROUGH COUNCIL,http://statistics.data.gov.uk/id/local-authority/00EU,Neighbourhood & Community Services,NCS,Care Purchase - Learning Disability,54450,CP-Domicil.External,440950,27-Mar-13,1900114627,"40,609.00",Alternative Futures Group,104468
WARRINGTON BOROUGH COUNCIL,http://statistics.data.gov.uk/id/local-authority/00EU,Neighbourhood & Community Services,NCS,Care Purchase Budget,54490,CP ExternalOther Exp,440800,06-Mar-13,1900112566,"22,000.00",Arlington House,104491
WARRINGTON BOROUGH COUNCIL,http://statistics.data.gov.uk/id/local-authority/00EU,Neighbourhood & Community Services,NCS,Care Purchase Budget,54490,CP ExternalOther Exp,440800,27-Mar-13,1900114628,"2,472.00",Arlington House,104491
WARRINGTON BOROUGH COUNCIL,http://statistics.data.gov.uk/id/local-authority/00EU,Corporate Financing,COR,Fees & Subscriptions,60020,Audit Comm-Fee,441550,05-Mar-13,1900112531,"8,130.00",Audit Commission,104501
WARRINGTON BOROUGH COUNCIL,http://statistics.data.gov.uk/id/local-authority/00EU,Neighbourhood & Community Services,NCS,Care Purchase - Learning Disability,54450,CP-Domicil.External,440950,13-Mar-13,1900113451,885,Autism Initiatives,104503
WARRINGTON BOROUGH COUNCIL,http://statistics.data.gov.uk/id/local-authority/00EU,Neighbourhood & Community Services,NCS,Care Purchase - Learning Disability,54450,CP-Day Care-External,441100,13-Mar-13,1900113451,"1,081.00",Autism Initiatives,104503
WARRINGTON BOROUGH COUNCIL,http://statistics.data.gov.uk/id/local-authority/00EU,Neighbourhood & Community Services,NCS,Care Purchase - Learning Disability,54450,CP-Day Care-External,441100,13-Mar-13,1900113453,"2,931.00",Autism Initiatives,104503
WARRINGTON BOROUGH COUNCIL,http://statistics.data.gov.uk/id/local-authority/00EU,Holding Accounts,HOL,Single Billing Holding Account,91130,Gas,210050,20-Mar-13,1900114133,"1,994.00",British Gas Business,104540
WARRINGTON BOROUGH COUNCIL,http://statistics.data.gov.uk/id/local-authority/00EU,Holding Accounts,HOL,Single Billing Holding Account,91130,Gas,210050,20-Mar-13,1900114133,"222,726.00",British Gas Business,104540
WARRINGTON BOROUGH COUNCIL,http://statistics.data.gov.uk/id/local-authority/00EU,Holding Accounts,HOL,Single Billing Holding Account,91130,Gas,210050,26-Mar-13,1900114563,"2,019.00",British Gas Business,104540
WARRINGTON BOROUGH COUNCIL,http://statistics.data.gov.uk/id/local-authority/00EU,Holding Accounts,HOL,Single Billing Holding Account,91130,Gas,210050,26-Mar-13,1900114563,"167,993.00",British Gas Business,104540
WARRINGTON BOROUGH COUNCIL,http://statistics.data.gov.uk/id/local-authority/00EU,Neighbourhood & Community Services,NCS,Care Purchase - OP & OT Central,54420,CP-LongStayExternal,441150,13-Mar-13,1900113523,"1,764.00",Bupa Care Homes - Broadoak Manor,104546
WARRINGTON BOROUGH COUNCIL,http://statistics.data.gov.uk/id/local-authority/00EU,Neighbourhood & Community Services,NCS,Care Purchase - OP & OT South,54480,CP-LongStayExternal,441150,13-Mar-13,1900113445,"1,540.00",Barchester Healthcare Ltd,104548
WARRINGTON BOROUGH COUNCIL,http://statistics.data.gov.uk/id/local-authority/00EU,Neighbourhood & Community Services,NCS,Care Purchase - OP & OT South,54480,CP-LongStayExternal,441150,13-Mar-13,1900113446,"1,320.00",Barchester Healthcare Ltd,104548
WARRINGTON BOROUGH COUNCIL,http://statistics.data.gov.uk/id/local-authority/00EU,Neighbourhood & Community Services,NCS,Care Purchase - OP & OT South,54480,CP-LongStayExternal,441150,13-Mar-13,1900113500,"2,080.00",Barchester Healthcare Ltd,104548
WARRINGTON BOROUGH COUNCIL,http://statistics.data.gov.uk/id/local-authority/00EU,Neighbourhood & Community Services,NCS,Care Purchase - OP & OT South,54480,CP-LongStayExternal,441150,13-Mar-13,1900113513,"1,540.00",Barchester Healthcare Ltd,104548
WARRINGTON BOROUGH COUNCIL,http://statistics.data.gov.uk/id/local-authority/00EU,Neighbourhood & Community Services,NCS,Care Purchase - OP & OT South,54480,CP-LongStayExternal,441150,13-Mar-13,1900113550,"1,540.00",Barchester Healthcare Ltd,104548
WARRINGTON BOROUGH COUNCIL,http://statistics.data.gov.uk/id/local-authority/00EU,Neighbourhood & Community Services,NCS,Care Purchase - OP & OT South,54480,CP-LongStayExternal,441150,13-Mar-13,1900113552,"1,540.00",Barchester Healthcare Ltd,104548
WARRINGTON BOROUGH COUNCIL,http://statistics.data.gov.uk/id/local-authority/00EU,Children & Young People,CYP,Childrens Other,81004,Equipment Purchase & Contract,400000,25-Mar-13,1900114351,"9,785.00",Richard Campey Ltd,104563
WARRINGTON BOROUGH COUNCIL,http://statistics.data.gov.uk/id/local-authority/00EU,Neighbourhood & Community Services,NCS,Care Purchase -OP & OT East,54430,CP-Nursing Care-External,441200,25-Mar-13,1900114405,"1,679.00",BUPA - Bedford Res,104569
WARRINGTON BOROUGH COUNCIL,http://statistics.data.gov.uk/id/local-authority/00EU,Neighbourhood & Community Services,NCS,Care Purchase - OP & OT Central,54420,CP-Nursing Care-External,441200,25-Mar-13,1900114407,"1,628.00",BUPA - Bedford Res,104569
WARRINGTON BOROUGH COUNCIL,http://statistics.data.gov.uk/id/local-authority/00EU,Neighbourhood & Community Services,NCS,Care Purchase Budget,54490,CP ExternalOther Exp,440800,06-Mar-13,1900112623,"188,000.00",Bupa Care Homes,104572
WARRINGTON BOROUGH COUNCIL,http://statistics.data.gov.uk/id/local-authority/00EU,Neighbourhood & Community Services,NCS,Care Purchase - Learning Disability,54450,Supporting People - External,441250,14-Mar-13,1900113731,533,Carewatch North Cheshire,104573
WARRINGTON BOROUGH COUNCIL,http://statistics.data.gov.uk/id/local-authority/00EU,Neighbourhood & Community Services,NCS,Care Purchase - Mental Health Team 3,54250,CP-Domicil.External,440950,14-Mar-13,1900113731,656,Carewatch North Cheshire,104573
WARRINGTON BOROUGH COUNCIL,http://statistics.data.gov.uk/id/local-authority/00EU,Neighbourhood & Community Services,NCS,Care Purchase - PD,54440,CP-Domicil.External,440950,14-Mar-13,1900113731,"1,993.00",Carewatch North Cheshire,104573
WARRINGTON BOROUGH COUNCIL,http://statistics.data.gov.uk/id/local-authority/00EU,Neighbourhood & Community Services,NCS,Care Purchase - Learning Disability,54450,CP-Domicil.External,440950,14-Mar-13,1900113731,"5,950.00",Carewatch North Cheshire,104573
WARRINGTON BOROUGH COUNCIL,http://statistics.data.gov.uk/id/local-authority/00EU,Neighbourhood & Community Services,NCS,Care Purchase -OP & OT East,54430,CP-Domicil.External,440950,14-Mar-13,1900113731,"10,876.00",Carewatch North Cheshire,104573
WARRINGTON BOROUGH COUNCIL,http://statistics.data.gov.uk/id/local-authority/00EU,Children & Young People,CHL,Child Disability,32212,CP-Domicil.External,440950,20-Mar-13,1900114129,"2,266.00",Carewatch North Cheshire,104573
WARRINGTON BOROUGH COUNCIL,http://statistics.data.gov.uk/id/local-authority/00EU,Children & Young People,CHL,Child Disability,32212,CP-Domicil.External,440950,28-Mar-13,1900115063,"2,000.00",Carewatch North Cheshire,104573
WARRINGTON BOROUGH COUNCIL,http://statistics.data.gov.uk/id/local-authority/00EU,Environment & Regeneration,ER1,Walton Hall Catering,41433,Beers Wines Spirits,410100,20-Mar-13,1900114131,579,Carlsberg Tetley Brewing Ltd,104575
WARRINGTON BOROUGH COUNCIL,http://statistics.data.gov.uk/id/local-authority/00EU,Environment & Regeneration,ER1,Walton Hall Catering,41433,Beers Wines Spirits,410100,20-Mar-13,1900114132,601,Carlsberg Tetley Brewing Ltd,104575
WARRINGTON BOROUGH COUNCIL,http://statistics.data.gov.uk/id/local-authority/00EU,Environment & Regeneration,ER1,Walton Hall Catering,41433,Beers Wines Spirits,410100,20-Mar-13,1900114134,559,Carlsberg Tetley Brewing Ltd,104575
WARRINGTON BOROUGH COUNCIL,http://statistics.data.gov.uk/id/local-authority/00EU,Environment & Regeneration,ER1,Walton Hall Catering,41433,Beers Wines Spirits,410100,20-Mar-13,1900114137,"1,141.00",Carlsberg Tetley Brewing Ltd,104575
WARRINGTON BOROUGH COUNCIL,http://statistics.data.gov.uk/id/local-authority/00EU,Children & Young People,CHL,Rowland Close,31312,Materials,400500,28-Mar-13,1900115070,994,Stockton Heath Carpet Centre,104577
WARRINGTON BOROUGH COUNCIL,http://statistics.data.gov.uk/id/local-authority/00EU,Assistant Chief Executive,CEX,Accountancy and Financial Planning,10100,Training,190150,07-Mar-13,1900113125,"2,154.00",CIPFA,104607
WARRINGTON BOROUGH COUNCIL,http://statistics.data.gov.uk/id/local-authority/00EU,Assistant Chief Executive,CEX,Accountancy and Financial Planning,10100,Training,190150,07-Mar-13,1900113126,730,CIPFA,104607
WARRINGTON BOROUGH COUNCIL,http://statistics.data.gov.uk/id/local-authority/00EU,Assistant Chief Executive,CEX,Accountancy and Financial Planning,10100,Training,190150,07-Mar-13,1900113127,944,CIPFA,104607
WARRINGTON BOROUGH COUNCIL,http://statistics.data.gov.uk/id/local-authority/00EU,Assistant Chief Executive,CEX,Accountancy and Financial Planning,10100,Training,190150,07-Mar-13,1900113128,"1,010.00",CIPFA,104607
WARRINGTON BOROUGH COUNCIL,http://statistics.data.gov.uk/id/local-authority/00EU,Assistant Chief Executive,CEX,Housing Benefit,10340,Subscriptions,470000,07-Mar-13,1900113185,"1,865.00",CIPFA,104607
WARRINGTON BOROUGH COUNCIL,http://statistics.data.gov.uk/id/local-authority/00EU,Neighbourhood & Community Services,NCS,Care Purchase Budget,54490,CP ExternalOther Exp,440800,06-Mar-13,1900112620,"70,000.00",Cls Care Services Ltd,104615
WARRINGTON BOROUGH COUNCIL,http://statistics.data.gov.uk/id/local-authority/00EU,Neighbourhood & Community Services,NCS,Care Purchase Budget,54490,CP ExternalOther Exp,440800,21-Mar-13,1900114227,"5,373.00",Cls Care Services Ltd,104615
WARRINGTON BOROUGH COUNCIL,http://statistics.data.gov.uk/id/local-authority/00EU,Neighbourhood & Community Services,NCS,Whitecross CC,51216,Equipment Purchase & Contract,400000,26-Mar-13,1900114582,509,Comet Group Plc,104621
WARRINGTON BOROUGH COUNCIL,http://statistics.data.gov.uk/id/local-authority/00EU,Assistant Chief Executive,CEX,Coroners Service,11100,Removal Bodies & Exc,440350,06-Mar-13,1900112629,535,Co-Operative Funeralcare,104637
WARRINGTON BOROUGH COUNCIL,http://statistics.data.gov.uk/id/local-authority/00EU,Neighbourhood & Community Services,NCS,Care Purchase - PD,54440,CP-Day Care-External,441100,14-Mar-13,1900113732,"1,576.00",Cotebrook,104638
WARRINGTON BOROUGH COUNCIL,http://statistics.data.gov.uk/id/local-authority/00EU,Neighbourhood & Community Services,NCS,Care Purchase - Learning Disability,54450,CP-LongStayExternal,441150,14-Mar-13,1900113736,701,Cotebrook,104638
WARRINGTON BOROUGH COUNCIL,http://statistics.data.gov.uk/id/local-authority/00EU,Neighbourhood & Community Services,NCS,Care Purchase - Mental Health Team 2,54240,CP-LongStayExternal,441150,14-Mar-13,1900113736,982,Cotebrook,104638
WARRINGTON BOROUGH COUNCIL,http://statistics.data.gov.uk/id/local-authority/00EU,Neighbourhood & Community Services,NCS,Care Purchase Budget,54490,Voids,515150,14-Mar-13,1900113736,"1,263.00",Cotebrook,104638
WARRINGTON BOROUGH COUNCIL,http://statistics.data.gov.uk/id/local-authority/00EU,Neighbourhood & Community Services,NCS,Care Purchase - ABI,54260,CP-LongStayExternal,441150,14-Mar-13,1900113736,"2,764.00",Cotebrook,104638
WARRINGTON BOROUGH COUNCIL,http://statistics.data.gov.uk/id/local-authority/00EU,Neighbourhood & Community Services,NCS,Care Purchase - OP & OT South,54480,CP-LongStayExternal,441150,14-Mar-13,1900113736,"3,928.00",Cotebrook,104638
WARRINGTON BOROUGH COUNCIL,http://statistics.data.gov.uk/id/local-authority/00EU,Neighbourhood & Community Services,NCS,Care Purchase - PD,54440,CP-LongStayExternal,441150,14-Mar-13,1900113736,"11,784.00",Cotebrook,104638
WARRINGTON BOROUGH COUNCIL,http://statistics.data.gov.uk/id/local-authority/00EU,Neighbourhood & Community Services,NCS,Care Purchase - OP & OT South,54480,CP-LongStayExternal,441150,14-Mar-13,1900113737,"9,820.00",Cotebrook,104638
WARRINGTON BOROUGH COUNCIL,http://statistics.data.gov.uk/id/local-authority/00EU,Children & Young People,CYP,Childrens & Young People,81000,Furniture & Fittings,400150,07-Mar-13,1900113146,759,Kontor Interiors,104651
WARRINGTON BOROUGH COUNCIL,http://statistics.data.gov.uk/id/local-authority/00EU,Children & Young People,CYP,Childrens & Young People,81000,Furniture & Fittings,400150,07-Mar-13,1900113147,"6,833.00",Kontor Interiors,104651
WARRINGTON BOROUGH COUNCIL,http://statistics.data.gov.uk/id/local-authority/00EU,Neighbourhood & Community Services,NCS,Care Purchase - Learning Disability,54450,CP-Day Care-External,441100,13-Mar-13,1900113543,"2,217.00",Deafness Support Network,104657
WARRINGTON BOROUGH COUNCIL,http://statistics.data.gov.uk/id/local-authority/00EU,Assistant Chief Executive,CEX,CRT Apprenticeships,22470,"Campaigns,  Projects and Events",491950,27-Mar-13,1900114671,910,Deafness Support Network,104657
WARRINGTON BOROUGH COUNCIL,http://statistics.data.gov.uk/id/local-authority/00EU,Assistant Chief Executive,CEX,CRT Apprenticeships,22470,"Campaigns,  Projects and Events",491950,27-Mar-13,1900114672,630,Deafness Support Network,104657
WARRINGTON BOROUGH COUNCIL,http://statistics.data.gov.uk/id/local-authority/00EU,Assistant Chief Executive,CEX,Irwell Road Training Centre,21000,Computer Hardware - Purchase,450700,11-Mar-13,1900113336,578,Dell,104659
WARRINGTON BOROUGH COUNCIL,http://statistics.data.gov.uk/id/local-authority/00EU,Environment & Regeneration,ER0,Estates & Valuation,43520,Agency Supply - GF,180000,04-Mar-13,1900112246,"1,002.00",Eden Brown Recruitment Ltd,104686
WARRINGTON BOROUGH COUNCIL,http://statistics.data.gov.uk/id/local-authority/00EU,Environment & Regeneration,ER0,Estates & Valuation,43520,Agency Supply - GF,180000,04-Mar-13,1900112247,"1,002.00",Eden Brown Recruitment Ltd,104686
WARRINGTON BOROUGH COUNCIL,http://statistics.data.gov.uk/id/local-authority/00EU,Environment & Regeneration,ER0,Estates & Valuation,43520,Agency Supply - GF,180000,04-Mar-13,1900112250,924,Eden Brown Recruitment Ltd,104686
WARRINGTON BOROUGH COUNCIL,http://statistics.data.gov.uk/id/local-authority/00EU,Environment & Regeneration,ER0,Estates & Valuation,43520,Agency Supply - GF,180000,08-Mar-13,1900113283,808,Eden Brown Recruitment Ltd,104686
WARRINGTON BOROUGH COUNCIL,http://statistics.data.gov.uk/id/local-authority/00EU,Environment & Regeneration,ER0,Estates & Valuation,43520,Agency Supply - GF,180000,08-Mar-13,1900113296,"1,002.00",Eden Brown Recruitment Ltd,104686
WARRINGTON BOROUGH COUNCIL,http://statistics.data.gov.uk/id/local-authority/00EU,Environment & Regeneration,ER0,Estates & Valuation,43520,Agency Supply - GF,180000,19-Mar-13,1900114009,"1,002.00",Eden Brown Recruitment Ltd,104686
WARRINGTON BOROUGH COUNCIL,http://statistics.data.gov.uk/id/local-authority/00EU,Environment & Regeneration,ER0,Estates & Valuation,43520,Agency Supply - GF,180000,22-Mar-13,1900114294,821,Eden Brown Recruitment Ltd,104686
WARRINGTON BOROUGH COUNCIL,http://statistics.data.gov.uk/id/local-authority/00EU,Environment & Regeneration,ER0,Estates & Valuation,43520,Agency Supply - GF,180000,27-Mar-13,1900114805,982,Eden Brown Recruitment Ltd,104686
WARRINGTON BOROUGH COUNCIL,http://statistics.data.gov.uk/id/local-authority/00EU,Holding Accounts,HOL,Insurance Fund,91100,Insurance Claims,443400,08-Mar-13,1900113302,"52,585.00",Gallagher Bassett International Ltd,104739
WARRINGTON BOROUGH COUNCIL,http://statistics.data.gov.uk/id/local-authority/00EU,Children & Young People,CHL,Federation of Music Services,32220,Childrens Activities,492900,08-Mar-13,1900113304,"3,849.00",Halton & Warr District Music Servic,104766
WARRINGTON BOROUGH COUNCIL,http://statistics.data.gov.uk/id/local-authority/00EU,Children & Young People,CHL,Federation of Music Services,32220,Childrens Activities,492900,08-Mar-13,1900113305,541,Halton & Warr District Music Servic,104766
WARRINGTON BOROUGH COUNCIL,http://statistics.data.gov.uk/id/local-authority/00EU,Neighbourhood & Community Services,NCS,Care Purchase Budget,54490,CP ExternalOther Exp,440800,06-Mar-13,1900112621,"127,856.00",Ashberry Healthcare Ltd,104776
WARRINGTON BOROUGH COUNCIL,http://statistics.data.gov.uk/id/local-authority/00EU,Neighbourhood & Community Services,NCS,Care Purchase Budget,54490,CP ExternalOther Exp,440800,26-Mar-13,1900114561,"4,172.00",Ashberry Healthcare Ltd,104776
WARRINGTON BOROUGH COUNCIL,http://statistics.data.gov.uk/id/local-authority/00EU,Neighbourhood & Community Services,NCS,Care Purchase Budget,54490,CP ExternalOther Exp,440800,06-Mar-13,1900112619,"50,000.00",Heathside Elderly Persons Home,104777
WARRINGTON BOROUGH COUNCIL,http://statistics.data.gov.uk/id/local-authority/00EU,Neighbourhood & Community Services,NCS,Care Purchase - Mental Health Team 1,54230,CP-LongStayExternal,441150,13-Mar-13,1900113503,"1,564.00",Hilton Residential Homes Ltd,104783
WARRINGTON BOROUGH COUNCIL,http://statistics.data.gov.uk/id/local-authority/00EU,Environment & Regeneration,ER0,Public Conveniences,43510,Rent Of Premises,220000,19-Mar-13,1900114013,"9,079.00",Jcdecaux Uk Ltd,104827
WARRINGTON BOROUGH COUNCIL,http://statistics.data.gov.uk/id/local-authority/00EU,Environment & Regeneration,ER0,Public Conveniences,43510,Rent Of Premises,220000,19-Mar-13,1900114014,"16,990.00",Jcdecaux Uk Ltd,104827
WARRINGTON BOROUGH COUNCIL,http://statistics.data.gov.uk/id/local-authority/00EU,Environment & Regeneration,ER0,Public Conveniences,43510,Rent Of Premises,220000,19-Mar-13,1900114015,"9,079.00",Jcdecaux Uk Ltd,104827
WARRINGTON BOROUGH COUNCIL,http://statistics.data.gov.uk/id/local-authority/00EU,Children & Young People,CYP,Childrens & Young People,81000,Equipment Purchase & Contract,400000,06-Mar-13,1900113116,965,H Jenkinson + Co Ltd,104829
WARRINGTON BOROUGH COUNCIL,http://statistics.data.gov.uk/id/local-authority/00EU,Neighbourhood & Community Services,NCS,Care Purchase Budget,54490,CP ExternalOther Exp,440800,06-Mar-13,1900112578,"45,000.00",Keate House Residential Home,104849
WARRINGTON BOROUGH COUNCIL,http://statistics.data.gov.uk/id/local-authority/00EU,Neighbourhood & Community Services,NCS,Care Purchase Budget,54490,CP ExternalOther Exp,440800,21-Mar-13,1900114215,"3,216.00",Keate House Residential Home,104849
WARRINGTON BOROUGH COUNCIL,http://statistics.data.gov.uk/id/local-authority/00EU,Assistant Chief Executive,CEX,Coroners Service,11100,Post Mortem Fees-Rep,440250,06-Mar-13,1900113107,"1,058.00",Dr W E Kenyon,104851
WARRINGTON BOROUGH COUNCIL,http://statistics.data.gov.uk/id/local-authority/00EU,Neighbourhood & Community Services,NCS,Care Purchase - Learning Disability,54450,CP-LongStayExternal,441150,05-Mar-13,1900112544,"2,301.00",The David Lewis Centre,104879
WARRINGTON BOROUGH COUNCIL,http://statistics.data.gov.uk/id/local-authority/00EU,Neighbourhood & Community Services,NCS,Care Purchase - Learning Disability,54450,CP-LongStayExternal,441150,06-Mar-13,1900112573,"1,049.00",The David Lewis Centre,104879
WARRINGTON BOROUGH COUNCIL,http://statistics.data.gov.uk/id/local-authority/00EU,Neighbourhood & Community Services,NCS,Care Purchase - Learning Disability,54450,CP-Nursing Care-External,441200,13-Mar-13,1900113469,"10,016.00",The David Lewis Centre,104879
WARRINGTON BOROUGH COUNCIL,http://statistics.data.gov.uk/id/local-authority/00EU,Neighbourhood & Community Services,NCS,Care Purchase - Learning Disability,54450,CP-LongStayExternal,441150,13-Mar-13,1900113471,"13,864.00",The David Lewis Centre,104879
WARRINGTON BOROUGH COUNCIL,http://statistics.data.gov.uk/id/local-authority/00EU,Neighbourhood & Community Services,NCS,Care Purchase - Learning Disability,54450,CP-LongStayExternal,441150,22-Mar-13,1900114323,"1,049.00",The David Lewis Centre,104879
WARRINGTON BOROUGH COUNCIL,http://statistics.data.gov.uk/id/local-authority/00EU,Neighbourhood & Community Services,NCS,Care Purchase - PD,54440,CP-LongStayExternal,441150,22-Mar-13,1900114324,"6,895.00",The David Lewis Centre,104879
WARRINGTON BOROUGH COUNCIL,http://statistics.data.gov.uk/id/local-authority/00EU,Neighbourhood & Community Services,NCS,Care Purchase - Learning Disability,54450,CP-LongStayExternal,441150,26-Mar-13,1900114513,"2,548.00",The David Lewis Centre,104879
WARRINGTON BOROUGH COUNCIL,http://statistics.data.gov.uk/id/local-authority/00EU,Children & Young People,CHL,DSG Independent School Fees,32011,Independent School Fees,490200,26-Mar-13,1900114530,"6,118.00",The David Lewis Centre,104879
WARRINGTON BOROUGH COUNCIL,http://statistics.data.gov.uk/id/local-authority/00EU,Neighbourhood & Community Services,NCS,Care Purchase - Learning Disability,54450,CP-Day Care-External,441100,13-Mar-13,1900113448,"16,423.00",Macintyre Care,104907
WARRINGTON BOROUGH COUNCIL,http://statistics.data.gov.uk/id/local-authority/00EU,Neighbourhood & Community Services,NCS,Care Purchase - Learning Disability,54450,CP-LongStayExternal,441150,13-Mar-13,1900113455,"5,076.00",Macintyre Care,104907
WARRINGTON BOROUGH COUNCIL,http://statistics.data.gov.uk/id/local-authority/00EU,Neighbourhood & Community Services,NCS,Care Purchase - Learning Disability,54450,CP-Day Care-External,441100,26-Mar-13,1900114506,"3,375.00",Macintyre Care,104907
WARRINGTON BOROUGH COUNCIL,http://statistics.data.gov.uk/id/local-authority/00EU,Neighbourhood & Community Services,NCS,Care Purchase - Learning Disability,54450,CP-Day Care-External,441100,26-Mar-13,1900114507,910,Macintyre Care,104907
WARRINGTON BOROUGH COUNCIL,http://statistics.data.gov.uk/id/local-authority/00EU,Neighbourhood & Community Services,NCS,Care Purchase - Learning Disability,54450,CP-Day Care-External,441100,26-Mar-13,1900114509,910,Macintyre Care,104907
WARRINGTON BOROUGH COUNCIL,http://statistics.data.gov.uk/id/local-authority/00EU,Neighbourhood & Community Services,NCS,Care Purchase Budget,54490,Voids,515150,27-Mar-13,1900114651,"2,990.00",Macintyre Care,104907
WARRINGTON BOROUGH COUNCIL,http://statistics.data.gov.uk/id/local-authority/00EU,Neighbourhood & Community Services,NCS,Care Purchase - Learning Disability,54450,Supporting People - External,441250,27-Mar-13,1900114651,"25,832.00",Macintyre Care,104907
WARRINGTON BOROUGH COUNCIL,http://statistics.data.gov.uk/id/local-authority/00EU,Neighbourhood & Community Services,NCS,Care Purchase - Learning Disability,54450,CP-Domicil.External,440950,27-Mar-13,1900114651,"99,464.00",Macintyre Care,104907
WARRINGTON BOROUGH COUNCIL,http://statistics.data.gov.uk/id/local-authority/00EU,Neighbourhood & Community Services,NCS,Care Purchase - Learning Disability,54450,CP-Domicil.External,440950,27-Mar-13,1900114659,"18,789.00",Macintyre Care,104907
WARRINGTON BOROUGH COUNCIL,http://statistics.data.gov.uk/id/local-authority/00EU,Environment & Regeneration,ER0,Hatters Row,43710,Rent Of Premises,220000,12-Mar-13,1900113386,"23,844.00",Manchester & Provincial Car Pks Ltd,104918
WARRINGTON BOROUGH COUNCIL,http://statistics.data.gov.uk/id/local-authority/00EU,Environment & Regeneration,ER0,Development Control,43430,Payment of Grants,470050,11-Mar-13,1900113337,"13,500.00",The Bridgewater Canal Company Ltd,104919
WARRINGTON BOROUGH COUNCIL,http://statistics.data.gov.uk/id/local-authority/00EU,Neighbourhood & Community Services,NCS,Care Purchase - PD,54440,CP-Domicil.External,440950,21-Mar-13,1900114232,672,Mayfield Home Care Agency,104928
WARRINGTON BOROUGH COUNCIL,http://statistics.data.gov.uk/id/local-authority/00EU,Neighbourhood & Community Services,NCS,Care Purchase - Mental Health Team 3,54250,CP-Domicil.External,440950,21-Mar-13,1900114232,706,Mayfield Home Care Agency,104928
WARRINGTON BOROUGH COUNCIL,http://statistics.data.gov.uk/id/local-authority/00EU,Neighbourhood & Community Services,NCS,Care Purchase - OP & OT West,54470,CP-Domicil.External,440950,21-Mar-13,1900114232,812,Mayfield Home Care Agency,104928
WARRINGTON BOROUGH COUNCIL,http://statistics.data.gov.uk/id/local-authority/00EU,Neighbourhood & Community Services,NCS,Care Purchase - Learning Disability,54450,CP-Domicil.External,440950,21-Mar-13,1900114232,"3,188.00",Mayfield Home Care Agency,104928
WARRINGTON BOROUGH COUNCIL,http://statistics.data.gov.uk/id/local-authority/00EU,Neighbourhood & Community Services,NCS,Care Purchase Budget,54490,CP - Cont Care - External,441350,21-Mar-13,1900114232,"10,336.00",Mayfield Home Care Agency,104928
WARRINGTON BOROUGH COUNCIL,http://statistics.data.gov.uk/id/local-authority/00EU,Assistant Chief Executive,CEX,Coroners Service,11100,Post Mortem Fees-Rep,440250,18-Mar-13,1900113891,"1,584.00",Dr A Nicol,104970
WARRINGTON BOROUGH COUNCIL,http://statistics.data.gov.uk/id/local-authority/00EU,Neighbourhood & Community Services,NCS,Care Purchase Budget,54490,CP - Cont Care - External,441350,15-Mar-13,1900113778,521,Nightingales Homecare Services Agen,104972
WARRINGTON BOROUGH COUNCIL,http://statistics.data.gov.uk/id/local-authority/00EU,Neighbourhood & Community Services,NCS,Care Purchase - PD,54440,CP-Domicil.External,440950,15-Mar-13,1900113778,"6,269.00",Nightingales Homecare Services Agen,104972
WARRINGTON BOROUGH COUNCIL,http://statistics.data.gov.uk/id/local-authority/00EU,Neighbourhood & Community Services,NCS,Care Purchase - Learning Disability,54450,CP-Domicil.External,440950,15-Mar-13,1900113778,"6,288.00",Nightingales Homecare Services Agen,104972
WARRINGTON BOROUGH COUNCIL,http://statistics.data.gov.uk/id/local-authority/00EU,Neighbourhood & Community Services,NCS,Care Purchase - OP & OT West,54470,CP-Domicil.External,440950,15-Mar-13,1900113778,"7,472.00",Nightingales Homecare Services Agen,104972
WARRINGTON BOROUGH COUNCIL,http://statistics.data.gov.uk/id/local-authority/00EU,Neighbourhood & Community Services,NCS,Care Purchase -OP & OT East,54430,CP-Domicil.External,440950,15-Mar-13,1900113778,"10,238.00",Nightingales Homecare Services Agen,104972
WARRINGTON BOROUGH COUNCIL,http://statistics.data.gov.uk/id/local-authority/00EU,Neighbourhood & Community Services,NCS,Care Purchase - OP & OT Central,54420,CP-Domicil.External,440950,15-Mar-13,1900113778,"11,808.00",Nightingales Homecare Services Agen,104972
WARRINGTON BOROUGH COUNCIL,http://statistics.data.gov.uk/id/local-authority/00EU,Neighbourhood & Community Services,NCS,Care Purchase - OP & OT South,54480,CP-Domicil.External,440950,15-Mar-13,1900113778,"14,370.00",Nightingales Homecare Services Agen,104972
WARRINGTON BOROUGH COUNCIL,http://statistics.data.gov.uk/id/local-authority/00EU,Neighbourhood & Community Services,NCS,Radley Common CC,51227,Water & Sewerage Chg,240000,08-Mar-13,1900113301,646,United Utilities Water Limited,104982
WARRINGTON BOROUGH COUNCIL,http://statistics.data.gov.uk/id/local-authority/00EU,Environment & Regeneration,ER0,Bank House,43116,Water & Sewerage Chg,240000,08-Mar-13,1900113301,763,United Utilities Water Limited,104982
WARRINGTON BOROUGH COUNCIL,http://statistics.data.gov.uk/id/local-authority/00EU,Neighbourhood & Community Services,NCS,Nora Street CH,51236,Water & Sewerage Chg,240000,08-Mar-13,1900113301,768,United Utilities Water Limited,104982
WARRINGTON BOROUGH COUNCIL,http://statistics.data.gov.uk/id/local-authority/00EU,Assistant Chief Executive,CEX,Irwell Road Training Centre,21000,Water & Sewerage Chg,240000,08-Mar-13,1900113301,798,United Utilities Water Limited,104982
WARRINGTON BOROUGH COUNCIL,http://statistics.data.gov.uk/id/local-authority/00EU,Neighbourhood & Community Services,NCS,Croft CC,51222,Water & Sewerage Chg,240000,08-Mar-13,1900113301,830,United Utilities Water Limited,104982
WARRINGTON BOROUGH COUNCIL,http://statistics.data.gov.uk/id/local-authority/00EU,Environment & Regeneration,ER0,East Annexe,43113,Water & Sewerage Chg,240000,08-Mar-13,1900113301,923,United Utilities Water Limited,104982
WARRINGTON BOROUGH COUNCIL,http://statistics.data.gov.uk/id/local-authority/00EU,Environment & Regeneration,ER0,Housing Strategy,43620,Water & Sewerage Chg,240000,08-Mar-13,1900113301,"1,047.00",United Utilities Water Limited,104982
WARRINGTON BOROUGH COUNCIL,http://statistics.data.gov.uk/id/local-authority/00EU,Environment & Regeneration,ER1,Crematorium,41411,Water & Sewerage Chg,240000,08-Mar-13,1900113301,"1,057.00",United Utilities Water Limited,104982
WARRINGTON BOROUGH COUNCIL,http://statistics.data.gov.uk/id/local-authority/00EU,Neighbourhood & Community Services,NCS,James Phoenix House,54720,Water & Sewerage Chg,240000,08-Mar-13,1900113301,"1,110.00",United Utilities Water Limited,104982
WARRINGTON BOROUGH COUNCIL,http://statistics.data.gov.uk/id/local-authority/00EU,Neighbourhood & Community Services,NCS,Specialist Day Services,54750,Water & Sewerage Chg,240000,08-Mar-13,1900113301,"1,156.00",United Utilities Water Limited,104982
WARRINGTON BOROUGH COUNCIL,http://statistics.data.gov.uk/id/local-authority/00EU,Neighbourhood & Community Services,NCS,LD Supported Tenancies,54730,Water & Sewerage Chg,240000,08-Mar-13,1900113301,"1,242.00",United Utilities Water Limited,104982
WARRINGTON BOROUGH COUNCIL,http://statistics.data.gov.uk/id/local-authority/00EU,Environment & Regeneration,ER0,Bus Interchange,44460,Water & Sewerage Chg,240000,08-Mar-13,1900113301,"1,703.00",United Utilities Water Limited,104982
WARRINGTON BOROUGH COUNCIL,http://statistics.data.gov.uk/id/local-authority/00EU,Neighbourhood & Community Services,NCS,Padgate House,54760,Water & Sewerage Chg,240000,08-Mar-13,1900113301,"1,971.00",United Utilities Water Limited,104982
WARRINGTON BOROUGH COUNCIL,http://statistics.data.gov.uk/id/local-authority/00EU,Environment & Regeneration,ER1,Games In Parks,41431,Water & Sewerage Chg,240000,08-Mar-13,1900113301,"2,017.00",United Utilities Water Limited,104982
WARRINGTON BOROUGH COUNCIL,http://statistics.data.gov.uk/id/local-authority/00EU,Neighbourhood & Community Services,NCS,OP Daycare,54540,Water & Sewerage Chg,240000,08-Mar-13,1900113301,"2,040.00",United Utilities Water Limited,104982
WARRINGTON BOROUGH COUNCIL,http://statistics.data.gov.uk/id/local-authority/00EU,Environment & Regeneration,ER1,Walton Estate,41430,Water & Sewerage Chg,240000,08-Mar-13,1900113301,"2,089.00",United Utilities Water Limited,104982
WARRINGTON BOROUGH COUNCIL,http://statistics.data.gov.uk/id/local-authority/00EU,Environment & Regeneration,ER1,Smallholdings,41425,Water & Sewerage Chg,240000,08-Mar-13,1900113301,"2,550.00",United Utilities Water Limited,104982
WARRINGTON BOROUGH COUNCIL,http://statistics.data.gov.uk/id/local-authority/00EU,Environment & Regeneration,ER1,School Brow Depot,41330,Water & Sewerage Chg,240000,08-Mar-13,1900113301,"4,080.00",United Utilities Water Limited,104982
WARRINGTON BOROUGH COUNCIL,http://statistics.data.gov.uk/id/local-authority/00EU,Environment & Regeneration,ER1,Woolston Depot,41331,Water & Sewerage Chg,240000,08-Mar-13,1900113301,"5,852.00",United Utilities Water Limited,104982
WARRINGTON BOROUGH COUNCIL,http://statistics.data.gov.uk/id/local-authority/00EU,Environment & Regeneration,ER0,Markets,43711,Water & Sewerage Chg,240000,08-Mar-13,1900113301,"7,600.00",United Utilities Water Limited,104982
WARRINGTON BOROUGH COUNCIL,http://statistics.data.gov.uk/id/local-authority/00EU,Neighbourhood & Community Services,NCS,Care Purchase Budget,54490,CP ExternalOther Exp,440800,06-Mar-13,1900112584,"7,654.00",Old Rectory Private Nursing Home,104990
WARRINGTON BOROUGH COUNCIL,http://statistics.data.gov.uk/id/local-authority/00EU,Neighbourhood & Community Services,NCS,Care Purchase Budget,54490,CP ExternalOther Exp,440800,06-Mar-13,1900112585,"17,409.00",Old Rectory Private Nursing Home,104990
WARRINGTON BOROUGH COUNCIL,http://statistics.data.gov.uk/id/local-authority/00EU,Children & Young People,CHL,DSG Early Years PVI Settings,32417,Private & Voluntary 3 Year Olds,470100,01-Mar-13,1900112331,"3,655.00",The Old Vicarage,104991
WARRINGTON BOROUGH COUNCIL,http://statistics.data.gov.uk/id/local-authority/00EU,Children & Young People,CHL,DSG Early Years PVI Settings,32417,Private & Voluntary 4 Year Olds,470150,01-Mar-13,1900112405,739,The Old Vicarage,104991
WARRINGTON BOROUGH COUNCIL,http://statistics.data.gov.uk/id/local-authority/00EU,Children & Young People,CHL,Business Services,33005,Data Storage,443050,05-Mar-13,1900112505,"1,367.00",Storage Management Co,100129
WARRINGTON BOROUGH COUNCIL,http://statistics.data.gov.uk/id/local-authority/00EU,Assistant Chief Executive,CEX,Coroners Service,11100,Data Storage,443050,05-Mar-13,1900112505,"1,861.00",Storage Management Co,100129
WARRINGTON BOROUGH COUNCIL,http://statistics.data.gov.uk/id/local-authority/00EU,Environment & Regeneration,ER0,Industrial Estates,43570,Rent Gatewarth,220300,12-Mar-13,1900113387,"26,000.00",Combined Property Control,100133
WARRINGTON BOROUGH COUNCIL,http://statistics.data.gov.uk/id/local-authority/00EU,Children & Young People,CYP,Childrens Other,81004,ICT Comms - Equipment Purchase,450100,07-Mar-13,1900113167,"2,463.00",Pc World Currys Warrington,100216
WARRINGTON BOROUGH COUNCIL,http://statistics.data.gov.uk/id/local-authority/00EU,Environment & Regeneration,ENO,Housing Projects,82008,Disabled Persons Grant 1996,554000,27-Mar-13,1900114728,"3,571.00",Manchester & District Hsg Associati,100233
WARRINGTON BOROUGH COUNCIL,http://statistics.data.gov.uk/id/local-authority/00EU,Neighbourhood & Community Services,NCS,Care Purchase - Learning Disability,54450,Direct Payments,552000,05-Mar-13,1900112658,717,Redacted Personal Data,100270
WARRINGTON BOROUGH COUNCIL,http://statistics.data.gov.uk/id/local-authority/00EU,Neighbourhood & Community Services,NCS,Care Purchase -OP & OT East,54430,CP-LongStayExternal,441150,05-Mar-13,1900112536,"1,392.00",The Nugent Care Society,100277
WARRINGTON BOROUGH COUNCIL,http://statistics.data.gov.uk/id/local-authority/00EU,Neighbourhood & Community Services,NCS,Care Purchase -OP & OT East,54430,CP-LongStayExternal,441150,05-Mar-13,1900112538,"1,752.00",The Nugent Care Society,100277
WARRINGTON BOROUGH COUNCIL,http://statistics.data.gov.uk/id/local-authority/00EU,Neighbourhood & Community Services,NCS,Care Purchase -OP & OT East,54430,CP-LongStayExternal,441150,05-Mar-13,1900112540,"1,392.00",The Nugent Care Society,100277
WARRINGTON BOROUGH COUNCIL,http://statistics.data.gov.uk/id/local-authority/00EU,Neighbourhood & Community Services,NCS,Care Purchase - PD,54440,CP ExternalOther Exp,440800,07-Mar-13,1900113216,718,Personal Care Consultants,100279
WARRINGTON BOROUGH COUNCIL,http://statistics.data.gov.uk/id/local-authority/00EU,Environment & Regeneration,ER0,Alder Lodge Supporting People,43651,Gas,210050,07-Mar-13,1900113207,682,Southern Electric Plc,100307
WARRINGTON BOROUGH COUNCIL,http://statistics.data.gov.uk/id/local-authority/00EU,Neighbourhood & Community Services,NCS,Care Purchase Budget,54490,CP ExternalOther Exp,440800,06-Mar-13,1900112577,"40,000.00",European Care (Uk) Ltd,100320
WARRINGTON BOROUGH COUNCIL,http://statistics.data.gov.uk/id/local-authority/00EU,Neighbourhood & Community Services,NCS,Care Purchase Budget,54490,CP ExternalOther Exp,440800,13-Mar-13,1900113529,"7,002.00",European Care (Uk) Ltd,100320
WARRINGTON BOROUGH COUNCIL,http://statistics.data.gov.uk/id/local-authority/00EU,Neighbourhood & Community Services,NCS,Care Purchase Budget,54490,CP ExternalOther Exp,440800,25-Mar-13,1900114386,"4,649.00",European Care (Uk) Ltd,100320
WARRINGTON BOROUGH COUNCIL,http://statistics.data.gov.uk/id/local-authority/00EU,Neighbourhood & Community Services,NCS,Care Purchase - PD,54440,Direct Payments,552000,05-Mar-13,1900112659,"1,000.00",Redacted Personal Data,100340
WARRINGTON BOROUGH COUNCIL,http://statistics.data.gov.uk/id/local-authority/00EU,Assistant Chief Executive,CEX,Coroners Service,11100,Post Mortem Fees-Rep,440250,18-Mar-13,1900113874,"1,406.00",Dr B.N.A Hamid,100354
WARRINGTON BOROUGH COUNCIL,http://statistics.data.gov.uk/id/local-authority/00EU,Neighbourhood & Community Services,NCS,Care Purchase - PD,54440,CP-Nursing Care-External,441200,13-Mar-13,1900113547,"2,780.00",Leonard Cheshire Disability,100370
WARRINGTON BOROUGH COUNCIL,http://statistics.data.gov.uk/id/local-authority/00EU,Assistant Chief Executive,CEX,Coroners Service,11100,Post Mortem Fees-Rep,440250,18-Mar-13,1900113889,"1,218.00",Dr J Krajacevic,100409
WARRINGTON BOROUGH COUNCIL,http://statistics.data.gov.uk/id/local-authority/00EU,Neighbourhood & Community Services,NCS,Care Purchase - Learning Disability,54450,CP-Nursing Care-External,441200,13-Mar-13,1900113489,"2,436.00",Chadderton Total-Care Unit Ltd,100425
WARRINGTON BOROUGH COUNCIL,http://statistics.data.gov.uk/id/local-authority/00EU,Neighbourhood & Community Services,NCS,SLA - Grant Account,53920,Payment of Grants,470050,20-Mar-13,1900114085,"10,805.00",Salvation Army Band,100437
WARRINGTON BOROUGH COUNCIL,http://statistics.data.gov.uk/id/local-authority/00EU,Neighbourhood & Community Services,NCS,Care Purchase - Learning Disability,54450,Direct Payments,552000,05-Mar-13,1900112661,720,Redacted Personal Data,100452
WARRINGTON BOROUGH COUNCIL,http://statistics.data.gov.uk/id/local-authority/00EU,Neighbourhood & Community Services,NCS,Care Purchase - OP & OT South,54480,CP-Nursing Care-External,441200,21-Mar-13,1900114231,"1,500.00",BUPA -Crawfords Walk,100460
WARRINGTON BOROUGH COUNCIL,http://statistics.data.gov.uk/id/local-authority/00EU,Neighbourhood & Community Services,NCS,Care Purchase - PD,54440,Direct Payments,552000,05-Mar-13,1900112662,"1,200.00",Redacted Personal Data,100472
WARRINGTON BOROUGH COUNCIL,http://statistics.data.gov.uk/id/local-authority/00EU,Children & Young People,CHL,Connexions 14-19,32065,Electricity,210000,22-Mar-13,1900114307,"1,684.00",British Gas Trading Limited,100484
WARRINGTON BOROUGH COUNCIL,http://statistics.data.gov.uk/id/local-authority/00EU,Neighbourhood & Community Services,NCS,Care Purchase - OP & OT South,54480,CP - Housing with Care - External,494450,13-Mar-13,1900113480,934,The Extracare Charitable Trust,100497
WARRINGTON BOROUGH COUNCIL,http://statistics.data.gov.uk/id/local-authority/00EU,Neighbourhood & Community Services,NCS,Care Purchase Budget,54490,CP - Cont Care - External,441350,13-Mar-13,1900113480,"2,393.00",The Extracare Charitable Trust,100497
WARRINGTON BOROUGH COUNCIL,http://statistics.data.gov.uk/id/local-authority/00EU,Neighbourhood & Community Services,NCS,Care Purchase - PD,54440,CP - Housing with Care - External,494450,13-Mar-13,1900113480,"2,393.00",The Extracare Charitable Trust,100497
WARRINGTON BOROUGH COUNCIL,http://statistics.data.gov.uk/id/local-authority/00EU,Neighbourhood & Community Services,NCS,Care Purchase Budget,54490,CP Free Nursing Care External,443500,13-Mar-13,1900113480,"2,826.00",The Extracare Charitable Trust,100497
WARRINGTON BOROUGH COUNCIL,http://statistics.data.gov.uk/id/local-authority/00EU,Neighbourhood & Community Services,NCS,Care Purchase - OP & OT Central,54420,CP - Housing with Care - External,494450,13-Mar-13,1900113480,"20,941.00",The Extracare Charitable Trust,100497
WARRINGTON BOROUGH COUNCIL,http://statistics.data.gov.uk/id/local-authority/00EU,Neighbourhood & Community Services,NCS,Care Purchase - OP & OT Central,54420,CP - Housing with Care - External,494450,13-Mar-13,1900113525,"1,792.00",The Extracare Charitable Trust,100497
WARRINGTON BOROUGH COUNCIL,http://statistics.data.gov.uk/id/local-authority/00EU,Neighbourhood & Community Services,NCS,Care Purchase Budget,54490,CP - Cont Care - External,441350,13-Mar-13,1900113532,568,The Extracare Charitable Trust,100497
WARRINGTON BOROUGH COUNCIL,http://statistics.data.gov.uk/id/local-authority/00EU,Neighbourhood & Community Services,NCS,Care Purchase Budget,54490,CP - Cont Care - External,441350,13-Mar-13,1900113533,568,The Extracare Charitable Trust,100497
WARRINGTON BOROUGH COUNCIL,http://statistics.data.gov.uk/id/local-authority/00EU,Neighbourhood & Community Services,NCS,Care Purchase Budget,54490,CP - Cont Care - External,441350,13-Mar-13,1900113535,568,The Extracare Charitable Trust,100497
WARRINGTON BOROUGH COUNCIL,http://statistics.data.gov.uk/id/local-authority/00EU,Neighbourhood & Community Services,NCS,Care Purchase Budget,54490,CP - Cont Care - External,441350,13-Mar-13,1900113537,568,The Extracare Charitable Trust,100497
WARRINGTON BOROUGH COUNCIL,http://statistics.data.gov.uk/id/local-authority/00EU,Neighbourhood & Community Services,NCS,Care Purchase - PD,54440,Direct Payments,552000,05-Mar-13,1900112664,"2,279.00",Redacted Personal Data,100505
WARRINGTON BOROUGH COUNCIL,http://statistics.data.gov.uk/id/local-authority/00EU,Environment & Regeneration,ER0,Building Control Services,43410,Consult.& Prof. Serv,440000,04-Mar-13,1900112252,"2,298.00",Labc,100506
WARRINGTON BOROUGH COUNCIL,http://statistics.data.gov.uk/id/local-authority/00EU,Neighbourhood & Community Services,NCS,Care Purchase - PD,54440,Direct Payments,552000,05-Mar-13,1900112665,737,Redacted Personal Data,100508
WARRINGTON BOROUGH COUNCIL,http://statistics.data.gov.uk/id/local-authority/00EU,Assistant Chief Executive,CEX,Debtors,10380,External Printing,430100,12-Mar-13,1900113437,"5,613.00",Vertex Data Science,100530
WARRINGTON BOROUGH COUNCIL,http://statistics.data.gov.uk/id/local-authority/00EU,Assistant Chief Executive,CEX,Council Tax & Recovery,10320,External Printing,430100,12-Mar-13,1900113438,948,Vertex Data Science,100530
WARRINGTON BOROUGH COUNCIL,http://statistics.data.gov.uk/id/local-authority/00EU,Assistant Chief Executive,CEX,Business Support Centre,52120,External Printing,430100,12-Mar-13,1900113438,"8,803.00",Vertex Data Science,100530
WARRINGTON BOROUGH COUNCIL,http://statistics.data.gov.uk/id/local-authority/00EU,Environment & Regeneration,ER0,Estates & Valuation,43520,Agency Supply - GF,180000,04-Mar-13,1900112238,542,Anderselite,100563
WARRINGTON BOROUGH COUNCIL,http://statistics.data.gov.uk/id/local-authority/00EU,Environment & Regeneration,ER0,Estates & Valuation,43520,Agency Supply - GF,180000,08-Mar-13,1900113286,530,Anderselite,100563
WARRINGTON BOROUGH COUNCIL,http://statistics.data.gov.uk/id/local-authority/00EU,Environment & Regeneration,ER0,Estates & Valuation,43520,Agency Supply - GF,180000,19-Mar-13,1900114003,533,Anderselite,100563
WARRINGTON BOROUGH COUNCIL,http://statistics.data.gov.uk/id/local-authority/00EU,Environment & Regeneration,ER0,Estates & Valuation,43520,Agency Supply - GF,180000,22-Mar-13,1900114274,618,Anderselite,100563
WARRINGTON BOROUGH COUNCIL,http://statistics.data.gov.uk/id/local-authority/00EU,Environment & Regeneration,ER0,Estates & Valuation,43520,Agency Supply - GF,180000,22-Mar-13,1900114310,611,Anderselite,100563
WARRINGTON BOROUGH COUNCIL,http://statistics.data.gov.uk/id/local-authority/00EU,Children & Young People,CHL,CYPS - Rents & Charges,32422,Consult.& Prof. Serv,440000,05-Mar-13,1900112455,718,John Fyfe & Partners,100566
WARRINGTON BOROUGH COUNCIL,http://statistics.data.gov.uk/id/local-authority/00EU,Assistant Chief Executive,CEX,Coroners Service,11100,Post Mortem Fees-Rep,440250,07-Mar-13,1900113191,"1,275.00",Dr N Alash,100579
WARRINGTON BOROUGH COUNCIL,http://statistics.data.gov.uk/id/local-authority/00EU,Neighbourhood & Community Services,NCS,Care Purchase - Learning Disability,54450,CP-LongStayExternal,441150,13-Mar-13,1900113555,"2,797.00",Redacted Personal Data,100583
WARRINGTON BOROUGH COUNCIL,http://statistics.data.gov.uk/id/local-authority/00EU,Environment & Regeneration,ER0,Industrial Estates,43570,Consult.& Prof. Serv,440000,27-Mar-13,1900114794,"1,400.00",Redacted Personal Data,100591
WARRINGTON BOROUGH COUNCIL,http://statistics.data.gov.uk/id/local-authority/00EU,Children & Young People,CYP,Childrens & Young People,81000,Furniture & Fittings,400150,07-Mar-13,1900113219,"34,282.00",Southerns Office Interiors,100604
WARRINGTON BOROUGH COUNCIL,http://statistics.data.gov.uk/id/local-authority/00EU,Neighbourhood & Community Services,NCS,Care Purchase - Learning Disability,54450,Direct Payments,552000,05-Mar-13,1900112666,"1,120.00",Redacted Personal Data,100607
WARRINGTON BOROUGH COUNCIL,http://statistics.data.gov.uk/id/local-authority/00EU,Neighbourhood & Community Services,NCS,Care Purchase - OP & OT West,54470,CP-Nursing Care-External,441200,21-Mar-13,1900114225,"1,496.00",Four Seasons Health Care,100629
WARRINGTON BOROUGH COUNCIL,http://statistics.data.gov.uk/id/local-authority/00EU,Neighbourhood & Community Services,NCS,Care Purchase - PD,54440,Direct Payments,552000,05-Mar-13,1900112668,"1,907.00",Redacted Personal Data,100666
WARRINGTON BOROUGH COUNCIL,http://statistics.data.gov.uk/id/local-authority/00EU,Neighbourhood & Community Services,NCS,Care Purchase - PD,54440,Direct Payments,552000,05-Mar-13,1900112669,"1,778.00",Redacted Personal Data,100667
WARRINGTON BOROUGH COUNCIL,http://statistics.data.gov.uk/id/local-authority/00EU,Environment & Regeneration,ER0,ICT & Business Improvement,23020,Postages,450000,01-Mar-13,1900112161,"49,000.00",Neopost Finance Ltd Supplies/Top up,100694
WARRINGTON BOROUGH COUNCIL,http://statistics.data.gov.uk/id/local-authority/00EU,Environment & Regeneration,ER0,Postal & Courier Services,52130,Postages,450000,01-Mar-13,1900112191,"1,818.00",Neopost Finance Ltd Supplies/Top up,100694
WARRINGTON BOROUGH COUNCIL,http://statistics.data.gov.uk/id/local-authority/00EU,Neighbourhood & Community Services,NCS,Care Purchase - OP & OT West,54470,CP-Nursing Care-External,441200,13-Mar-13,1900113501,"6,909.00",Alexandra Care Home,100708
WARRINGTON BOROUGH COUNCIL,http://statistics.data.gov.uk/id/local-authority/00EU,Neighbourhood & Community Services,NCS,Care Purchase - OP & OT South,54480,CP-LongStayExternal,441150,26-Mar-13,1900114554,"2,475.00",Alexandra Care Home,100708
WARRINGTON BOROUGH COUNCIL,http://statistics.data.gov.uk/id/local-authority/00EU,Neighbourhood & Community Services,NCS,Care Purchase - OP & OT Central,54420,CP-Nursing Care-External,441200,26-Mar-13,1900114555,"1,564.00",Alexandra Care Home,100708
WARRINGTON BOROUGH COUNCIL,http://statistics.data.gov.uk/id/local-authority/00EU,Neighbourhood & Community Services,NCS,Care Purchase - Mental Health Team 1,54230,CP-Domicil.External,440950,05-Mar-13,1900112532,"3,043.00",Independent Living Alliance,100726
WARRINGTON BOROUGH COUNCIL,http://statistics.data.gov.uk/id/local-authority/00EU,Neighbourhood & Community Services,NCS,Care Purchase - ABI,54260,CP-Domicil.External,440950,13-Mar-13,1900113488,"2,357.00",Independent Living Alliance,100726
WARRINGTON BOROUGH COUNCIL,http://statistics.data.gov.uk/id/local-authority/00EU,Neighbourhood & Community Services,NCS,Care Purchase - ABI,54260,CP-Domicil.External,440950,13-Mar-13,1900113507,"3,212.00",Independent Living Alliance,100726
WARRINGTON BOROUGH COUNCIL,http://statistics.data.gov.uk/id/local-authority/00EU,Neighbourhood & Community Services,NCS,Care Purchase - Mental Health Team 2,54240,CP-Domicil.External,440950,14-Mar-13,1900113739,"1,201.00",Independent Living Alliance,100726
WARRINGTON BOROUGH COUNCIL,http://statistics.data.gov.uk/id/local-authority/00EU,Environment & Regeneration,ER0,Homelessness,43650,Emergency Accommodation Allowance,550500,20-Mar-13,1900114073,"1,681.00",Independent Living Alliance,100726
WARRINGTON BOROUGH COUNCIL,http://statistics.data.gov.uk/id/local-authority/00EU,Environment & Regeneration,ER0,Homelessness,43650,Emergency Accommodation Allowance,550500,20-Mar-13,1900114074,"1,401.00",Independent Living Alliance,100726
WARRINGTON BOROUGH COUNCIL,http://statistics.data.gov.uk/id/local-authority/00EU,Neighbourhood & Community Services,NCS,Care Purchase - PD,54440,Supporting People - External,441250,21-Mar-13,1900114236,"1,000.00",Independent Living Alliance,100726
WARRINGTON BOROUGH COUNCIL,http://statistics.data.gov.uk/id/local-authority/00EU,Neighbourhood & Community Services,NCS,Care Purchase - PD,54440,CP-Domicil.External,440950,21-Mar-13,1900114236,"2,922.00",Independent Living Alliance,100726
WARRINGTON BOROUGH COUNCIL,http://statistics.data.gov.uk/id/local-authority/00EU,Neighbourhood & Community Services,NCS,Care Purchase - Mental Health Team 1,54230,Supporting People - External,441250,21-Mar-13,1900114237,"1,000.00",Independent Living Alliance,100726
WARRINGTON BOROUGH COUNCIL,http://statistics.data.gov.uk/id/local-authority/00EU,Children & Young People,CHL,DSG Early Years PVI Settings,32417,Private & Voluntary 3 Year Olds,470100,26-Mar-13,1900114869,"12,131.00",The Old Vicarage,104991
WARRINGTON BOROUGH COUNCIL,http://statistics.data.gov.uk/id/local-authority/00EU,Children & Young People,CHL,DSG Early Years PVI Settings,32417,Private & Voluntary 4 Year Olds,470150,26-Mar-13,1900114930,"5,438.00",The Old Vicarage,104991
WARRINGTON BOROUGH COUNCIL,http://statistics.data.gov.uk/id/local-authority/00EU,Neighbourhood & Community Services,NCS,Care Purchase - Learning Disability,54450,CP-Domicil.External,440950,25-Mar-13,1900114385,"2,814.00",The Ormerod Home Trust Ltd,104998
WARRINGTON BOROUGH COUNCIL,http://statistics.data.gov.uk/id/local-authority/00EU,Environment & Regeneration,ER0,Markets,43711,Equipment Purchase & Contract,400000,06-Mar-13,1900112652,769,Phs Group Ltd,105024
WARRINGTON BOROUGH COUNCIL,http://statistics.data.gov.uk/id/local-authority/00EU,Neighbourhood & Community Services,NCS,Care Purchase - Learning Disability,54450,CP-Domicil.External,440950,14-Mar-13,1900113735,650,P S S,105048
WARRINGTON BOROUGH COUNCIL,http://statistics.data.gov.uk/id/local-authority/00EU,Children & Young People,CHL,CiC Team 1,31100,Looked after children in Warrington,301000,27-Mar-13,1900114810,"1,813.00",P S S,105048
WARRINGTON BOROUGH COUNCIL,http://statistics.data.gov.uk/id/local-authority/00EU,Children & Young People,CHL,DSG Early Years PVI Settings,32417,Private & Voluntary 3 Year Olds,470100,01-Mar-13,1900112332,"3,661.00",The Quays Day Nursery,105052
WARRINGTON BOROUGH COUNCIL,http://statistics.data.gov.uk/id/local-authority/00EU,Children & Young People,CHL,DSG Early Years PVI Settings,32417,Private & Voluntary 4 Year Olds,470150,01-Mar-13,1900112406,"1,092.00",The Quays Day Nursery,105052
WARRINGTON BOROUGH COUNCIL,http://statistics.data.gov.uk/id/local-authority/00EU,Children & Young People,CHL,DSG Early Years PVI Settings,32417,Private & Voluntary 3 Year Olds,470100,26-Mar-13,1900114870,"7,530.00",The Quays Day Nursery,105052
WARRINGTON BOROUGH COUNCIL,http://statistics.data.gov.uk/id/local-authority/00EU,Children & Young People,CHL,DSG Early Years PVI Settings,32417,Private & Voluntary 4 Year Olds,470150,26-Mar-13,1900114931,"3,598.00",The Quays Day Nursery,105052
WARRINGTON BOROUGH COUNCIL,http://statistics.data.gov.uk/id/local-authority/00EU,Neighbourhood & Community Services,NCS,Care Purchase - Mental Health Team 3,54250,CP-Domicil.External,440950,25-Mar-13,1900114372,"1,628.00",Medico Nursing and Homecare,105063
WARRINGTON BOROUGH COUNCIL,http://statistics.data.gov.uk/id/local-authority/00EU,Neighbourhood & Community Services,NCS,Care Purchase - OP & OT South,54480,CP-Domicil.External,440950,25-Mar-13,1900114372,"2,649.00",Medico Nursing and Homecare,105063
WARRINGTON BOROUGH COUNCIL,http://statistics.data.gov.uk/id/local-authority/00EU,Neighbourhood & Community Services,NCS,Care Purchase -OP & OT East,54430,CP-Domicil.External,440950,25-Mar-13,1900114372,"3,102.00",Medico Nursing and Homecare,105063
WARRINGTON BOROUGH COUNCIL,http://statistics.data.gov.uk/id/local-authority/00EU,Neighbourhood & Community Services,NCS,Care Purchase - OP & OT West,54470,CP-Domicil.External,440950,25-Mar-13,1900114372,"4,835.00",Medico Nursing and Homecare,105063
WARRINGTON BOROUGH COUNCIL,http://statistics.data.gov.uk/id/local-authority/00EU,Neighbourhood & Community Services,NCS,Care Purchase - PD,54440,CP-Domicil.External,440950,25-Mar-13,1900114372,"4,951.00",Medico Nursing and Homecare,105063
WARRINGTON BOROUGH COUNCIL,http://statistics.data.gov.uk/id/local-authority/00EU,Neighbourhood & Community Services,NCS,Care Purchase - OP & OT Central,54420,CP-Domicil.External,440950,25-Mar-13,1900114372,"7,516.00",Medico Nursing and Homecare,105063
WARRINGTON BOROUGH COUNCIL,http://statistics.data.gov.uk/id/local-authority/00EU,Children & Young People,CYP,Childrens Other,81004,ICT Comms - Equipment Purchase,450100,19-Mar-13,1900114018,"3,898.00",Rm Education Plc,105066
WARRINGTON BOROUGH COUNCIL,http://statistics.data.gov.uk/id/local-authority/00EU,Neighbourhood & Community Services,NCS,Care Purchase Budget,54490,CP ExternalOther Exp,440800,06-Mar-13,1900112589,"15,000.00",Rosevilla Residential Home,105084
WARRINGTON BOROUGH COUNCIL,http://statistics.data.gov.uk/id/local-authority/00EU,Neighbourhood & Community Services,NCS,Care Purchase Budget,54490,CP ExternalOther Exp,440800,27-Mar-13,1900114664,"5,336.00",Rosevilla Residential Home,105084
WARRINGTON BOROUGH COUNCIL,http://statistics.data.gov.uk/id/local-authority/00EU,Neighbourhood & Community Services,NCS,Care Purchase - Learning Disability,54450,CP-LongStayExternal,441150,13-Mar-13,1900113493,"16,803.00",St Helens Mbc,105097
WARRINGTON BOROUGH COUNCIL,http://statistics.data.gov.uk/id/local-authority/00EU,Children & Young People,CHL,DSG Inter Authority Recoupment,32009,Recoupment Charges,490700,28-Mar-13,1900115077,"31,626.00",St Helens Mbc,105097
WARRINGTON BOROUGH COUNCIL,http://statistics.data.gov.uk/id/local-authority/00EU,Children & Young People,CHL,DSG Inter Authority Recoupment,32009,Recoupment Charges,490700,28-Mar-13,1900115078,"2,051.00",St Helens Mbc,105097
WARRINGTON BOROUGH COUNCIL,http://statistics.data.gov.uk/id/local-authority/00EU,Neighbourhood & Community Services,NCS,Care Purchase - PD,54440,CP-LongStayExternal,441150,13-Mar-13,1900113460,"4,584.00",Scope,105109
WARRINGTON BOROUGH COUNCIL,http://statistics.data.gov.uk/id/local-authority/00EU,Neighbourhood & Community Services,NCS,Care Purchase - Mental Health Team 1,54230,CP-Domicil.External,440950,15-Mar-13,1900113777,534,Premier Care Cheshire Ltd,105142
WARRINGTON BOROUGH COUNCIL,http://statistics.data.gov.uk/id/local-authority/00EU,Neighbourhood & Community Services,NCS,Care Purchase - Mental Health Team 2,54240,CP-Domicil.External,440950,15-Mar-13,1900113777,"1,773.00",Premier Care Cheshire Ltd,105142
WARRINGTON BOROUGH COUNCIL,http://statistics.data.gov.uk/id/local-authority/00EU,Neighbourhood & Community Services,NCS,Care Purchase - Learning Disability,54450,CP-Domicil.External,440950,15-Mar-13,1900113777,"2,577.00",Premier Care Cheshire Ltd,105142
WARRINGTON BOROUGH COUNCIL,http://statistics.data.gov.uk/id/local-authority/00EU,Neighbourhood & Community Services,NCS,Care Purchase Budget,54490,CP - Cont Care - External,441350,15-Mar-13,1900113777,"3,190.00",Premier Care Cheshire Ltd,105142
WARRINGTON BOROUGH COUNCIL,http://statistics.data.gov.uk/id/local-authority/00EU,Neighbourhood & Community Services,NCS,Care Purchase - OP & OT South,54480,CP-Domicil.External,440950,15-Mar-13,1900113777,"6,577.00",Premier Care Cheshire Ltd,105142
WARRINGTON BOROUGH COUNCIL,http://statistics.data.gov.uk/id/local-authority/00EU,Neighbourhood & Community Services,NCS,Care Purchase - PD,54440,CP-Domicil.External,440950,15-Mar-13,1900113777,"6,588.00",Premier Care Cheshire Ltd,105142
WARRINGTON BOROUGH COUNCIL,http://statistics.data.gov.uk/id/local-authority/00EU,Neighbourhood & Community Services,NCS,Care Purchase - OP & OT Central,54420,CP-Domicil.External,440950,15-Mar-13,1900113777,"13,224.00",Premier Care Cheshire Ltd,105142
WARRINGTON BOROUGH COUNCIL,http://statistics.data.gov.uk/id/local-authority/00EU,Neighbourhood & Community Services,NCS,Care Purchase -OP & OT East,54430,CP-Domicil.External,440950,15-Mar-13,1900113777,"16,700.00",Premier Care Cheshire Ltd,105142
WARRINGTON BOROUGH COUNCIL,http://statistics.data.gov.uk/id/local-authority/00EU,Neighbourhood & Community Services,NCS,Care Purchase - OP & OT West,54470,CP-Domicil.External,440950,15-Mar-13,1900113777,"18,671.00",Premier Care Cheshire Ltd,105142
WARRINGTON BOROUGH COUNCIL,http://statistics.data.gov.uk/id/local-authority/00EU,Holding Accounts,HOL,Insurance Fund,91100,Insurance Premium,443350,21-Mar-13,1900114193,"4,636.00",Standard Securities,105156
WARRINGTON BOROUGH COUNCIL,http://statistics.data.gov.uk/id/local-authority/00EU,Children & Young People,CHL,Assistant Director Targeted Services,30001,Agency Supply - GF,180000,20-Mar-13,1900114093,"3,049.00",Stockport M B C,105160
WARRINGTON BOROUGH COUNCIL,http://statistics.data.gov.uk/id/local-authority/00EU,Neighbourhood & Community Services,NCS,Care Purchase Budget,54490,CP ExternalOther Exp,440800,06-Mar-13,1900112609,"60,000.00",Summerville Nursing Home -Private C,105162
WARRINGTON BOROUGH COUNCIL,http://statistics.data.gov.uk/id/local-authority/00EU,Neighbourhood & Community Services,NCS,Care Purchase Budget,54490,CP ExternalOther Exp,440800,06-Mar-13,1900112594,"8,000.00",Thelwall Grange Nursing Home,105174
WARRINGTON BOROUGH COUNCIL,http://statistics.data.gov.uk/id/local-authority/00EU,Neighbourhood & Community Services,NCS,Care Purchase Budget,54490,CP ExternalOther Exp,440800,06-Mar-13,1900112611,"55,000.00",Minster Care Management Ltd,105179
WARRINGTON BOROUGH COUNCIL,http://statistics.data.gov.uk/id/local-authority/00EU,Neighbourhood & Community Services,NCS,Care Purchase Budget,54490,CP ExternalOther Exp,440800,22-Mar-13,1900114335,"6,486.00",Minster Care Management Ltd,105179
WARRINGTON BOROUGH COUNCIL,http://statistics.data.gov.uk/id/local-authority/00EU,Neighbourhood & Community Services,NCS,Care Purchase Budget,54490,CP ExternalOther Exp,440800,06-Mar-13,1900112610,"70,000.00",Warrington Community Care,105229
WARRINGTON BOROUGH COUNCIL,http://statistics.data.gov.uk/id/local-authority/00EU,Neighbourhood & Community Services,NCS,Care Purchase - OP & OT West,54470,CP-LongStayExternal,441150,13-Mar-13,1900113538,"1,920.00",Barchester Homes Ltd,105246
WARRINGTON BOROUGH COUNCIL,http://statistics.data.gov.uk/id/local-authority/00EU,Neighbourhood & Community Services,NCS,Care Purchase - OP & OT West,54470,CP-LongStayExternal,441150,13-Mar-13,1900113541,726,Barchester Homes Ltd,105246
WARRINGTON BOROUGH COUNCIL,http://statistics.data.gov.uk/id/local-authority/00EU,Neighbourhood & Community Services,NCS,Care Purchase Budget,54490,CP Free Nursing Care External,443500,21-Mar-13,1900114213,"16,903.00",Barchester Homes Ltd,105246
WARRINGTON BOROUGH COUNCIL,http://statistics.data.gov.uk/id/local-authority/00EU,Neighbourhood & Community Services,NCS,Carers Co-ordinator,53240,CP - Cont Care - External,441350,21-Mar-13,1900114214,"1,414.00",Barchester Homes Ltd,105246
WARRINGTON BOROUGH COUNCIL,http://statistics.data.gov.uk/id/local-authority/00EU,Neighbourhood & Community Services,NCS,Care Purchase - OP & OT West,54470,CP-LongStayExternal,441150,21-Mar-13,1900114214,"1,540.00",Barchester Homes Ltd,105246
WARRINGTON BOROUGH COUNCIL,http://statistics.data.gov.uk/id/local-authority/00EU,Neighbourhood & Community Services,NCS,Care Purchase -OP & OT East,54430,CP-Nursing Care-External,441200,21-Mar-13,1900114214,"1,712.00",Barchester Homes Ltd,105246
WARRINGTON BOROUGH COUNCIL,http://statistics.data.gov.uk/id/local-authority/00EU,Neighbourhood & Community Services,NCS,Care Purchase - OP & OT Central,54420,CP-Nursing Care-External,441200,21-Mar-13,1900114214,"5,503.00",Barchester Homes Ltd,105246
WARRINGTON BOROUGH COUNCIL,http://statistics.data.gov.uk/id/local-authority/00EU,Neighbourhood & Community Services,NCS,Care Purchase Budget,54490,CP - Cont Care - External,441350,21-Mar-13,1900114214,"8,595.00",Barchester Homes Ltd,105246
WARRINGTON BOROUGH COUNCIL,http://statistics.data.gov.uk/id/local-authority/00EU,Neighbourhood & Community Services,NCS,Care Purchase - OP & OT West,54470,CP-Nursing Care-External,441200,21-Mar-13,1900114214,"29,226.00",Barchester Homes Ltd,105246
WARRINGTON BOROUGH COUNCIL,http://statistics.data.gov.uk/id/local-authority/00EU,Neighbourhood & Community Services,NCS,Care Purchase - Learning Disability,54450,CP-Day Care-External,441100,13-Mar-13,1900113494,"1,180.00",Wirral Autistic Society,105251
WARRINGTON BOROUGH COUNCIL,http://statistics.data.gov.uk/id/local-authority/00EU,Neighbourhood & Community Services,NCS,Care Purchase - Learning Disability,54450,CP-Domicil.External,440950,13-Mar-13,1900113494,"2,622.00",Wirral Autistic Society,105251
WARRINGTON BOROUGH COUNCIL,http://statistics.data.gov.uk/id/local-authority/00EU,Environment & Regeneration,ER0,Printing & Graphics,23040,Equipment Purchase & Contract,400000,11-Mar-13,1900113379,"6,099.00",Xerox Finance,105255
WARRINGTON BOROUGH COUNCIL,http://statistics.data.gov.uk/id/local-authority/00EU,Holding Accounts,HOL,Insurance Fund,91100,Insurance Claims,443400,11-Mar-13,1900113353,"2,480.00",Zurich Insurance Company,105263
WARRINGTON BOROUGH COUNCIL,http://statistics.data.gov.uk/id/local-authority/00EU,Neighbourhood & Community Services,NCS,Care Purchase - PD,54440,CP-Domicil.External,440950,13-Mar-13,1900113475,920,Castlerock Recruitment Group,105279
WARRINGTON BOROUGH COUNCIL,http://statistics.data.gov.uk/id/local-authority/00EU,Neighbourhood & Community Services,NCS,Care Purchase -OP & OT East,54430,CP-Domicil.External,440950,13-Mar-13,1900113475,"1,083.00",Castlerock Recruitment Group,105279
WARRINGTON BOROUGH COUNCIL,http://statistics.data.gov.uk/id/local-authority/00EU,Neighbourhood & Community Services,NCS,Care Purchase - OP & OT South,54480,CP-Domicil.External,440950,13-Mar-13,1900113475,"1,798.00",Castlerock Recruitment Group,105279
WARRINGTON BOROUGH COUNCIL,http://statistics.data.gov.uk/id/local-authority/00EU,Neighbourhood & Community Services,NCS,Care Purchase - OP & OT Central,54420,CP-Domicil.External,440950,13-Mar-13,1900113475,"2,702.00",Castlerock Recruitment Group,105279
WARRINGTON BOROUGH COUNCIL,http://statistics.data.gov.uk/id/local-authority/00EU,Neighbourhood & Community Services,NCS,Care Purchase - PD,54440,CP-Domicil.External,440950,13-Mar-13,1900113487,967,Castlerock Recruitment Group,105279
WARRINGTON BOROUGH COUNCIL,http://statistics.data.gov.uk/id/local-authority/00EU,Neighbourhood & Community Services,NCS,Care Purchase -OP & OT East,54430,CP-Domicil.External,440950,13-Mar-13,1900113487,"1,454.00",Castlerock Recruitment Group,105279
WARRINGTON BOROUGH COUNCIL,http://statistics.data.gov.uk/id/local-authority/00EU,Neighbourhood & Community Services,NCS,Care Purchase - OP & OT South,54480,CP-Domicil.External,440950,13-Mar-13,1900113487,"1,713.00",Castlerock Recruitment Group,105279
WARRINGTON BOROUGH COUNCIL,http://statistics.data.gov.uk/id/local-authority/00EU,Neighbourhood & Community Services,NCS,Care Purchase - OP & OT Central,54420,CP-Domicil.External,440950,13-Mar-13,1900113487,"2,865.00",Castlerock Recruitment Group,105279
WARRINGTON BOROUGH COUNCIL,http://statistics.data.gov.uk/id/local-authority/00EU,Neighbourhood & Community Services,NCS,Care Purchase - PD,54440,CP-Domicil.External,440950,13-Mar-13,1900113508,894,Castlerock Recruitment Group,105279
WARRINGTON BOROUGH COUNCIL,http://statistics.data.gov.uk/id/local-authority/00EU,Neighbourhood & Community Services,NCS,Care Purchase -OP & OT East,54430,CP-Domicil.External,440950,13-Mar-13,1900113508,"1,193.00",Castlerock Recruitment Group,105279
WARRINGTON BOROUGH COUNCIL,http://statistics.data.gov.uk/id/local-authority/00EU,Neighbourhood & Community Services,NCS,Care Purchase - OP & OT South,54480,CP-Domicil.External,440950,13-Mar-13,1900113508,"1,832.00",Castlerock Recruitment Group,105279
WARRINGTON BOROUGH COUNCIL,http://statistics.data.gov.uk/id/local-authority/00EU,Neighbourhood & Community Services,NCS,Care Purchase - OP & OT Central,54420,CP-Domicil.External,440950,13-Mar-13,1900113508,"2,820.00",Castlerock Recruitment Group,105279
WARRINGTON BOROUGH COUNCIL,http://statistics.data.gov.uk/id/local-authority/00EU,Neighbourhood & Community Services,NCS,Care Purchase - PD,54440,CP-Domicil.External,440950,13-Mar-13,1900113540,901,Castlerock Recruitment Group,105279
WARRINGTON BOROUGH COUNCIL,http://statistics.data.gov.uk/id/local-authority/00EU,Neighbourhood & Community Services,NCS,Care Purchase -OP & OT East,54430,CP-Domicil.External,440950,13-Mar-13,1900113540,"1,391.00",Castlerock Recruitment Group,105279
WARRINGTON BOROUGH COUNCIL,http://statistics.data.gov.uk/id/local-authority/00EU,Neighbourhood & Community Services,NCS,Care Purchase - OP & OT South,54480,CP-Domicil.External,440950,13-Mar-13,1900113540,"1,737.00",Castlerock Recruitment Group,105279
WARRINGTON BOROUGH COUNCIL,http://statistics.data.gov.uk/id/local-authority/00EU,Neighbourhood & Community Services,NCS,Care Purchase - OP & OT Central,54420,CP-Domicil.External,440950,13-Mar-13,1900113540,"2,809.00",Castlerock Recruitment Group,105279
WARRINGTON BOROUGH COUNCIL,http://statistics.data.gov.uk/id/local-authority/00EU,Children & Young People,CHL,Child Disability,32212,CP-Domicil.External,440950,20-Mar-13,1900114125,"2,520.00",Castlerock Recruitment Group,105279
WARRINGTON BOROUGH COUNCIL,http://statistics.data.gov.uk/id/local-authority/00EU,Children & Young People,CHL,Child Disability,32212,CP-Domicil.External,440950,20-Mar-13,1900114127,"3,628.00",Castlerock Recruitment Group,105279
WARRINGTON BOROUGH COUNCIL,http://statistics.data.gov.uk/id/local-authority/00EU,Children & Young People,CHL,Child Disability,32212,CP-Domicil.External,440950,20-Mar-13,1900114128,"2,621.00",Castlerock Recruitment Group,105279
WARRINGTON BOROUGH COUNCIL,http://statistics.data.gov.uk/id/local-authority/00EU,Neighbourhood & Community Services,NCS,Care Purchase - PD,54440,CP-Domicil.External,440950,27-Mar-13,1900114712,967,Castlerock Recruitment Group,105279
WARRINGTON BOROUGH COUNCIL,http://statistics.data.gov.uk/id/local-authority/00EU,Neighbourhood & Community Services,NCS,Care Purchase -OP & OT East,54430,CP-Domicil.External,440950,27-Mar-13,1900114712,"1,405.00",Castlerock Recruitment Group,105279
WARRINGTON BOROUGH COUNCIL,http://statistics.data.gov.uk/id/local-authority/00EU,Neighbourhood & Community Services,NCS,Care Purchase - OP & OT South,54480,CP-Domicil.External,440950,27-Mar-13,1900114712,"1,728.00",Castlerock Recruitment Group,105279
WARRINGTON BOROUGH COUNCIL,http://statistics.data.gov.uk/id/local-authority/00EU,Neighbourhood & Community Services,NCS,Care Purchase - OP & OT Central,54420,CP-Domicil.External,440950,27-Mar-13,1900114712,"3,161.00",Castlerock Recruitment Group,105279
WARRINGTON BOROUGH COUNCIL,http://statistics.data.gov.uk/id/local-authority/00EU,Neighbourhood & Community Services,NCS,Care Purchase - PD,54440,CP-Domicil.External,440950,27-Mar-13,1900114715,"1,036.00",Castlerock Recruitment Group,105279
WARRINGTON BOROUGH COUNCIL,http://statistics.data.gov.uk/id/local-authority/00EU,Neighbourhood & Community Services,NCS,Care Purchase -OP & OT East,54430,CP-Domicil.External,440950,27-Mar-13,1900114715,"1,406.00",Castlerock Recruitment Group,105279
WARRINGTON BOROUGH COUNCIL,http://statistics.data.gov.uk/id/local-authority/00EU,Neighbourhood & Community Services,NCS,Care Purchase - OP & OT South,54480,CP-Domicil.External,440950,27-Mar-13,1900114715,"1,768.00",Castlerock Recruitment Group,105279
WARRINGTON BOROUGH COUNCIL,http://statistics.data.gov.uk/id/local-authority/00EU,Neighbourhood & Community Services,NCS,Care Purchase - OP & OT Central,54420,CP-Domicil.External,440950,27-Mar-13,1900114715,"3,100.00",Castlerock Recruitment Group,105279
WARRINGTON BOROUGH COUNCIL,http://statistics.data.gov.uk/id/local-authority/00EU,Neighbourhood & Community Services,NCS,Care Purchase - PD,54440,CP-Domicil.External,440950,27-Mar-13,1900114716,957,Castlerock Recruitment Group,105279
WARRINGTON BOROUGH COUNCIL,http://statistics.data.gov.uk/id/local-authority/00EU,Neighbourhood & Community Services,NCS,Care Purchase -OP & OT East,54430,CP-Domicil.External,440950,27-Mar-13,1900114716,"1,350.00",Castlerock Recruitment Group,105279
WARRINGTON BOROUGH COUNCIL,http://statistics.data.gov.uk/id/local-authority/00EU,Neighbourhood & Community Services,NCS,Care Purchase - OP & OT South,54480,CP-Domicil.External,440950,27-Mar-13,1900114716,"1,776.00",Castlerock Recruitment Group,105279
WARRINGTON BOROUGH COUNCIL,http://statistics.data.gov.uk/id/local-authority/00EU,Neighbourhood & Community Services,NCS,Care Purchase - OP & OT Central,54420,CP-Domicil.External,440950,27-Mar-13,1900114716,"3,206.00",Castlerock Recruitment Group,105279
WARRINGTON BOROUGH COUNCIL,http://statistics.data.gov.uk/id/local-authority/00EU,Neighbourhood & Community Services,NCS,Care Purchase - PD,54440,CP-Domicil.External,440950,27-Mar-13,1900114722,"1,036.00",Castlerock Recruitment Group,105279
WARRINGTON BOROUGH COUNCIL,http://statistics.data.gov.uk/id/local-authority/00EU,Neighbourhood & Community Services,NCS,Care Purchase -OP & OT East,54430,CP-Domicil.External,440950,27-Mar-13,1900114722,"1,206.00",Castlerock Recruitment Group,105279
WARRINGTON BOROUGH COUNCIL,http://statistics.data.gov.uk/id/local-authority/00EU,Neighbourhood & Community Services,NCS,Care Purchase - OP & OT South,54480,CP-Domicil.External,440950,27-Mar-13,1900114722,"1,696.00",Castlerock Recruitment Group,105279
WARRINGTON BOROUGH COUNCIL,http://statistics.data.gov.uk/id/local-authority/00EU,Neighbourhood & Community Services,NCS,Care Purchase - OP & OT Central,54420,CP-Domicil.External,440950,27-Mar-13,1900114722,"3,215.00",Castlerock Recruitment Group,105279
WARRINGTON BOROUGH COUNCIL,http://statistics.data.gov.uk/id/local-authority/00EU,Assistant Chief Executive,CEX,Coroners Service,11100,Analysts Fees,440300,06-Mar-13,1900112634,"2,889.00",Roar Forensics Ltd,105295
WARRINGTON BOROUGH COUNCIL,http://statistics.data.gov.uk/id/local-authority/00EU,Assistant Chief Executive,CEX,Coroners Service,11100,Analysts Fees,440300,06-Mar-13,1900112639,"2,326.00",Roar Forensics Ltd,105295
WARRINGTON BOROUGH COUNCIL,http://statistics.data.gov.uk/id/local-authority/00EU,Assistant Chief Executive,CEX,Coroners Service,11100,Analysts Fees,440300,07-Mar-13,1900113155,945,Roar Forensics Ltd,105295
WARRINGTON BOROUGH COUNCIL,http://statistics.data.gov.uk/id/local-authority/00EU,Assistant Chief Executive,CEX,Coroners Service,11100,Analysts Fees,440300,07-Mar-13,1900113156,"1,998.00",Roar Forensics Ltd,105295
WARRINGTON BOROUGH COUNCIL,http://statistics.data.gov.uk/id/local-authority/00EU,Assistant Chief Executive,CEX,Coroners Service,11100,Analysts Fees,440300,18-Mar-13,1900113893,"1,710.00",Roar Forensics Ltd,105295
WARRINGTON BOROUGH COUNCIL,http://statistics.data.gov.uk/id/local-authority/00EU,Children & Young People,CYP,Special,81003,Contract Works,492550,07-Mar-13,1900113157,"2,999.00",Bowsquare Ltd,105327
WARRINGTON BOROUGH COUNCIL,http://statistics.data.gov.uk/id/local-authority/00EU,Neighbourhood & Community Services,NCS,Whitecross CC,51216,Security Systems,250000,19-Mar-13,1900113953,991,Chubb Fire and Security Ltd,105335
WARRINGTON BOROUGH COUNCIL,http://statistics.data.gov.uk/id/local-authority/00EU,Neighbourhood & Community Services,NCS,Westy CC,51217,Security Systems,250000,19-Mar-13,1900113954,908,Chubb Fire and Security Ltd,105335
WARRINGTON BOROUGH COUNCIL,http://statistics.data.gov.uk/id/local-authority/00EU,Environment & Regeneration,ER1,Walton Hall Catering,41433,Security Systems,250000,20-Mar-13,1900114119,640,Chubb Fire and Security Ltd,105335
WARRINGTON BOROUGH COUNCIL,http://statistics.data.gov.uk/id/local-authority/00EU,Environment & Regeneration,ER0,Sandy Lane Depot,44230,Security Systems,250000,28-Mar-13,1900115002,"1,143.00",Chubb Fire and Security Ltd,105335
WARRINGTON BOROUGH COUNCIL,http://statistics.data.gov.uk/id/local-authority/00EU,Environment & Regeneration,ENO,Highways LTP,82004,Works Contract Paymt,442500,05-Mar-13,1900112478,"12,086.00",Dowhigh Ltd,105350
WARRINGTON BOROUGH COUNCIL,http://statistics.data.gov.uk/id/local-authority/00EU,Environment & Regeneration,ER0,Land Drainage,44120,Works Contract Paymt,442500,20-Mar-13,1900114164,"2,915.00",Enterprise Aol Ltd H2,105353
WARRINGTON BOROUGH COUNCIL,http://statistics.data.gov.uk/id/local-authority/00EU,Children & Young People,CYP,Childrens Other,81004,Materials,400500,07-Mar-13,1900113134,"2,400.00",Entrance Technology Services Ltd,105354
WARRINGTON BOROUGH COUNCIL,http://statistics.data.gov.uk/id/local-authority/00EU,Environment & Regeneration,ENO,Housing Projects,82008,Disabled Persons Grant 1996,554000,25-Mar-13,1900114486,"4,551.00",ThyssenKrupp Encasa Ltd,105382
WARRINGTON BOROUGH COUNCIL,http://statistics.data.gov.uk/id/local-authority/00EU,Environment & Regeneration,ENO,Housing Projects,82008,Disabled Persons Grant 1996,554000,27-Mar-13,1900114653,"4,128.00",ThyssenKrupp Encasa Ltd,105382
WARRINGTON BOROUGH COUNCIL,http://statistics.data.gov.uk/id/local-authority/00EU,Environment & Regeneration,ENO,Housing Projects,82008,Disabled Persons Grant 1996,554000,27-Mar-13,1900114654,"4,221.00",ThyssenKrupp Encasa Ltd,105382
WARRINGTON BOROUGH COUNCIL,http://statistics.data.gov.uk/id/local-authority/00EU,Environment & Regeneration,ENO,Housing Projects,82008,Disabled Persons Grant 1996,554000,27-Mar-13,1900114768,"3,760.00",ThyssenKrupp Encasa Ltd,105382
WARRINGTON BOROUGH COUNCIL,http://statistics.data.gov.uk/id/local-authority/00EU,Environment & Regeneration,ENO,Housing Projects,82008,Disabled Persons Grant 1996,554000,20-Mar-13,1900114107,"15,000.00",Mint Northwest Ltd,105390
WARRINGTON BOROUGH COUNCIL,http://statistics.data.gov.uk/id/local-authority/00EU,Environment & Regeneration,ENO,Housing Projects,82008,Disabled Persons Grant 1996,554000,04-Mar-13,1900112255,"8,146.00",Domestic Services And Installations,105462
WARRINGTON BOROUGH COUNCIL,http://statistics.data.gov.uk/id/local-authority/00EU,Environment & Regeneration,ENO,Housing Projects,82008,Disabled Persons Grant 1996,554000,25-Mar-13,1900114460,"4,636.00",Domestic Services And Installations,105462
WARRINGTON BOROUGH COUNCIL,http://statistics.data.gov.uk/id/local-authority/00EU,Children & Young People,CYP,Childrens Other,81004,Contract Works,492550,27-Mar-13,1900114668,"3,407.00",Sovereign,105493
WARRINGTON BOROUGH COUNCIL,http://statistics.data.gov.uk/id/local-authority/00EU,Children & Young People,CYP,Childrens Other,81004,Contract Works,492550,27-Mar-13,1900114670,"4,728.00",Sovereign,105493
WARRINGTON BOROUGH COUNCIL,http://statistics.data.gov.uk/id/local-authority/00EU,Assistant Chief Executive,CEX,Housing Benefit,10340,Computer Software - Maintenance,450850,21-Mar-13,1900114209,"4,935.00",Capita Business Services Ltd,105516
WARRINGTON BOROUGH COUNCIL,http://statistics.data.gov.uk/id/local-authority/00EU,Environment & Regeneration,ENO,Housing Projects,82008,Renewals Assistance,554050,01-Mar-13,1900112157,"22,000.00",Acorn Building Projects Ltd,105557
WARRINGTON BOROUGH COUNCIL,http://statistics.data.gov.uk/id/local-authority/00EU,Environment & Regeneration,ENO,Housing Projects,82008,Disabled Persons Grant 1996,554000,15-Mar-13,1900113823,"7,000.00",Acorn Building Projects Ltd,105557
WARRINGTON BOROUGH COUNCIL,http://statistics.data.gov.uk/id/local-authority/00EU,Environment & Regeneration,ENO,Housing Projects,82008,Disabled Persons Grant 1996,554000,20-Mar-13,1900114104,"15,000.00",Acorn Building Projects Ltd,105557
WARRINGTON BOROUGH COUNCIL,http://statistics.data.gov.uk/id/local-authority/00EU,Environment & Regeneration,ENO,Housing Projects,82008,Disabled Persons Grant 1996,554000,21-Mar-13,1900114210,"10,499.00",Acorn Building Projects Ltd,105557
WARRINGTON BOROUGH COUNCIL,http://statistics.data.gov.uk/id/local-authority/00EU,Environment & Regeneration,ENO,Housing Projects,82008,Safe & Secure Energy House Assistance,554100,25-Mar-13,1900114445,"3,752.00",Acorn Building Projects Ltd,105557
WARRINGTON BOROUGH COUNCIL,http://statistics.data.gov.uk/id/local-authority/00EU,Environment & Regeneration,ENO,Housing Projects,82008,Disabled Persons Grant 1996,554000,27-Mar-13,1900114701,"6,000.00",Acorn Building Projects Ltd,105557
WARRINGTON BOROUGH COUNCIL,http://statistics.data.gov.uk/id/local-authority/00EU,Neighbourhood & Community Services,NCS,Care Purchase - Learning Disability,54450,Direct Payments,552000,05-Mar-13,1900112821,"1,240.00",Redacted Personal Data,105576
WARRINGTON BOROUGH COUNCIL,http://statistics.data.gov.uk/id/local-authority/00EU,Neighbourhood & Community Services,NCS,Care Purchase - Learning Disability,54450,Direct Payments,552000,05-Mar-13,1900112823,538,Redacted Personal Data,105598
WARRINGTON BOROUGH COUNCIL,http://statistics.data.gov.uk/id/local-authority/00EU,Environment & Regeneration,ER0,Printing & Graphics,23040,Equipment Purchase & Contract,400000,01-Mar-13,1900112225,"6,622.00",Xerox Global Services,105611
WARRINGTON BOROUGH COUNCIL,http://statistics.data.gov.uk/id/local-authority/00EU,Neighbourhood & Community Services,NCS,Care Purchase - Learning Disability,54450,Direct Payments,552000,05-Mar-13,1900112825,"1,010.00",Redacted Personal Data,105621
WARRINGTON BOROUGH COUNCIL,http://statistics.data.gov.uk/id/local-authority/00EU,Neighbourhood & Community Services,NCS,Care Purchase - Learning Disability,54450,Direct Payments,552000,05-Mar-13,1900112829,638,Redacted Personal Data,105625
WARRINGTON BOROUGH COUNCIL,http://statistics.data.gov.uk/id/local-authority/00EU,Neighbourhood & Community Services,NCS,Care Purchase - Learning Disability,54450,Direct Payments,552000,05-Mar-13,1900112835,669,Redacted Personal Data,105641
WARRINGTON BOROUGH COUNCIL,http://statistics.data.gov.uk/id/local-authority/00EU,Environment & Regeneration,ER1,Woolston Depot,41331,Non BMP General Repairs,200050,04-Mar-13,1900112234,"4,282.00",Manchester Working Limited,105646
WARRINGTON BOROUGH COUNCIL,http://statistics.data.gov.uk/id/local-authority/00EU,Children & Young People,CYP,Childrens Other,81004,Specific Work,200200,15-Mar-13,1900113758,812,Manchester Working Limited,105646
WARRINGTON BOROUGH COUNCIL,http://statistics.data.gov.uk/id/local-authority/00EU,Neighbourhood & Community Services,NCS,Alert,54130,Non BMP General Repairs,200050,21-Mar-13,1900114184,582,Manchester Working Limited,105646
WARRINGTON BOROUGH COUNCIL,http://statistics.data.gov.uk/id/local-authority/00EU,Environment & Regeneration,ER1,Woolston Depot,41331,Non BMP General Repairs,200050,21-Mar-13,1900114184,"1,081.00",Manchester Working Limited,105646
WARRINGTON BOROUGH COUNCIL,http://statistics.data.gov.uk/id/local-authority/00EU,Holding Accounts,HOL,Single Billing Holding Account,91130,Specific Work,200200,21-Mar-13,1900114197,"12,736.00",Manchester Working Limited,105646
WARRINGTON BOROUGH COUNCIL,http://statistics.data.gov.uk/id/local-authority/00EU,Holding Accounts,HOL,Single Billing Holding Account,91130,Non BMP General Repairs,200050,21-Mar-13,1900114203,"9,744.00",Manchester Working Limited,105646
WARRINGTON BOROUGH COUNCIL,http://statistics.data.gov.uk/id/local-authority/00EU,Holding Accounts,HOL,Single Billing Holding Account,91130,Specific Work,200200,21-Mar-13,1900114205,"12,588.00",Manchester Working Limited,105646
WARRINGTON BOROUGH COUNCIL,http://statistics.data.gov.uk/id/local-authority/00EU,Neighbourhood & Community Services,NCS,Care Purchase - PD,54440,Direct Payments,552000,05-Mar-13,1900112836,784,Redacted Personal Data,105665
WARRINGTON BOROUGH COUNCIL,http://statistics.data.gov.uk/id/local-authority/00EU,Neighbourhood & Community Services,NCS,Care Purchase - OP & OT Central,54420,Direct Payments,552000,05-Mar-13,1900112837,693,Redacted Personal Data,105666
WARRINGTON BOROUGH COUNCIL,http://statistics.data.gov.uk/id/local-authority/00EU,Neighbourhood & Community Services,NCS,Care Purchase - OP & OT South,54480,Direct Payments,552000,05-Mar-13,1900112843,"1,570.00",Redacted Personal Data,105687
WARRINGTON BOROUGH COUNCIL,http://statistics.data.gov.uk/id/local-authority/00EU,Neighbourhood & Community Services,NCS,HIV / AIDS,54920,Payment of Grants,470050,20-Mar-13,1900114063,"9,145.00",Body Positive Cheshire & N Wales,105707
WARRINGTON BOROUGH COUNCIL,http://statistics.data.gov.uk/id/local-authority/00EU,Children & Young People,CHL,DSG Early Years PVI Settings,32417,Private & Voluntary 3 Year Olds,470100,01-Mar-13,1900112291,"4,797.00",Kids Planet Warrington,105710
WARRINGTON BOROUGH COUNCIL,http://statistics.data.gov.uk/id/local-authority/00EU,Children & Young People,CHL,DSG Early Years PVI Settings,32417,Private & Voluntary 3 Year Olds,470100,01-Mar-13,1900112292,"2,591.00",Kids Planet Warrington,105710
WARRINGTON BOROUGH COUNCIL,http://statistics.data.gov.uk/id/local-authority/00EU,Children & Young People,CHL,DSG Early Years PVI Settings,32417,Private & Voluntary 4 Year Olds,470150,01-Mar-13,1900112368,"2,818.00",Kids Planet Warrington,105710
WARRINGTON BOROUGH COUNCIL,http://statistics.data.gov.uk/id/local-authority/00EU,Children & Young People,CHL,DSG Early Years PVI Settings,32417,Private & Voluntary 4 Year Olds,470150,01-Mar-13,1900112369,607,Kids Planet Warrington,105710
WARRINGTON BOROUGH COUNCIL,http://statistics.data.gov.uk/id/local-authority/00EU,Children & Young People,CHL,EIG Funding - 2 Year Old,31601,Payment of Grants,470050,01-Mar-13,1900112426,"1,775.00",Kids Planet Warrington,105710
WARRINGTON BOROUGH COUNCIL,http://statistics.data.gov.uk/id/local-authority/00EU,Children & Young People,CHL,EIG Funding - 2 Year Old,31601,Payment of Grants,470050,01-Mar-13,1900112427,"1,961.00",Kids Planet Warrington,105710
WARRINGTON BOROUGH COUNCIL,http://statistics.data.gov.uk/id/local-authority/00EU,Children & Young People,CHL,DSG Early Years PVI Settings,32417,Private & Voluntary 3 Year Olds,470100,26-Mar-13,1900114837,"10,040.00",Kids Planet Warrington,105710
WARRINGTON BOROUGH COUNCIL,http://statistics.data.gov.uk/id/local-authority/00EU,Children & Young People,CHL,DSG Early Years PVI Settings,32417,Private & Voluntary 3 Year Olds,470100,26-Mar-13,1900114838,"3,347.00",Kids Planet Warrington,105710
WARRINGTON BOROUGH COUNCIL,http://statistics.data.gov.uk/id/local-authority/00EU,Children & Young People,CHL,DSG Early Years PVI Settings,32417,Private & Voluntary 4 Year Olds,470150,26-Mar-13,1900114903,"8,366.00",Kids Planet Warrington,105710
WARRINGTON BOROUGH COUNCIL,http://statistics.data.gov.uk/id/local-authority/00EU,Environment & Regeneration,ER0,Finance Office Services,42110,ICT Comms - Device Maintenance,450450,19-Mar-13,1900113977,"24,800.00",IHS Global Limited,105713
WARRINGTON BOROUGH COUNCIL,http://statistics.data.gov.uk/id/local-authority/00EU,Environment & Regeneration,ER0,Other Commercial Prop.,43560,Electricity,210000,08-Mar-13,1900113285,"1,679.00",Eon Energy LTD,105723
WARRINGTON BOROUGH COUNCIL,http://statistics.data.gov.uk/id/local-authority/00EU,Neighbourhood & Community Services,NCS,Care Purchase - PD,54440,Direct Payments,552000,05-Mar-13,1900112845,"2,912.00",Redacted Personal Data,105727
WARRINGTON BOROUGH COUNCIL,http://statistics.data.gov.uk/id/local-authority/00EU,Neighbourhood & Community Services,NCS,Care Purchase - OP & OT South,54480,Direct Payments,552000,05-Mar-13,1900112847,964,Redacted Personal Data,105729
WARRINGTON BOROUGH COUNCIL,http://statistics.data.gov.uk/id/local-authority/00EU,Neighbourhood & Community Services,NCS,Care Purchase - PD,54440,Direct Payments,552000,05-Mar-13,1900112849,849,Redacted Personal Data,105758
WARRINGTON BOROUGH COUNCIL,http://statistics.data.gov.uk/id/local-authority/00EU,Neighbourhood & Community Services,NCS,Care Purchase - IC,54290,CP - Intermediate Care - External,441300,14-Mar-13,1900113720,"35,202.00",CareConcepts (Appleton) Ltd,105804
WARRINGTON BOROUGH COUNCIL,http://statistics.data.gov.uk/id/local-authority/00EU,Neighbourhood & Community Services,NCS,Care Purchase - OP & OT Central,54420,CP-Day Care-External,441100,21-Mar-13,1900114216,"1,402.00",CareConcepts (Appleton) Ltd,105804
WARRINGTON BOROUGH COUNCIL,http://statistics.data.gov.uk/id/local-authority/00EU,Neighbourhood & Community Services,NCS,Care Purchase - OP & OT West,54470,CP-Day Care-External,441100,21-Mar-13,1900114216,"2,572.00",CareConcepts (Appleton) Ltd,105804
WARRINGTON BOROUGH COUNCIL,http://statistics.data.gov.uk/id/local-authority/00EU,Neighbourhood & Community Services,NCS,Care Purchase - OP & OT South,54480,CP-Day Care-External,441100,21-Mar-13,1900114216,"2,696.00",CareConcepts (Appleton) Ltd,105804
WARRINGTON BOROUGH COUNCIL,http://statistics.data.gov.uk/id/local-authority/00EU,Neighbourhood & Community Services,NCS,Care Purchase -OP & OT East,54430,CP-Day Care-External,441100,21-Mar-13,1900114216,"4,670.00",CareConcepts (Appleton) Ltd,105804
WARRINGTON BOROUGH COUNCIL,http://statistics.data.gov.uk/id/local-authority/00EU,Neighbourhood & Community Services,NCS,Care Purchase Budget,54490,Voids,515150,21-Mar-13,1900114216,"7,923.00",CareConcepts (Appleton) Ltd,105804
WARRINGTON BOROUGH COUNCIL,http://statistics.data.gov.uk/id/local-authority/00EU,Neighbourhood & Community Services,NCS,Care Purchase -OP & OT East,54430,CP-LongStayExternal,441150,22-Mar-13,1900114308,"1,507.00",CareConcepts (Appleton) Ltd,105804
WARRINGTON BOROUGH COUNCIL,http://statistics.data.gov.uk/id/local-authority/00EU,Neighbourhood & Community Services,NCS,Care Purchase Budget,54490,Voids,515150,22-Mar-13,1900114308,"1,772.00",CareConcepts (Appleton) Ltd,105804
WARRINGTON BOROUGH COUNCIL,http://statistics.data.gov.uk/id/local-authority/00EU,Neighbourhood & Community Services,NCS,Care Purchase - OP & OT West,54470,CP-Nursing Care-External,441200,22-Mar-13,1900114308,"1,816.00",CareConcepts (Appleton) Ltd,105804
WARRINGTON BOROUGH COUNCIL,http://statistics.data.gov.uk/id/local-authority/00EU,Neighbourhood & Community Services,NCS,Care Purchase - OP & OT South,54480,CP-LongStayExternal,441150,22-Mar-13,1900114308,"5,316.00",CareConcepts (Appleton) Ltd,105804
WARRINGTON BOROUGH COUNCIL,http://statistics.data.gov.uk/id/local-authority/00EU,Neighbourhood & Community Services,NCS,Care Purchase Budget,54490,CP Free Nursing Care External,443500,22-Mar-13,1900114308,"15,653.00",CareConcepts (Appleton) Ltd,105804
WARRINGTON BOROUGH COUNCIL,http://statistics.data.gov.uk/id/local-authority/00EU,Neighbourhood & Community Services,NCS,Care Purchase - OP & OT South,54480,CP-Nursing Care-External,441200,22-Mar-13,1900114308,"28,120.00",CareConcepts (Appleton) Ltd,105804
WARRINGTON BOROUGH COUNCIL,http://statistics.data.gov.uk/id/local-authority/00EU,Neighbourhood & Community Services,NCS,Care Purchase Budget,54490,CP - Cont Care - External,441350,22-Mar-13,1900114308,"30,800.00",CareConcepts (Appleton) Ltd,105804
WARRINGTON BOROUGH COUNCIL,http://statistics.data.gov.uk/id/local-authority/00EU,Neighbourhood & Community Services,NCS,Care Purchase - OP & OT Central,54420,Direct Payments,552000,05-Mar-13,1900112850,576,Redacted Personal Data,105861
WARRINGTON BOROUGH COUNCIL,http://statistics.data.gov.uk/id/local-authority/00EU,Children & Young People,CHL,DSG Early Years PVI Settings,32417,Private & Voluntary 3 Year Olds,470100,01-Mar-13,1900112277,"1,004.00",Croft  Pre school,105880
WARRINGTON BOROUGH COUNCIL,http://statistics.data.gov.uk/id/local-authority/00EU,Children & Young People,CHL,DSG Early Years PVI Settings,32417,Private & Voluntary 4 Year Olds,470150,01-Mar-13,1900112355,951,Croft  Pre school,105880
WARRINGTON BOROUGH COUNCIL,http://statistics.data.gov.uk/id/local-authority/00EU,Children & Young People,CHL,DSG Early Years PVI Settings,32417,Private & Voluntary 3 Year Olds,470100,26-Mar-13,1900114824,"3,395.00",Croft  Pre school,105880
WARRINGTON BOROUGH COUNCIL,http://statistics.data.gov.uk/id/local-authority/00EU,Children & Young People,CHL,DSG Early Years PVI Settings,32417,Private & Voluntary 4 Year Olds,470150,26-Mar-13,1900114890,"2,786.00",Croft  Pre school,105880
WARRINGTON BOROUGH COUNCIL,http://statistics.data.gov.uk/id/local-authority/00EU,Neighbourhood & Community Services,NCS,Care Purchase - PD,54440,Direct Payments,552000,05-Mar-13,1900112852,"1,273.00",Redacted Personal Data,105909
WARRINGTON BOROUGH COUNCIL,http://statistics.data.gov.uk/id/local-authority/00EU,Assistant Chief Executive,CEX,Coroners Service,11100,Post Mortem Fees-Rep,440250,06-Mar-13,1900112636,"1,832.00",Dr Suboda M Weerasinghe,105924
WARRINGTON BOROUGH COUNCIL,http://statistics.data.gov.uk/id/local-authority/00EU,Assistant Chief Executive,CEX,Coroners Service,11100,Post Mortem Fees-Rep,440250,07-Mar-13,1900113131,"2,319.00",Dr Suboda M Weerasinghe,105924
WARRINGTON BOROUGH COUNCIL,http://statistics.data.gov.uk/id/local-authority/00EU,Assistant Chief Executive,CEX,Coroners Service,11100,Post Mortem Fees-Rep,440250,18-Mar-13,1900113892,"2,059.00",Dr Suboda M Weerasinghe,105924
WARRINGTON BOROUGH COUNCIL,http://statistics.data.gov.uk/id/local-authority/00EU,Neighbourhood & Community Services,NCS,Care Purchase - Learning Disability,54450,Direct Payments,552000,05-Mar-13,1900112854,637,Redacted Personal Data,106066
WARRINGTON BOROUGH COUNCIL,http://statistics.data.gov.uk/id/local-authority/00EU,Neighbourhood & Community Services,NCS,Policy Dev & Public Info,56130,Car Leasing Charges,350000,05-Mar-13,1900112450,792,Alphabet UK Fleet Management,106080
WARRINGTON BOROUGH COUNCIL,http://statistics.data.gov.uk/id/local-authority/00EU,Environment & Regeneration,ER0,Customer Contact Centre,52201,Rent Of Premises,220000,12-Mar-13,1900113442,"14,250.00",Whitecrest Estate Agents,106130
WARRINGTON BOROUGH COUNCIL,http://statistics.data.gov.uk/id/local-authority/00EU,Neighbourhood & Community Services,NCS,Care Purchase - PD,54440,Direct Payments,552000,05-Mar-13,1900112856,729,Redacted Personal Data,106145
WARRINGTON BOROUGH COUNCIL,http://statistics.data.gov.uk/id/local-authority/00EU,Neighbourhood & Community Services,NCS,SLA - Grant Account,53920,Payment of Grants,470050,20-Mar-13,1900114084,557,Warrington Older Peoples Forum,106188
WARRINGTON BOROUGH COUNCIL,http://statistics.data.gov.uk/id/local-authority/00EU,Neighbourhood & Community Services,NCS,Care Purchase - Learning Disability,54450,CP ExternalOther Exp,440800,25-Mar-13,1900114448,"2,420.00",G-Map Services,106244
WARRINGTON BOROUGH COUNCIL,http://statistics.data.gov.uk/id/local-authority/00EU,Neighbourhood & Community Services,NCS,Neighbourhood Co-o South,51308,Payment of Grants,470050,28-Mar-13,1900114991,980,Friends of Alexandra Park,106251
WARRINGTON BOROUGH COUNCIL,http://statistics.data.gov.uk/id/local-authority/00EU,Neighbourhood & Community Services,NCS,Care Purchase -OP & OT East,54430,CP-LongStayExternal,441150,05-Mar-13,1900112535,"1,860.00",Eton House Residential Home,106252
WARRINGTON BOROUGH COUNCIL,http://statistics.data.gov.uk/id/local-authority/00EU,Neighbourhood & Community Services,NCS,Care Purchase -OP & OT East,54430,CP-LongStayExternal,441150,26-Mar-13,1900114512,"2,059.00",Eton House Residential Home,106252
WARRINGTON BOROUGH COUNCIL,http://statistics.data.gov.uk/id/local-authority/00EU,Neighbourhood & Community Services,NCS,Care Purchase - OP & OT West,54470,Direct Payments,552000,05-Mar-13,1900112858,546,Redacted Personal Data,106258
WARRINGTON BOROUGH COUNCIL,http://statistics.data.gov.uk/id/local-authority/00EU,Children & Young People,CHL,DSG Early Years PVI Settings,32417,Private & Voluntary 3 Year Olds,470100,01-Mar-13,1900112275,"5,704.00",Cheshire Day Nursery Guardian St,106265
WARRINGTON BOROUGH COUNCIL,http://statistics.data.gov.uk/id/local-authority/00EU,Children & Young People,CHL,DSG Early Years PVI Settings,32417,Private & Voluntary 4 Year Olds,470150,01-Mar-13,1900112353,"1,111.00",Cheshire Day Nursery Guardian St,106265
WARRINGTON BOROUGH COUNCIL,http://statistics.data.gov.uk/id/local-authority/00EU,Children & Young People,CHL,EIG Funding - 2 Year Old,31601,Payment of Grants,470050,01-Mar-13,1900112423,"1,086.00",Cheshire Day Nursery Guardian St,106265
WARRINGTON BOROUGH COUNCIL,http://statistics.data.gov.uk/id/local-authority/00EU,Children & Young People,CHL,DSG Early Years PVI Settings,32417,Private & Voluntary 3 Year Olds,470100,26-Mar-13,1900114822,"10,848.00",Cheshire Day Nursery Guardian St,106265
WARRINGTON BOROUGH COUNCIL,http://statistics.data.gov.uk/id/local-authority/00EU,Children & Young People,CHL,DSG Early Years PVI Settings,32417,Private & Voluntary 4 Year Olds,470150,26-Mar-13,1900114888,"4,908.00",Cheshire Day Nursery Guardian St,106265
WARRINGTON BOROUGH COUNCIL,http://statistics.data.gov.uk/id/local-authority/00EU,Environment & Regeneration,ENP,Environment & Regeneration,82000,Consult.& Prof. Serv,440000,07-Mar-13,1900113169,"3,100.00",Ross Quality Control Limited,106280
WARRINGTON BOROUGH COUNCIL,http://statistics.data.gov.uk/id/local-authority/00EU,Environment & Regeneration,ENP,Environment & Regeneration,82000,Consult.& Prof. Serv,440000,14-Mar-13,1900113680,"1,054.00",Ross Quality Control Limited,106280
WARRINGTON BOROUGH COUNCIL,http://statistics.data.gov.uk/id/local-authority/00EU,Children & Young People,CYP,Childrens Other,81004,ICT Comms - Equipment Purchase,450100,14-Mar-13,1900113661,"3,900.00",MGL,106315
WARRINGTON BOROUGH COUNCIL,http://statistics.data.gov.uk/id/local-authority/00EU,Neighbourhood & Community Services,NCS,SLA - Grant Account,53920,Payment of Grants,470050,20-Mar-13,1900114062,"24,000.00",Volunteer Centre Warrington,106334
WARRINGTON BOROUGH COUNCIL,http://statistics.data.gov.uk/id/local-authority/00EU,Children & Young People,CYP,Childrens Other,81004,Contract Works,492550,19-Mar-13,1900114019,"6,823.00",Duncan Ross Ltd,106355
WARRINGTON BOROUGH COUNCIL,http://statistics.data.gov.uk/id/local-authority/00EU,Children & Young People,CHL,DSG Early Years PVI Settings,32417,Private & Voluntary 3 Year Olds,470100,26-Mar-13,1900114828,586,Redacted Personal Data,106386
WARRINGTON BOROUGH COUNCIL,http://statistics.data.gov.uk/id/local-authority/00EU,Neighbourhood & Community Services,NCS,Care Purchase - OP & OT West,54470,Direct Payments,552000,05-Mar-13,1900112859,706,Redacted Personal Data,106441
WARRINGTON BOROUGH COUNCIL,http://statistics.data.gov.uk/id/local-authority/00EU,Neighbourhood & Community Services,NCS,SLA - Grant Account,53920,Payment of Grants,470050,20-Mar-13,1900114070,"9,250.00",Alzheimers Society,106508
WARRINGTON BOROUGH COUNCIL,http://statistics.data.gov.uk/id/local-authority/00EU,Children & Young People,CYP,Childrens Other,81004,ICT Comms - Equipment Purchase,450100,07-Mar-13,1900113137,"1,095.00",Cunninghams EPOS Solutions,106562
WARRINGTON BOROUGH COUNCIL,http://statistics.data.gov.uk/id/local-authority/00EU,Children & Young People,CHL,SCM St Barnabas Primary School,33109,ICT Support - Maintenance,450600,20-Mar-13,1900114150,730,Cunninghams EPOS Solutions,106562
WARRINGTON BOROUGH COUNCIL,http://statistics.data.gov.uk/id/local-authority/00EU,Children & Young People,CHL,SCM Woolston Primary School,33151,ICT Support - Maintenance,450600,20-Mar-13,1900114151,730,Cunninghams EPOS Solutions,106562
WARRINGTON BOROUGH COUNCIL,http://statistics.data.gov.uk/id/local-authority/00EU,Children & Young People,CHL,SCM St Wilfrid's Primary School,33121,ICT Support - Maintenance,450600,20-Mar-13,1900114152,730,Cunninghams EPOS Solutions,106562
WARRINGTON BOROUGH COUNCIL,http://statistics.data.gov.uk/id/local-authority/00EU,Neighbourhood & Community Services,NCS,Care Purchase - PD,54440,Direct Payments,552000,05-Mar-13,1900112864,855,Redacted Personal Data,106630
WARRINGTON BOROUGH COUNCIL,http://statistics.data.gov.uk/id/local-authority/00EU,Neighbourhood & Community Services,NCS,Care Purchase - Learning Disability,54450,CP ExternalOther Exp,440800,25-Mar-13,1900114450,633,Golden Lane Housing,106663
WARRINGTON BOROUGH COUNCIL,http://statistics.data.gov.uk/id/local-authority/00EU,Children & Young People,CHL,Child Disability,32212,Direct Payments,552000,05-Mar-13,1900112866,687,Redacted Personal Data,106708
WARRINGTON BOROUGH COUNCIL,http://statistics.data.gov.uk/id/local-authority/00EU,Assistant Chief Executive,CEX,Irwell Road Training Centre,21000,Training,190150,05-Mar-13,1900112447,"1,299.00",Virgin Media Business,106824
WARRINGTON BOROUGH COUNCIL,http://statistics.data.gov.uk/id/local-authority/00EU,Environment & Regeneration,ER0,ICT & Business Improvement,23020,ICT Comms - Line Rental,450200,06-Mar-13,1900113100,844,Virgin Media Business,106824
WARRINGTON BOROUGH COUNCIL,http://statistics.data.gov.uk/id/local-authority/00EU,Environment & Regeneration,ER0,ICT & Business Improvement,23020,ICT Comms - Line Rental,450200,06-Mar-13,1900113101,793,Virgin Media Business,106824
WARRINGTON BOROUGH COUNCIL,http://statistics.data.gov.uk/id/local-authority/00EU,Environment & Regeneration,ER0,ICT & Business Improvement,23020,ICT Comms - Line Rental,450200,06-Mar-13,1900113103,818,Virgin Media Business,106824
WARRINGTON BOROUGH COUNCIL,http://statistics.data.gov.uk/id/local-authority/00EU,Environment & Regeneration,ER0,ICT & Business Improvement,23020,ICT Comms - Line Rental,450200,06-Mar-13,1900113120,795,Virgin Media Business,106824
WARRINGTON BOROUGH COUNCIL,http://statistics.data.gov.uk/id/local-authority/00EU,Environment & Regeneration,ER0,ICT & Business Improvement,23020,ICT Comms - Line Rental,450200,06-Mar-13,1900113121,"1,680.00",Virgin Media Business,106824
WARRINGTON BOROUGH COUNCIL,http://statistics.data.gov.uk/id/local-authority/00EU,Environment & Regeneration,ENP,Environment & Regeneration,82000,ICT Comms - Line Rental,450200,27-Mar-13,1900114699,"5,000.00",Virgin Media Business,106824
WARRINGTON BOROUGH COUNCIL,http://statistics.data.gov.uk/id/local-authority/00EU,Environment & Regeneration,ER0,Schools & Libraries Internet Project,23030,ICT Comms - Line Rental,450200,27-Mar-13,1900114699,"8,787.00",Virgin Media Business,106824
WARRINGTON BOROUGH COUNCIL,http://statistics.data.gov.uk/id/local-authority/00EU,Environment & Regeneration,ER0,Schools & Libraries Internet Project,23030,ICT Comms - Line Rental,450200,27-Mar-13,1900114726,"27,976.00",Virgin Media Business,106824
WARRINGTON BOROUGH COUNCIL,http://statistics.data.gov.uk/id/local-authority/00EU,Environment & Regeneration,ER0,ICT & Business Improvement,23020,ICT Comms - Line Rental,450200,28-Mar-13,1900114960,512,Virgin Media Business,106824
WARRINGTON BOROUGH COUNCIL,http://statistics.data.gov.uk/id/local-authority/00EU,Environment & Regeneration,ER0,ICT & Business Improvement,23020,ICT Comms - Line Rental,450200,28-Mar-13,1900114962,505,Virgin Media Business,106824
WARRINGTON BOROUGH COUNCIL,http://statistics.data.gov.uk/id/local-authority/00EU,Environment & Regeneration,ER0,ICT & Business Improvement,23020,ICT Comms - Line Rental,450200,28-Mar-13,1900114979,808,Virgin Media Business,106824
WARRINGTON BOROUGH COUNCIL,http://statistics.data.gov.uk/id/local-authority/00EU,Environment & Regeneration,ER0,Schools & Libraries Internet Project,23030,ICT Comms - Line Rental,450200,28-Mar-13,1900114979,"2,050.00",Virgin Media Business,106824
WARRINGTON BOROUGH COUNCIL,http://statistics.data.gov.uk/id/local-authority/00EU,Neighbourhood & Community Services,NCS,Care Purchase - Learning Disability,54450,Direct Payments,552000,05-Mar-13,1900112870,668,Redacted Personal Data,106866
WARRINGTON BOROUGH COUNCIL,http://statistics.data.gov.uk/id/local-authority/00EU,Assistant Chief Executive,CEX,Coroners Service,11100,Post Mortem Fees-Rep,440250,18-Mar-13,1900113887,"2,826.00",Dr Debdeep Dey,106869
WARRINGTON BOROUGH COUNCIL,http://statistics.data.gov.uk/id/local-authority/00EU,Children & Young People,CHL,Child Disability,32212,CP-Domicil.External,440950,11-Mar-13,1900113369,962,Glenelg Support,107016
WARRINGTON BOROUGH COUNCIL,http://statistics.data.gov.uk/id/local-authority/00EU,Neighbourhood & Community Services,NCS,Neighbourhood Co-o West,51307,Payment of Grants,470050,28-Mar-13,1900115001,"1,250.00",Warrington Ethnic Society,107219
WARRINGTON BOROUGH COUNCIL,http://statistics.data.gov.uk/id/local-authority/00EU,Neighbourhood & Community Services,NCS,77 Maliston Rd,59310,Comforts Fund Expenditure,492150,05-Mar-13,1900112534,"1,022.00",Redacted Personal Data,107291
WARRINGTON BOROUGH COUNCIL,http://statistics.data.gov.uk/id/local-authority/00EU,Neighbourhood & Community Services,NCS,Care Purchase - Learning Disability,54450,Direct Payments,552000,05-Mar-13,1900112878,679,Redacted Personal Data,107297
WARRINGTON BOROUGH COUNCIL,http://statistics.data.gov.uk/id/local-authority/00EU,Neighbourhood & Community Services,NCS,Care Purchase - PD,54440,Direct Payments,552000,05-Mar-13,1900112880,606,Redacted Personal Data,107299
WARRINGTON BOROUGH COUNCIL,http://statistics.data.gov.uk/id/local-authority/00EU,Neighbourhood & Community Services,NCS,Care Purchase - PD,54440,Direct Payments,552000,05-Mar-13,1900112881,560,Redacted Personal Data,107363
WARRINGTON BOROUGH COUNCIL,http://statistics.data.gov.uk/id/local-authority/00EU,Children & Young People,CHL,Foster Allowances,31106,Fostering Allowance,550050,01-Mar-13,1900112187,506,Redacted Personal Data,107416
WARRINGTON BOROUGH COUNCIL,http://statistics.data.gov.uk/id/local-authority/00EU,Neighbourhood & Community Services,NCS,Care Purchase -OP & OT East,54430,Direct Payments,552000,05-Mar-13,1900112883,687,Redacted Personal Data,107436
WARRINGTON BOROUGH COUNCIL,http://statistics.data.gov.uk/id/local-authority/00EU,Neighbourhood & Community Services,NCS,Care Purchase - Learning Disability,54450,Direct Payments,552000,05-Mar-13,1900112884,"1,202.00",Redacted Personal Data,107437
WARRINGTON BOROUGH COUNCIL,http://statistics.data.gov.uk/id/local-authority/00EU,Holding Accounts,HOL,Single Billing Holding Account,91130,Agency Supply - GF,180000,20-Mar-13,1900114138,"49,204.00",Hays Specialist Recruitment Ltd,107512
WARRINGTON BOROUGH COUNCIL,http://statistics.data.gov.uk/id/local-authority/00EU,Holding Accounts,HOL,Single Billing Holding Account,91130,Agency Supply - GF,180000,20-Mar-13,1900114140,"49,681.00",Hays Specialist Recruitment Ltd,107512
WARRINGTON BOROUGH COUNCIL,http://statistics.data.gov.uk/id/local-authority/00EU,Holding Accounts,HOL,Single Billing Holding Account,91130,Agency Supply - GF,180000,21-Mar-13,1900114265,"32,548.00",Hays Specialist Recruitment Ltd,107512
WARRINGTON BOROUGH COUNCIL,http://statistics.data.gov.uk/id/local-authority/00EU,Neighbourhood & Community Services,NCS,20 Stanstead Ave,59330,Comforts Fund Expenditure,492150,27-Mar-13,1900114652,650,Redacted Personal Data,107514
WARRINGTON BOROUGH COUNCIL,http://statistics.data.gov.uk/id/local-authority/00EU,Neighbourhood & Community Services,NCS,Head of Cultural & Community Develop Ser,51206,Payment of Grants,470050,05-Mar-13,1900112444,"12,000.00",Warrington Ethnic Community Assoc,107597
WARRINGTON BOROUGH COUNCIL,http://statistics.data.gov.uk/id/local-authority/00EU,Neighbourhood & Community Services,NCS,Care Purchase - PD,54440,Direct Payments,552000,05-Mar-13,1900112887,"1,019.00",Redacted Personal Data,107665
WARRINGTON BOROUGH COUNCIL,http://statistics.data.gov.uk/id/local-authority/00EU,Neighbourhood & Community Services,NCS,Care Purchase - OP & OT West,54470,Direct Payments,552000,05-Mar-13,1900112888,561,Redacted Personal Data,107667
WARRINGTON BOROUGH COUNCIL,http://statistics.data.gov.uk/id/local-authority/00EU,Children & Young People,CHL,DSG Early Years PVI Settings,32417,Private & Voluntary 3 Year Olds,470100,01-Mar-13,1900112273,"2,648.00",Butterflys Nursery,107718
WARRINGTON BOROUGH COUNCIL,http://statistics.data.gov.uk/id/local-authority/00EU,Children & Young People,CHL,DSG Early Years PVI Settings,32417,Private & Voluntary 4 Year Olds,470150,01-Mar-13,1900112350,"1,669.00",Butterflys Nursery,107718
WARRINGTON BOROUGH COUNCIL,http://statistics.data.gov.uk/id/local-authority/00EU,Children & Young People,CHL,EIG Funding - 2 Year Old,31601,Payment of Grants,470050,01-Mar-13,1900112421,"1,229.00",Butterflys Nursery,107718
WARRINGTON BOROUGH COUNCIL,http://statistics.data.gov.uk/id/local-authority/00EU,Children & Young People,CHL,DSG Early Years PVI Settings,32417,Private & Voluntary 3 Year Olds,470100,26-Mar-13,1900114819,"6,275.00",Butterflys Nursery,107718
WARRINGTON BOROUGH COUNCIL,http://statistics.data.gov.uk/id/local-authority/00EU,Children & Young People,CHL,DSG Early Years PVI Settings,32417,Private & Voluntary 4 Year Olds,470150,26-Mar-13,1900114885,"4,853.00",Butterflys Nursery,107718
WARRINGTON BOROUGH COUNCIL,http://statistics.data.gov.uk/id/local-authority/00EU,Neighbourhood & Community Services,NCS,Care Purchase - Learning Disability,54450,CP-LongStayExternal,441150,13-Mar-13,1900113510,"2,880.00",Thornton Manor,107806
WARRINGTON BOROUGH COUNCIL,http://statistics.data.gov.uk/id/local-authority/00EU,Neighbourhood & Community Services,NCS,Care Purchase - Learning Disability,54450,CP-Nursing Care-External,441200,13-Mar-13,1900113531,"2,445.00",Thornton Manor,107806
WARRINGTON BOROUGH COUNCIL,http://statistics.data.gov.uk/id/local-authority/00EU,Children & Young People,CYP,Childrens Other,81004,ICT Comms - Equipment Purchase,450100,12-Mar-13,1900113439,"6,830.00",Lloyds Business Communications Ltd,107808
WARRINGTON BOROUGH COUNCIL,http://statistics.data.gov.uk/id/local-authority/00EU,Children & Young People,CYP,Childrens Other,81004,ICT Comms - Equipment Purchase,450100,12-Mar-13,1900113440,"3,212.00",Lloyds Business Communications Ltd,107808
WARRINGTON BOROUGH COUNCIL,http://statistics.data.gov.uk/id/local-authority/00EU,Children & Young People,CYP,Secondary,81002,Furniture & Fittings,400150,19-Mar-13,1900114020,809,Lloyds Business Communications Ltd,107808
WARRINGTON BOROUGH COUNCIL,http://statistics.data.gov.uk/id/local-authority/00EU,Children & Young People,CYP,Secondary,81002,Furniture & Fittings,400150,20-Mar-13,1900114126,857,Lloyds Business Communications Ltd,107808
WARRINGTON BOROUGH COUNCIL,http://statistics.data.gov.uk/id/local-authority/00EU,Neighbourhood & Community Services,NCS,Care Purchase - Learning Disability,54450,CP-LongStayExternal,441150,13-Mar-13,1900113515,"19,951.00",Oliver House Priory,107946
WARRINGTON BOROUGH COUNCIL,http://statistics.data.gov.uk/id/local-authority/00EU,Assistant Chief Executive,CEX,Coroners Service,11100,Post Mortem Fees-Rep,440250,07-Mar-13,1900113229,"1,645.00",Dr Cheng Li,107950
WARRINGTON BOROUGH COUNCIL,http://statistics.data.gov.uk/id/local-authority/00EU,Neighbourhood & Community Services,NCS,Care Purchase - Mental Health Team 2,54240,CP-LongStayExternal,441150,13-Mar-13,1900113447,"1,902.00",Ley Community Drug Services,107958
WARRINGTON BOROUGH COUNCIL,http://statistics.data.gov.uk/id/local-authority/00EU,Neighbourhood & Community Services,NCS,Care Purchase - Mental Health Team 1,54230,CP-LongStayExternal,441150,26-Mar-13,1900114528,"1,431.00",Ley Community Drug Services,107958
WARRINGTON BOROUGH COUNCIL,http://statistics.data.gov.uk/id/local-authority/00EU,Neighbourhood & Community Services,NCS,Care Purchase - Mental Health Team 3,54250,CP-LongStayExternal,441150,26-Mar-13,1900114529,"2,038.00",Ley Community Drug Services,107958
WARRINGTON BOROUGH COUNCIL,http://statistics.data.gov.uk/id/local-authority/00EU,Neighbourhood & Community Services,NCS,Care Purchase - Mental Health Team 3,54250,CP-LongStayExternal,441150,26-Mar-13,1900114535,"2,106.00",Ley Community Drug Services,107958
WARRINGTON BOROUGH COUNCIL,http://statistics.data.gov.uk/id/local-authority/00EU,Neighbourhood & Community Services,NCS,Care Purchase - Mental Health Team 3,54250,CP-LongStayExternal,441150,26-Mar-13,1900114537,"1,902.00",Ley Community Drug Services,107958
WARRINGTON BOROUGH COUNCIL,http://statistics.data.gov.uk/id/local-authority/00EU,Neighbourhood & Community Services,NCS,Care Purchase - Mental Health Team 3,54250,CP-LongStayExternal,441150,26-Mar-13,1900114539,"2,106.00",Ley Community Drug Services,107958
WARRINGTON BOROUGH COUNCIL,http://statistics.data.gov.uk/id/local-authority/00EU,Neighbourhood & Community Services,NCS,Care Purchase - Mental Health Team 3,54250,CP-LongStayExternal,441150,26-Mar-13,1900114542,"7,270.00",Ley Community Drug Services,107958
WARRINGTON BOROUGH COUNCIL,http://statistics.data.gov.uk/id/local-authority/00EU,Neighbourhood & Community Services,NCS,Care Purchase - PD,54440,Direct Payments,552000,05-Mar-13,1900112898,637,Redacted Personal Data,107960
WARRINGTON BOROUGH COUNCIL,http://statistics.data.gov.uk/id/local-authority/00EU,Environment & Regeneration,ER1,Walton Estate,41430,Materials,400500,15-Mar-13,1900113767,545,Visit England,107980
WARRINGTON BOROUGH COUNCIL,http://statistics.data.gov.uk/id/local-authority/00EU,Neighbourhood & Community Services,NCS,Care Purchase - Learning Disability,54450,CP Adult Placement,443450,27-Mar-13,1900114697,548,Redacted Personal Data,107988
WARRINGTON BOROUGH COUNCIL,http://statistics.data.gov.uk/id/local-authority/00EU,Neighbourhood & Community Services,NCS,Care Purchase - Learning Disability,54450,CP-Nursing Care-External,441200,14-Mar-13,1900113692,"4,200.00",Health & Social Care Partnerships,107996
WARRINGTON BOROUGH COUNCIL,http://statistics.data.gov.uk/id/local-authority/00EU,Neighbourhood & Community Services,NCS,Care Purchase - Learning Disability,54450,CP-LongStayExternal,441150,14-Mar-13,1900113693,"4,200.00",Health & Social Care Partnerships,107996
WARRINGTON BOROUGH COUNCIL,http://statistics.data.gov.uk/id/local-authority/00EU,Neighbourhood & Community Services,NCS,Care Purchase - Learning Disability,54450,CP-Nursing Care-External,441200,14-Mar-13,1900113694,"4,200.00",Health & Social Care Partnerships,107996
WARRINGTON BOROUGH COUNCIL,http://statistics.data.gov.uk/id/local-authority/00EU,Neighbourhood & Community Services,NCS,Care Purchase - Learning Disability,54450,CP-Nursing Care-External,441200,14-Mar-13,1900113695,"9,240.00",Health & Social Care Partnerships,107996
WARRINGTON BOROUGH COUNCIL,http://statistics.data.gov.uk/id/local-authority/00EU,Neighbourhood & Community Services,NCS,Care Purchase - Learning Disability,54450,CP-Nursing Care-External,441200,14-Mar-13,1900113696,"9,240.00",Health & Social Care Partnerships,107996
WARRINGTON BOROUGH COUNCIL,http://statistics.data.gov.uk/id/local-authority/00EU,Neighbourhood & Community Services,NCS,Care Purchase - Learning Disability,54450,CP-Nursing Care-External,441200,14-Mar-13,1900113697,"4,800.00",Health & Social Care Partnerships,107996
WARRINGTON BOROUGH COUNCIL,http://statistics.data.gov.uk/id/local-authority/00EU,Neighbourhood & Community Services,NCS,Care Purchase - Learning Disability,54450,CP-Nursing Care-External,441200,14-Mar-13,1900113698,"4,200.00",Health & Social Care Partnerships,107996
WARRINGTON BOROUGH COUNCIL,http://statistics.data.gov.uk/id/local-authority/00EU,Neighbourhood & Community Services,NCS,Care Purchase - Learning Disability,54450,CP-Nursing Care-External,441200,14-Mar-13,1900113699,"4,800.00",Health & Social Care Partnerships,107996
WARRINGTON BOROUGH COUNCIL,http://statistics.data.gov.uk/id/local-authority/00EU,Neighbourhood & Community Services,NCS,Care Purchase - Learning Disability,54450,CP-Nursing Care-External,441200,14-Mar-13,1900113721,"5,358.00",Health & Social Care Partnerships,107996
WARRINGTON BOROUGH COUNCIL,http://statistics.data.gov.uk/id/local-authority/00EU,Environment & Regeneration,ER0,Estates & Valuation,43520,ABG Expenditure,492850,27-Mar-13,1900114801,"2,568.00",CoStar Limited,108100
WARRINGTON BOROUGH COUNCIL,http://statistics.data.gov.uk/id/local-authority/00EU,People & Improvement,PIP,People & Improvement,85000,ICT Comms - Device Maintenance,450450,06-Mar-13,1900113108,"3,388.00",Intrinsic Technology Limited,108170
WARRINGTON BOROUGH COUNCIL,http://statistics.data.gov.uk/id/local-authority/00EU,People & Improvement,PIP,People & Improvement,85000,ICT Comms - Device Maintenance,450450,06-Mar-13,1900113118,"1,960.00",Intrinsic Technology Limited,108170
WARRINGTON BOROUGH COUNCIL,http://statistics.data.gov.uk/id/local-authority/00EU,Children & Young People,CYP,Childrens Other,81004,Contract Works,492550,05-Mar-13,1900112489,"16,585.00",Pentagon Sport,108264
WARRINGTON BOROUGH COUNCIL,http://statistics.data.gov.uk/id/local-authority/00EU,Children & Young People,CHL,DSG Early Years PVI Settings,32417,Private & Voluntary 4 Year Olds,470150,01-Mar-13,1900112351,607,Redacted Personal Data,108266
WARRINGTON BOROUGH COUNCIL,http://statistics.data.gov.uk/id/local-authority/00EU,Neighbourhood & Community Services,NCS,Care Purchase - OP & OT Central,54420,CP-LongStayExternal,441150,13-Mar-13,1900113556,"2,109.00",Ideal Carehomes (Number One) Ltd,108328
WARRINGTON BOROUGH COUNCIL,http://statistics.data.gov.uk/id/local-authority/00EU,Environment & Regeneration,ENO,Housing Projects,82008,Disabled Persons Grant 1996,554000,13-Mar-13,1900113645,"12,000.00",Ehlen Construction,108366
WARRINGTON BOROUGH COUNCIL,http://statistics.data.gov.uk/id/local-authority/00EU,Children & Young People,CHL,Legal Fees - Safeguarding,30100,Legal Costs Incurred,440200,15-Mar-13,1900113840,833,Forepsych Ltd,108389
WARRINGTON BOROUGH COUNCIL,http://statistics.data.gov.uk/id/local-authority/00EU,Children & Young People,CHL,"Admissions, Transport & Student Services",33201,Consult.& Prof. Serv,440000,15-Mar-13,1900113765,750,Beachcroft LLP,108402
WARRINGTON BOROUGH COUNCIL,http://statistics.data.gov.uk/id/local-authority/00EU,Neighbourhood & Community Services,NCS,Care Purchase Budget,54490,Legal Costs Incurred,440200,22-Mar-13,1900114282,"3,410.00",Beachcroft LLP,108402
WARRINGTON BOROUGH COUNCIL,http://statistics.data.gov.uk/id/local-authority/00EU,Children & Young People,CHL,CiC Team 1,31100,Legal Costs Incurred,440200,21-Mar-13,1900114200,525,Bell Lamb & Joynson Solicitors,108488
WARRINGTON BOROUGH COUNCIL,http://statistics.data.gov.uk/id/local-authority/00EU,Neighbourhood & Community Services,NCS,Care Purchase - OP & OT West,54470,CP-LongStayExternal,441150,21-Mar-13,1900114223,"1,652.00",Ennerdale Nursing & Residential Hom,108529
WARRINGTON BOROUGH COUNCIL,http://statistics.data.gov.uk/id/local-authority/00EU,Neighbourhood & Community Services,NCS,Care Purchase - Mental Health Team 1,54230,CP-LongStayExternal,441150,25-Mar-13,1900114349,"6,381.00",HWCGS Care Ltd,108619
WARRINGTON BOROUGH COUNCIL,http://statistics.data.gov.uk/id/local-authority/00EU,Neighbourhood & Community Services,NCS,Care Purchase - Learning Disability,54450,CP-LongStayExternal,441150,25-Mar-13,1900114350,"6,649.00",HWCGS Care Ltd,108619
WARRINGTON BOROUGH COUNCIL,http://statistics.data.gov.uk/id/local-authority/00EU,Children & Young People,CHL,CiC Team 2,31101,Looked after children in Warrington,301000,15-Mar-13,1900113847,754,People Can Social Enterprise,108636
WARRINGTON BOROUGH COUNCIL,http://statistics.data.gov.uk/id/local-authority/00EU,Environment & Regeneration,ENO,Housing Projects,82008,Disabled Persons Grant 1996,554000,25-Mar-13,1900114449,881,Affinity Sutton,108809
WARRINGTON BOROUGH COUNCIL,http://statistics.data.gov.uk/id/local-authority/00EU,Neighbourhood & Community Services,NCS,Care Purchase - Mental Health Team 1,54230,CP-LongStayExternal,441150,05-Mar-13,1900112562,"3,078.00",Broadreach House Charity,108812
WARRINGTON BOROUGH COUNCIL,http://statistics.data.gov.uk/id/local-authority/00EU,Neighbourhood & Community Services,NCS,Care Purchase - Mental Health Team 1,54230,CP-LongStayExternal,441150,05-Mar-13,1900112563,"3,078.00",Broadreach House Charity,108812
WARRINGTON BOROUGH COUNCIL,http://statistics.data.gov.uk/id/local-authority/00EU,Neighbourhood & Community Services,NCS,Care Purchase - Mental Health Team 1,54230,CP-LongStayExternal,441150,05-Mar-13,1900112564,"1,589.00",Broadreach House Charity,108812
WARRINGTON BOROUGH COUNCIL,http://statistics.data.gov.uk/id/local-authority/00EU,Neighbourhood & Community Services,NCS,Care Purchase - Mental Health Team 2,54240,CP-LongStayExternal,441150,05-Mar-13,1900112565,"2,780.00",Broadreach House Charity,108812
WARRINGTON BOROUGH COUNCIL,http://statistics.data.gov.uk/id/local-authority/00EU,Neighbourhood & Community Services,NCS,Care Purchase - Mental Health Team 2,54240,CP-LongStayExternal,441150,06-Mar-13,1900112568,"3,078.00",Broadreach House Charity,108812
WARRINGTON BOROUGH COUNCIL,http://statistics.data.gov.uk/id/local-authority/00EU,Neighbourhood & Community Services,NCS,Care Purchase - Mental Health Team 2,54240,CP-LongStayExternal,441150,06-Mar-13,1900112570,"3,078.00",Broadreach House Charity,108812
WARRINGTON BOROUGH COUNCIL,http://statistics.data.gov.uk/id/local-authority/00EU,Neighbourhood & Community Services,NCS,Care Purchase - Mental Health Team 1,54230,CP-LongStayExternal,441150,26-Mar-13,1900114559,"2,780.00",Broadreach House Charity,108812
WARRINGTON BOROUGH COUNCIL,http://statistics.data.gov.uk/id/local-authority/00EU,Neighbourhood & Community Services,NCS,Care Purchase - Learning Disability,54450,CP-LongStayExternal,441150,14-Mar-13,1900113719,"11,896.00",Progress Care and Education Ltd,108888
WARRINGTON BOROUGH COUNCIL,http://statistics.data.gov.uk/id/local-authority/00EU,Neighbourhood & Community Services,NCS,Care Purchase -OP & OT East,54430,CP-LongStayExternal,441150,13-Mar-13,1900113492,"2,480.00",Barchester Healthcare Homes Ltd,108909
WARRINGTON BOROUGH COUNCIL,http://statistics.data.gov.uk/id/local-authority/00EU,Neighbourhood & Community Services,NCS,Winter Pressures,53400,Gen. Personal Needs,490850,28-Mar-13,1900115024,"19,172.00",Bridgewater Community Healthcare,108932
WARRINGTON BOROUGH COUNCIL,http://statistics.data.gov.uk/id/local-authority/00EU,Children & Young People,CHL,DSG Support for SEN,32013,Childrens Activities,492900,28-Mar-13,1900115045,"4,491.00",Bridgewater Community Healthcare,108932
WARRINGTON BOROUGH COUNCIL,http://statistics.data.gov.uk/id/local-authority/00EU,Children & Young People,CHL,DSG Support for SEN,32013,Childrens Activities,492900,28-Mar-13,1900115046,"4,491.00",Bridgewater Community Healthcare,108932
WARRINGTON BOROUGH COUNCIL,http://statistics.data.gov.uk/id/local-authority/00EU,Children & Young People,CHL,DSG Support for SEN,32013,Childrens Activities,492900,28-Mar-13,1900115047,"5,002.00",Bridgewater Community Healthcare,108932
WARRINGTON BOROUGH COUNCIL,http://statistics.data.gov.uk/id/local-authority/00EU,Neighbourhood & Community Services,NCS,Care Purchase Budget,54490,CP ExternalOther Exp,440800,06-Mar-13,1900112618,"115,000.00",Leyton Healthcare Limited,108970
WARRINGTON BOROUGH COUNCIL,http://statistics.data.gov.uk/id/local-authority/00EU,Children & Young People,CHL,DSG Inter Authority Recoupment,32009,Recoupment Charges,490700,20-Mar-13,1900114111,"4,586.00",North Ayrshire Coucil,109075
WARRINGTON BOROUGH COUNCIL,http://statistics.data.gov.uk/id/local-authority/00EU,Children & Young People,CHL,DSG Inter Authority Recoupment,32009,Recoupment Charges,490700,28-Mar-13,1900115057,"3,094.00",North Ayrshire Coucil,109075
WARRINGTON BOROUGH COUNCIL,http://statistics.data.gov.uk/id/local-authority/00EU,Neighbourhood & Community Services,NCS,Care Purchase - Learning Disability,54450,CP-Domicil.External,440950,25-Mar-13,1900114400,650,Sanctuary Carr-Gomm,109157
WARRINGTON BOROUGH COUNCIL,http://statistics.data.gov.uk/id/local-authority/00EU,Children & Young People,CHL,DSG Early Years PVI Settings,32417,Private & Voluntary 3 Year Olds,470100,01-Mar-13,1900112278,"3,961.00",Croft Village Pre School,109167
WARRINGTON BOROUGH COUNCIL,http://statistics.data.gov.uk/id/local-authority/00EU,Children & Young People,CHL,DSG Early Years PVI Settings,32417,Private & Voluntary 3 Year Olds,470100,26-Mar-13,1900114825,"5,104.00",Croft Village Pre School,109167
WARRINGTON BOROUGH COUNCIL,http://statistics.data.gov.uk/id/local-authority/00EU,Children & Young People,CHL,DSG Early Years PVI Settings,32417,Private & Voluntary 4 Year Olds,470150,26-Mar-13,1900114891,"4,351.00",Croft Village Pre School,109167
WARRINGTON BOROUGH COUNCIL,http://statistics.data.gov.uk/id/local-authority/00EU,Neighbourhood & Community Services,NCS,Care Purchase Budget,54490,CP ExternalOther Exp,440800,05-Mar-13,1900112560,"7,352.00",London & Manchester Healthcare Ltd,109185
WARRINGTON BOROUGH COUNCIL,http://statistics.data.gov.uk/id/local-authority/00EU,Neighbourhood & Community Services,NCS,Care Purchase Budget,54490,CP ExternalOther Exp,440800,06-Mar-13,1900112617,"110,000.00",London & Manchester Healthcare Ltd,109185
WARRINGTON BOROUGH COUNCIL,http://statistics.data.gov.uk/id/local-authority/00EU,Children & Young People,CYP,Childrens & Young People,81000,ICT Comms - Equipment Purchase,450100,06-Mar-13,1900113109,"5,349.00",CDEC Limited,109195
WARRINGTON BOROUGH COUNCIL,http://statistics.data.gov.uk/id/local-authority/00EU,Children & Young People,CYP,Childrens & Young People,81000,ICT Comms - Equipment Purchase,450100,15-Mar-13,1900113856,"49,762.00",CDEC Limited,109195
WARRINGTON BOROUGH COUNCIL,http://statistics.data.gov.uk/id/local-authority/00EU,Children & Young People,CYP,Primary,81001,Equipment Purchase & Contract,400000,21-Mar-13,1900114259,"4,184.00",Virtue Technologies Limited,109199
WARRINGTON BOROUGH COUNCIL,http://statistics.data.gov.uk/id/local-authority/00EU,Children & Young People,CHL,Legal Fees - Safeguarding,30100,Legal Costs Incurred,440200,11-Mar-13,1900113341,654,Redacted Personal Data,109208
WARRINGTON BOROUGH COUNCIL,http://statistics.data.gov.uk/id/local-authority/00EU,Environment & Regeneration,ER0,Printing & Graphics,23040,Equipment Purchase & Contract,400000,21-Mar-13,1900114181,503,Pavilion Print Management Ltd,109390
WARRINGTON BOROUGH COUNCIL,http://statistics.data.gov.uk/id/local-authority/00EU,Neighbourhood & Community Services,NCS,Care Purchase Budget,54490,CP ExternalOther Exp,440800,06-Mar-13,1900112599,"32,000.00",Four Seasons ta St Oswalds Care Hom,109422
WARRINGTON BOROUGH COUNCIL,http://statistics.data.gov.uk/id/local-authority/00EU,Environment & Regeneration,ER0,Schools & Libraries Internet Project,23030,ICT Comms - Line Rental,450200,27-Mar-13,1900114695,"9,223.00",Janet UK,109425
WARRINGTON BOROUGH COUNCIL,http://statistics.data.gov.uk/id/local-authority/00EU,Neighbourhood & Community Services,NCS,Care Purchase - PD,54440,CP-Nursing Care-External,441200,13-Mar-13,1900113450,"2,372.00",HC-ONE Limited Beechley,109455
WARRINGTON BOROUGH COUNCIL,http://statistics.data.gov.uk/id/local-authority/00EU,Children & Young People,CYP,Childrens Other,81004,ICT Comms - Equipment Purchase,450100,21-Mar-13,1900114260,"3,848.00",Technical Edge Systems Limited,109458
WARRINGTON BOROUGH COUNCIL,http://statistics.data.gov.uk/id/local-authority/00EU,Children & Young People,CYP,Childrens Other,81004,ICT Comms - Equipment Purchase,450100,27-Mar-13,1900114741,"8,180.00",Technical Edge Systems Limited,109458
WARRINGTON BOROUGH COUNCIL,http://statistics.data.gov.uk/id/local-authority/00EU,Children & Young People,CHL,Agency Placements,30904,CP ExternalOther Exp,440800,22-Mar-13,1900114295,"3,700.00",Moving Up Care Ltd,109464
WARRINGTON BOROUGH COUNCIL,http://statistics.data.gov.uk/id/local-authority/00EU,Children & Young People,CHL,Agency Placements,30904,CP ExternalOther Exp,440800,22-Mar-13,1900114296,"3,100.00",Moving Up Care Ltd,109464
WARRINGTON BOROUGH COUNCIL,http://statistics.data.gov.uk/id/local-authority/00EU,Children & Young People,CHL,Agency Placements,30904,CP ExternalOther Exp,440800,22-Mar-13,1900114297,"4,600.00",Moving Up Care Ltd,109464
WARRINGTON BOROUGH COUNCIL,http://statistics.data.gov.uk/id/local-authority/00EU,Children & Young People,CHL,Agency Placements,30904,CP ExternalOther Exp,440800,22-Mar-13,1900114298,"1,000.00",Moving Up Care Ltd,109464
WARRINGTON BOROUGH COUNCIL,http://statistics.data.gov.uk/id/local-authority/00EU,Children & Young People,CHL,Agency Placements,30904,CP ExternalOther Exp,440800,22-Mar-13,1900114299,"4,600.00",Moving Up Care Ltd,109464
WARRINGTON BOROUGH COUNCIL,http://statistics.data.gov.uk/id/local-authority/00EU,Children & Young People,CHL,Agency Placements,30904,CP ExternalOther Exp,440800,22-Mar-13,1900114300,"1,000.00",Moving Up Care Ltd,109464
WARRINGTON BOROUGH COUNCIL,http://statistics.data.gov.uk/id/local-authority/00EU,Children & Young People,CHL,Agency Placements,30904,CP ExternalOther Exp,440800,28-Mar-13,1900115076,"1,000.00",Moving Up Care Ltd,109464
WARRINGTON BOROUGH COUNCIL,http://statistics.data.gov.uk/id/local-authority/00EU,Children & Young People,CHL,Agency Placements,30904,CP ExternalOther Exp,440800,28-Mar-13,1900115079,"4,600.00",Moving Up Care Ltd,109464
WARRINGTON BOROUGH COUNCIL,http://statistics.data.gov.uk/id/local-authority/00EU,Children & Young People,CHL,Agency Placements,30904,CP ExternalOther Exp,440800,28-Mar-13,1900115080,"1,000.00",Moving Up Care Ltd,109464
WARRINGTON BOROUGH COUNCIL,http://statistics.data.gov.uk/id/local-authority/00EU,Children & Young People,CHL,Agency Placements,30904,CP ExternalOther Exp,440800,28-Mar-13,1900115083,"3,100.00",Moving Up Care Ltd,109464
WARRINGTON BOROUGH COUNCIL,http://statistics.data.gov.uk/id/local-authority/00EU,Children & Young People,CHL,Agency Placements,30904,CP ExternalOther Exp,440800,28-Mar-13,1900115084,"3,700.00",Moving Up Care Ltd,109464
WARRINGTON BOROUGH COUNCIL,http://statistics.data.gov.uk/id/local-authority/00EU,Children & Young People,CHL,Agency Placements,30904,CP ExternalOther Exp,440800,28-Mar-13,1900115085,"4,600.00",Moving Up Care Ltd,109464
WARRINGTON BOROUGH COUNCIL,http://statistics.data.gov.uk/id/local-authority/00EU,Neighbourhood & Community Services,NCS,SLA - Grant Account,53920,Payment of Grants,470050,20-Mar-13,1900114081,"24,796.00",WIRED,109547
